{"text_format":"1","workbook":"xlsx","n_sheets":3,"sheets":["RehuVarasto","VUOSI_REHULASKURI","ohjeet"],"not_rendered":{"charts":2,"images":0,"macros":1,"external_links":0,"defined_names":684,"comments":3,"pivot_tables":0},"unopened":[],"bounds":{"document_bytes":16777216,"sheet_cells":100000,"rows_first":2000,"rows_last":500,"rows_between":2000,"halvings":0,"cell_chars":16384,"cell_head_chars":4096},"cells_cut":0,"cells_raw":0,"read":"whole","date_system":"1900"}

{"sheet":"RehuVarasto","index":0,"n_rows":225,"n_cols":138,"rows_kept":225,"cut":false,"hidden":false,"merged":[]}
[1]
[null,"   eMulli2 REHUSEOKSEN SUUNNITTELUOHJELMA",null,null,null,null,null,null,null,null,null,null,null,null,null,null,null,null,null,null,null,null,null,1]
[null,"       Versio 1.0  © 2019 Jyri Tuovinen, Savonia AMK, Luke ",null,null,null,null,null,null,null,null,null,null,null,null,null,null,null,null,null,null,null,null,null,1]
[]
[null,null,null,null,null,"REHUSEOKSEN REHUARVOT",null,null,null,null,null,null,null,null,null,null,null,null,null,null,null,"REHUSEOKSEN KOON MITOITUS"]
[null,null,null,null,null,"Rehuseoksen nimitys",null,null,null,null,null,null,null,null,null,"Seos1",null,null,null,null,null," Rehuseosannoksen suuruus","Seos yht.","Päiväannos"]
[null,null,null,null,null,"Energia pit. Mj/kg ka",null,null,null,null,null,null,null,null,null,{"$f":"$F19","v":11.391999999999999},null,null,null,null,null," Rehuseoserän suuruus ka kg",10000,2000]
[null,null,null,null,null,"Kuitu (NDF) g/ka kg",null,null,null,null,null,null,null,null,null,{"$f":"AO15","v":398.84},null,null,null,null,null," Erän tuorepaino tp kg",{"$f":"IFERROR(W7*R19/P19,0)","v":19002.298111260745},{"$f":"SUBTOTAL(9,X21:X220)","v":3800.4596222521486}]
[null,null,null,null,null,"Syönti- indeksi SRIND",null,null,null,null,null,null,null,null,null,{"$f":"AR15","v":111.5},null,null,null,null,null," Erän Mj yht",{"$f":"W7*P7","v":113920},{"$f":"IFERROR(X8/W8*W9,0)","v":22783.999999999996}]
[null,null,null,null,null,"VFA g/kg ka",null,null,null,null,null,null,null,null,null,{"$f":"AS15","v":4.2},null,null,null,null,null," Erän hinta yht €",{"$f":"W7*P12/100","v":1895.32},{"$f":"IFERROR(X7/W7*W10,0)","v":379.06400000000002}]
[null,null,null,null,null,"Rehun hinta snt/Mj",null,null,null,null,null,null,null,null,null,{"$f":"IFERROR($M19,0)","v":1.665354634831461},null,null,null,null,null," Karkearehu tilavuus (kg/m3)",600,{"$f":"H19","v":143.58974358974359}]
[null,null,null,null,null,"Rehun hinta snt/kg ka",null,null,null,null,null,null,null,null,null,{"$f":"$L19","v":18.953199999999999},null,null,null,null,null," Väkirehu tilavuus (kg/m3)",800,{"$f":"G19","v":44.186046511627907}]
[null,null,null,null,null,"RV g/kg ka",null,null,null,null,null,null,null,null,null,{"$f":"AN15","v":128.072},null,null,null,null,null," Apevaunun koko (m3)",6,{"$f":"(X11*W11+X12*W12)/(X12+X11)","v":647.06255954271194},null,null,null,null,null,null,null,null,null,null,null,null,null,null,null,{"$f":"AN20","v":"RV"},{"$f":"AO20","v":"NDF"},{"$f":"AP20","v":"PVT"},{"$f":"AQ20","v":"Tärk&sok"},{"$f":"AR20","v":"Syönti-indeksi SRIND"},"VFA"]
[null,null,null,null,null,"Tärkkelys g/kg ka",null,null,null,null,null,null,null,null,null,{"$f":"AT19","v":268.32},null,null,null,null,null," Apevaunuun mahtuu (kg)",{"$f":"IFERROR(X13/1000*W13*1000,0)","v":3882.3753572562719},{"$f":"IFERROR(W7/X7,0)","v":5},null,null,null,null,null,null,null,null,null,null,null,null,null,null,"minimi",90,300,-20,0,70,0,null,"minimi",6,3,1.5,1.6,100,40,50,10,0.1,0.1,0.2,0.3,2200]
[null,null,null,null,null,"Väkirehuprosentti",null,null,null,null,null,null,null,null,null,{"$f":"$E19","v":"40%  "},null,null,null,null,null," Apevaunujen määrä kpl ",{"$f":"IFERROR(W8/$W$14,0)","v":4.894503071616942},{"$f":"IFERROR(X8/$W$14,0)","v":0.97890061432338826},null,null,null,null,null,null,null,null,null,null,null,null,null,null,"nyt ",{"$f":"AN19","v":128.072},398.84,-10.32,322.42,111.5,4.2,null,"nyt",{"$f":"AV19","v":9.2099999999999991},{"$f":"AW19","v":3.298},2.242,1.798,153.18,59.72,64.540000000000006,11.84,0.36799999999999999,0.38800000000000001,1.8560000000000001,0.32400000000000001,3382.78,{"$f":"BI19","v":0},0,0,0]
[null,null,null,null,null,"Seoskomponentin info",null,null,null,null,null,null,null,null,null,12,null,null,null,null,null," Rehuarvoja punaisella ( alitus/ylitys):",{"$f":"SUBTOTAL(9,AN17:AR17)* IF(P19>0,1,0)","v":0},{"$f":"SUM(AV17:BH17)*IF(P19>0,1,0)","v":0},null,null,null,null,null,null,null,null,null,null,null,null,null,null,"maksimi",250,600,100,400,130,"ei ole",null,"maksimi","ei tiedossa","ei tiedossa",6,60,1000,1300,1500,200,30,4,50,2,20000,25000,"ei rajaa"]
[null,null,null,null,null,"",null,null,null,null,null,null,{"$f":"IFERROR((M18-L19)/L19,\"\")","v":9.7714370132760231E-4},null,null,null,null,null,null,null,null,"REHU- JA KIVENNÄISLISTA",null,null,null,null,null,null,null,null,null,null,null,null,null,null,null,null,null,{"$f":"IF(AN15<AN14,1,IF(AN15>AN16,1,0))","v":0},0,0,0,null,0,null,null,{"$f":"IF(AV15<AV14,1,IF(AV15>AV16,1,0))","v":0},{"$f":"IF(AW15<AW14,1,IF(AW15>AW16,1,0))","v":0},0,0,0,0,0,0,0,0,0,0,0]
["Seoksen komponentit","Seoksen komponentit (kg ka ja Mj)",null,null,null,{"$f":"B19+C19+D19","v":100},"Tuorepainot",null,null,null,null,null,{"$f":"M19*F19","v":18.971720000000001},null,"Osuudet","Seos ka kg ",null,null,"karkearehu-osuus",null,"määrä","Rehuseoksen osatekijät","Rehu-","Päivä-","Huom! Ole tarkkana, että",null,"Määrätiedot  varastossa suunnittelukaudelle (Kilot ja Mj:t)",null,null,null,null,null,null,null,null,"Yksikköhinnat ja varaston arvo",null,null,null,"Rehuarvot kuiva-ainekiloa kohden",null,null,null,null,null,null,null,"Hivenaineet ja vitamiinit"]
["rivi",{"$f":"SUBTOTAL(9,B21:B220)","v":38},{"$f":"SUBTOTAL(9,C21:C220)","v":60},2,{"$f":"IFERROR(ROUND((B19+D19)/(B19+C19+D19)*100,0)&\"%  \",\"\")","v":"40%  "},{"$f":"SUBTOTAL(9,F21:F220)","v":11.391999999999999},{"$f":"SUBTOTAL(9,G21:G220)","v":44.186046511627907},143.58974358974359,"vapaa","vapaa","vapaa",{"$f":"SUBTOTAL(9,L21:L220)","v":18.953199999999999},1.665354634831461,null,{"$f":"SUBTOTAL(9,O21:O220)","v":1},{"$f":"SUBTOTAL(9,P21:P220)","v":100},"Tp ",{"$f":"SUBTOTAL(9,R21:R220)","v":190.02298111260745},{"$f":"SUM(S21:S220)","v":51},2871.7948717948711,{"$f":"SUM(U21:U220)","v":126},"Rehut ja kivennäiset","seos yht.","annos","syötät tekstit oikein!",null,{"$f":"SUM(AA21:AA220)","v":0},null,{"$f":"SUM(AC21:AC220)","v":0},null,{"$f":"SUM(AE21:AE220)","v":0},null,null,null,null,"Hinnat",null,"Varasto yht.",{"$f":"SUM(AM21:AM220)","v":0},{"$f":"SUBTOTAL(9,BP21:BP220)","v":128.072},398.84,-10.32,322.42,111.5,4.2,268.32,54.1,{"$f":"SUBTOTAL(9,BX21:BX220)","v":9.2099999999999991},3.298,2.242,1.798,153.18,59.72,64.540000000000006,11.84,0.36799999999999999,0.38800000000000001,1.8560000000000001,0.32400000000000001,3382.78,null,null,null,null,"MTT"]
[null,"väkirehut","karkearehut","kivenn.","suhdeluku","Mj/kg ka","väkir tp","kark tp",null,null,null,"snt/ kg ka","snt/Mj","rehutyyppi","ka-%","ka kg","tp-%","tp kg",{"$f":"S6","v":0},null,"valittu","Nimitys","tp kg","tp kg","lähde","rehutyyppi","tuore kg yht","ka-%","kg ka yht","Mj/kg ka","Mj me yht",null,"Varasto\nka kg\n","Varattu\nka kg","Jäljellä\nka kg","snt/kg tp","snt/kg ka","snt/Mj Me","eur yht","RV","NDF","PVT","Tärk&sok","Syönti-indeksi SRIND","VFA","Tärk..","Sok.","Ca","P","Mg","Na","Fe","Mn","Zn","Cu","Co","Se","I","Mo","A-vit","D-vit","E-vit","Huom!","mttkdi","rehuid",null,null,{"$f":"AN20","v":"RV"},"NDF","PVT","Tärk&sok","Syönti-indeksi SRIND","VFA","Tärk..","Sok.",{"$f":"AV20","v":"Ca"},"P","Mg","Na","Fe","Mn","Zn","Cu","Co","Se","I","Mo","A-vit"]
[21,{"$f":"IF(N21=3,P21,IF(N21=4,P21,0))","v":0},{"$f":"IF(N21=1,P21,IF(N21=2,P21,0))","v":0},{"$f":"IF(N21=5,P21,0)","v":0},null,{"$f":"IFERROR(AD21*U21*(B21+C21+D21)/(B$19+C$19+D$19),0)","v":0},{"$f":"IFERROR(B21/AB21*100,0)","v":0},{"$f":"IFERROR(C21/AB21*100,0)","v":0},{"$f":"IFERROR(AS21*U21*C21/(B$19+C$19+D$19),0)","v":0},{"$f":"IFERROR(AN21*U21*(B21+C21+D21)/($B$19+$C$19+$D$19),0)","v":0},{"$f":"IFERROR(AQ21*U21*(B21+C21+D21)/($B$19+C$19+D$19),0)","v":0},{"$f":"IFERROR(AK21*U21*(B21+C21+D21)/(B$19+C$19+D$19),0)","v":0},{"$f":"AL21*F21/F$19","v":0},{"$f":"IF(AND(Y21=\"kotoinen\",Z21=\"karkearehu\"),1,IF(AND(Y21=\"osto\",Z21=\"karkearehu\"),2,IF(AND(Y21=\"kotoinen\",Z21=\"väkirehu\"),3,IF(AND(Y21=\"osto\",Z21=\"väkirehu\"),4,IF(Z21=\"kivennäisseos\",5,0)))))","v":1},{"$f":"IFERROR(P21/F$18,0)","v":0},null,{"$f":"R21/R$19","v":0},{"$f":"IFERROR(P21/AB21*100,0)","v":0},{"$f":"IF(Z21=\"karkearehu\",1,0)","v":1},{"$f":"S21*X21","v":0},{"$f":"IFERROR(IF(OFFSET(O21,0,V$2-1)>0,1,0),0)","v":1},"Heinä, 1.sato, aikainen korjuu",{"$f":"IFERROR(Q21*W$8,0)","v":0},{"$f":"IFERROR(W21*X$7/W$7,0)","v":0},"kotoinen","karkearehu",null,86,{"$f":"AB21/100*AA21","v":0},10.4,{"$f":"AC21*AD21","v":0},null,null,null,null,null,{"$f":"IF(AB21<>0,ROUND(AJ21/(AB21/100),2),0)","v":0},{"$f":"IF(AD21<>0,ROUND(AK21/AD21,2),0)","v":0},{"$f":"AA21*AJ21/100","v":0},160,610,23,{"$f":"AT21+AU21","v":50},90,0,0,50,3,3.6,1.3,0.2,150,60,30,5,0.1,null,null,null,20,1000,40,null,1004,65,null,null,{"$f":"IFERROR(AN21*($B21+$C21+$D21)/($B$19+$C$19+$D$19),0)","v":0},0,0,0,{"$f":"IFERROR(AR21*($B21+$C21+$D21)/($C$19),0)","v":0},0,0,0,{"$f":"IFERROR(AV21*($B21+$C21+$D21)/($B$19+$C$19+$D$19),0)","v":0},{"$f":"IFERROR(AW21*($B21+$C21+$D21)/($B$19+$C$19+$D$19),0)","v":0},{"$f":"IFERROR(AX21*($B21+$C21+$D21)/($B$19+$C$19+$D$19),0)","v":0},{"$f":"IFERROR(AY21*($B21+$C21+$D21)/($B$19+$C$19+$D$19),0)","v":0},{"$f":"IFERROR(AZ21*($B21+$C21+$D21)/($B$19+$C$19+$D$19),0)","v":0},{"$f":"IFERROR(BA21*($B21+$C21+$D21)/($B$19+$C$19+$D$19),0)","v":0},{"$f":"IFERROR(BB21*($B21+$C21+$D21)/($B$19+$C$19+$D$19),0)","v":0},{"$f":"IFERROR(BC21*($B21+$C21+$D21)/($B$19+$C$19+$D$19),0)","v":0},{"$f":"IFERROR(BD21*($B21+$C21+$D21)/($B$19+$C$19+$D$19),0)","v":0},{"$f":"IFERROR(BE21*($B21+$C21+$D21)/($B$19+$C$19+$D$19),0)","v":0},{"$f":"IFERROR(BF21*($B21+$C21+$D21)/($B$19+$C$19+$D$19),0)","v":0},{"$f":"IFERROR(BG21*($B21+$C21+$D21)/($B$19+$C$19+$D$19),0)","v":0},{"$f":"IFERROR(BH21*($B21+$C21+$D21)/($B$19+$C$19+$D$19),0)","v":0},null,null,null,null,null,null,null,null,null,null,null,null,null,null,null,null,null,null,null,null,null,null,null,null,null,null,null,null,null,null,null,null,null,null,null,null,null,null,null,null,null,null,null,null,null,null,null,null,null,{"$f":"BN21-DK21","v":0}]
[22,0,0,0,null,0,{"$f":"IFERROR(B22/AB22*100,0)","v":0},{"$f":"IFERROR(C22/AB22*100,0)","v":0},0,0,0,0,0,1,0,null,0,0,1,0,{"$f":"IFERROR(IF(OFFSET(O22,0,V$2-1)>0,1,0),0)","v":1},"Heinä, 1.sato, myöhäinen korjuu",0,0,"kotoinen","karkearehu",null,86,0,8.9,0,null,null,null,null,null,0,0,0,100,670,-11,30,75,0,0,30,2.5,2.5,1.1000000000000001,0.2,150,60,30,5,0.1,null,null,null,20,1000,40,null,3033,66,null,null,0,0,0,0,0,0,0,0,0,0,0,0,0,0,0,0,0,0,0,0,0,null,null,null,null,null,null,null,null,null,null,null,null,null,null,null,null,null,null,null,null,null,null,null,null,null,null,null,null,null,null,null,null,null,null,null,null,null,null,null,null,null,null,null,null,null,null,null,null,null,0]
[23,0,0,0,null,0,0,0,0,0,0,0,0,1,0,null,0,0,1,0,1,"Heinä, 1.sato, normaali korjuu",0,0,"kotoinen","karkearehu",null,86,0,9.65,0,null,null,null,null,null,0,0,0,130,640,6,50,85,0,0,50,3,3.6,1.2,0.2,150,60,30,5,0.1,null,null,null,20,1000,40,null,3034,67,null,null,0,0,0,0,0,0,0,0,0,0,0,0,0,0,0,0,0,0,0,0,0,null,null,null,null,null,null,null,null,null,null,null,null,null,null,null,null,null,null,null,null,null,null,null,null,null,null,null,null,null,null,null,null,null,null,null,null,null,null,null,null,null,null,null,null,null,null,null,null,null,0]
[24,0,0,0,null,0,0,0,0,0,0,0,0,1,0,null,0,0,1,0,1,"Heinänsiemenenolki",0,0,"kotoinen","karkearehu",null,85,0,5.8954000000000004,0,null,null,null,null,null,0,0,0,51.5,600,-29.975999999999999,45,null,null,0,45,3.4,1.1000000000000001,0.8,0.8,null,60,70,5,0.05,null,null,null,null,null,null,null,3035,68,null,null,0,0,0,0,0,0,0,0,0,0,0,0,0,0,0,0,0,0,0,0,0,null,null,null,null,null,null,null,null,null,null,null,null,null,null,null,null,null,null,null,null,null,null,null,null,null,null,null,null,null,null,null,null,null,null,null,null,null,null,null,null,null,null,null,null,null,null,null,null,null,0]
[25,0,0,0,null,0,0,0,0,0,0,0,0,1,0,null,0,0,1,0,1,"Herne- ja virnasäilörehu, kukinnan alku",0,0,"kotoinen","karkearehu",null,20,0,9.9,0,null,null,null,null,null,0,0,0,200,540,80,140,100,10,140,null,9.6999999999999993,3.8,2.2000000000000002,0.6,164,18,66,8,null,null,null,null,null,null,null,null,1015,69,null,null,0,0,0,0,0,0,0,0,0,0,0,0,0,0,0,0,0,0,0,0,0,null,null,null,null,null,null,null,null,null,null,null,null,null,null,null,null,null,null,null,null,null,null,null,null,null,null,null,null,null,null,null,null,null,null,null,null,null,null,null,null,null,null,null,null,null,null,null,null,null,0]
[26,0,0,0,null,0,0,0,0,0,0,0,0,1,0,null,0,0,1,0,1,"Härkäpapusäilörehu, vihreät siemenet",0,0,"kotoinen","karkearehu",null,20,0,9.1,0,null,null,null,null,null,0,0,0,190,400,80,0,100,10,null,null,6.9,2.9,1.8,0.6,165,18,62,18,null,null,null,null,null,null,null,null,1021,70,null,null,0,0,0,0,0,0,0,0,0,0,0,0,0,0,0,0,0,0,0,0,0,null,null,null,null,null,null,null,null,null,null,null,null,null,null,null,null,null,null,null,null,null,null,null,null,null,null,null,null,null,null,null,null,null,null,null,null,null,null,null,null,null,null,null,null,null,null,null,null,null,0]
[27,0,0,0,null,0,0,0,0,0,0,0,0,1,0,null,0,0,1,0,1,"Italianraiheinäsäilörehu",0,0,"kotoinen","karkearehu",null,34,0,10.58,0,null,null,null,null,null,0,0,0,161,500,40,46,100,10,0,46,6.3,4.3,1.9,2.2999999999999998,230,50,50,11,0.7,0,null,null,null,null,null,null,1031,71,null,null,0,0,0,0,0,0,0,0,0,0,0,0,0,0,0,0,0,0,0,0,0,null,null,null,null,null,null,null,null,null,null,null,null,null,null,null,null,null,null,null,null,null,null,null,null,null,null,null,null,null,null,null,null,null,null,null,null,null,null,null,null,null,null,null,null,null,null,null,null,null,0]
[28,0,0,0,null,0,0,0,0,0,0,0,0,1,0,null,0,0,1,0,1,"Kaura-herne-virnasäilörehu",0,0,"kotoinen","karkearehu",null,34,0,10.63,0,null,null,null,null,null,0,0,0,125,460,3,160,100,10,150,10,7,3.4,1.9,0.5,null,51,75,5,null,null,null,null,null,null,null,null,1032,72,null,null,0,0,0,0,0,0,0,0,0,0,0,0,0,0,0,0,0,0,0,0,0,null,null,null,null,null,null,null,null,null,null,null,null,null,null,null,null,null,null,null,null,null,null,null,null,null,null,null,null,null,null,null,null,null,null,null,null,null,null,null,null,null,null,null,null,null,null,null,null,null,0]
[29,0,0,0,null,0,0,0,0,0,0,0,0,1,0,null,0,0,1,0,1,"Kauran ja ohran olki",0,0,"kotoinen","karkearehu",null,85,0,6,0,null,null,null,null,null,0,0,0,40,830,-33.840000000000003,0,null,null,0,null,2.8,1,1,0.2,70,60,20,4,0.1,null,null,null,null,null,null,null,3038,73,null,null,0,0,0,0,0,0,0,0,0,0,0,0,0,0,0,0,0,0,0,0,0,null,null,null,null,null,null,null,null,null,null,null,null,null,null,null,null,null,null,null,null,null,null,null,null,null,null,null,null,null,null,null,null,null,null,null,null,null,null,null,null,null,null,null,null,null,null,null,null,null,0]
[30,0,0,0,null,0,0,0,0,0,0,0,0,1,0,null,0,0,1,0,1,"Kokoviljasäilörehu, kaura",0,0,"kotoinen","karkearehu",null,23,0,8.5250000000000004,0,null,null,null,null,null,0,0,0,95,450,-5,160,100,5,150,10,4.8,3.2,1.5,1.5,null,81,67,5,null,null,null,null,null,null,null,null,1033,74,null,null,0,0,0,0,0,0,0,0,0,0,0,0,0,0,0,0,0,0,0,0,0,null,null,null,null,null,null,null,null,null,null,null,null,null,null,null,null,null,null,null,null,null,null,null,null,null,null,null,null,null,null,null,null,null,null,null,null,null,null,null,null,null,null,null,null,null,null,null,null,null,0]
[31,0,0,0,null,0,0,0,0,0,0,0,0,1,0,null,0,0,1,0,1,"Kokoviljasäilörehu, ohra, kuitu 45 %",0,0,"kotoinen","karkearehu",null,35,0,10.7,0,null,null,null,null,null,0,0,0,100,450,-22,230,110,5,220,10,2,2.5,1.3,0.4,null,43,28,5,null,null,null,null,null,null,null,null,3039,75,null,null,0,0,0,0,0,0,0,0,0,0,0,0,0,0,0,0,0,0,0,0,0,null,null,null,null,null,null,null,null,null,null,null,null,null,null,null,null,null,null,null,null,null,null,null,null,null,null,null,null,null,null,null,null,null,null,null,null,null,null,null,null,null,null,null,null,null,null,null,null,null,0]
[32,0,0,0,null,0,0,0,0,0,0,0,0,1,0,null,0,0,1,0,1,"Kokoviljasäilörehu, ohra, kuitu 50 %",0,0,"kotoinen","karkearehu",null,35,0,9.9,0,null,null,null,null,null,0,0,0,100,500,-14,205,110,5,200,5,2,2.5,1.3,0.4,null,43,28,5,null,null,null,null,null,null,null,null,1034,21,null,null,0,0,0,0,0,0,0,0,0,0,0,0,0,0,0,0,0,0,0,0,0,null,null,null,null,null,null,null,null,null,null,null,null,null,null,null,null,null,null,null,null,null,null,null,null,null,null,null,null,null,null,null,null,null,null,null,null,null,null,null,null,null,null,null,null,null,null,null,null,null,{"$f":"BN32-DK32","v":0}]
[33,0,0,0,null,0,0,0,0,0,0,0,0,1,0,null,0,0,1,0,1,"Kokoviljasäilörehu, ohra, kuitu 55 %",0,0,"kotoinen","karkearehu",null,35,0,9.3000000000000007,0,null,null,null,null,null,0,0,0,100,550,-8,190,110,5,180,10,2,2.5,1.3,0.4,null,43,28,5,null,null,null,null,null,null,null,null,1041,22,null,null,0,0,0,0,0,0,0,0,0,0,0,0,0,0,0,0,0,0,0,0,0,null,null,null,null,null,null,null,null,null,null,null,null,null,null,null,null,null,null,null,null,null,null,null,null,null,null,null,null,null,null,null,null,null,null,null,null,null,null,null,null,null,null,null,null,null,null,null,null,null,0]
[34,0,0,0,null,0,0,0,0,0,0,0,0,1,0,null,0,0,1,0,1,"Kokoviljasäilörehu, vehnä",0,0,"kotoinen","karkearehu",null,41,0,10.3354,0,null,null,null,null,null,0,0,0,94,390,-23,267,110,5,247,20,2.4,2.4,1.1000000000000001,0.5,70,29,49,5,0.05,0.03,null,null,null,null,null,null,1042,82,null,null,0,0,0,0,0,0,0,0,0,0,0,0,0,0,0,0,0,0,0,0,0,null,null,null,null,null,null,null,null,null,null,null,null,null,null,null,null,null,null,null,null,null,null,null,null,null,null,null,null,null,null,null,null,null,null,null,null,null,null,null,null,null,null,null,null,null,null,null,null,null,0]
[35,0,0,0,null,0,0,0,0,0,0,0,0,1,0,null,0,0,1,0,1,"Laidun",0,0,"kotoinen","karkearehu",null,20,0,11.44,0,null,null,null,null,null,0,0,0,180,550,41,125,120,0,0,125,3.8,3.5,1.8,1.1000000000000001,180,61,31,7,0.3,0.31,null,null,null,null,null,null,1043,23,null,null,0,0,0,0,0,0,0,0,0,0,0,0,0,0,0,0,0,0,0,0,0,null,null,null,null,null,null,null,null,null,null,null,null,null,null,null,null,null,null,null,null,null,null,null,null,null,null,null,null,null,null,null,null,null,null,null,null,null,null,null,null,null,null,null,null,null,null,null,null,null,0]
[36,0,0,0,null,0,0,0,0,0,0,0,0,1,0,null,0,0,1,0,1,"Luonnonheinä",0,0,"kotoinen","karkearehu",null,21,0,10.24,0,null,null,null,null,null,0,0,0,135,640,15,130,90,0,0,130,3.8,2.6,1.6,0.2,180,61,31,7,0.3,0.31,null,null,null,null,null,null,3040,76,null,null,0,0,0,0,0,0,0,0,0,0,0,0,0,0,0,0,0,0,0,0,0,null,null,null,null,null,null,null,null,null,null,null,null,null,null,null,null,null,null,null,null,null,null,null,null,null,null,null,null,null,null,null,null,null,null,null,null,null,null,null,null,null,null,null,null,null,null,null,null,null,0]
[37,0,0,0,null,0,0,0,0,0,0,0,0,1,0,null,0,0,1,0,1,"Maissisäilörehu",0,0,"kotoinen","karkearehu",null,31,0,11.576000000000001,0,null,null,null,null,null,0,0,0,87,460,-38,310,100,5,290,20,2.2000000000000002,2.6,1.3,0.4,60,21,71,5,0.02,0.03,null,null,null,null,null,null,3041,24,null,null,{"$f":"IFERROR(AN37*($B37+$C37+$D37)/($B$19+$C$19+$D$19),0)","v":0},0,0,0,0,0,0,0,0,0,0,0,0,0,0,0,0,0,0,0,0,null,null,null,null,null,null,null,null,null,null,null,null,null,null,null,null,null,null,null,null,null,null,null,null,null,null,null,null,null,null,null,null,null,null,null,null,null,null,null,null,null,null,null,null,null,null,null,null,null,0]
[38,0,0,0,null,0,0,0,0,0,0,0,0,1,0,null,0,0,1,0,1,"Nurmisäilörehu, 1.sato, aik. korjuu",0,0,"kotoinen","karkearehu",null,25,0,11.5,0,null,null,null,null,null,0,0,0,170,520,39,150,110,5,0,150,3.8,3.6,1.8,0.2,180,61,31,7,0.3,0.3,null,null,null,null,null,null,3042,77,null,null,0,0,0,0,0,0,0,0,0,0,0,0,0,0,0,0,0,0,0,0,0,null,null,null,null,null,null,null,null,null,null,null,null,null,null,null,null,null,null,null,null,null,null,null,null,null,null,null,null,null,null,null,null,null,null,null,null,null,null,null,null,null,null,null,null,null,null,null,null,null,0]
[39,0,0,0,null,0,0,0,0,0,0,0,0,1,0,null,0,0,1,0,1,"Nurmisäilörehu, 1.sato, erit.myöh. korj.",0,0,"kotoinen","karkearehu",null,25,0,9.6,0,null,null,null,null,null,0,0,0,120,660,14,20,80,5,0,20,3.8,2.2000000000000002,1.5,0.2,180,61,31,7,0.26,0.31,null,null,null,null,null,null,3043,25,null,null,0,0,0,0,0,0,0,0,0,0,0,0,0,0,0,0,0,0,0,0,0,null,null,null,null,null,null,null,null,null,null,null,null,null,null,null,null,null,null,null,null,null,null,null,null,null,null,null,null,null,null,null,null,null,null,null,null,null,null,null,null,null,null,null,null,null,null,null,null,null,0]
[40,0,0,0,null,0,0,0,0,0,0,0,0,1,0,null,0,0,1,0,1,"Nurmisäilörehu, 1.sato, myöhäinen korjuu",0,0,"kotoinen","karkearehu",null,25,0,10.1,0,null,null,null,null,null,0,0,0,130,660,18,40,90,5,0,40,3.8,2.5,1.6,0.2,180,61,31,7,0.26,0.31,null,null,null,null,null,null,1051,26,null,null,0,0,0,0,0,0,0,0,0,0,0,0,0,0,0,0,0,0,0,0,0,null,null,null,null,null,null,null,null,null,null,null,null,null,null,null,null,null,null,null,null,null,null,null,null,null,null,null,null,null,null,null,null,null,null,null,null,null,null,null,null,null,null,null,null,null,null,null,null,null,0]
[41,0,0,0,null,0,0,0,0,0,0,0,0,1,0,null,0,0,1,0,1,"Nurmisäilörehu, 2.sato, keskim. sulavuus",0,0,"kotoinen","karkearehu",null,25,0,10.4,0,null,null,null,null,null,0,0,0,155,530,36,100,95,5,0,100,4.2,2.8,2.1,0.2,165,66,28,7,0.26,0.2,null,null,null,null,null,null,3046,27,null,null,0,0,0,0,0,0,0,0,0,0,0,0,0,0,0,0,0,0,0,0,0,null,null,null,null,null,null,null,null,null,null,null,null,null,null,null,null,null,null,null,null,null,null,null,null,null,null,null,null,null,null,null,null,null,null,null,null,null,null,null,null,null,null,null,null,null,null,null,null,null,0]
[42,0,0,0,null,0,0,0,0,0,0,0,0,1,0,null,0,0,1,0,1,"Nurmisäilörehu, 2.sato, korkea sulavuus",0,0,"kotoinen","karkearehu",null,25,0,10.9,0,null,null,null,null,null,0,0,0,170,520,45,150,105,5,0,150,4.2,3.1,2.2000000000000002,0.2,165,66,28,7,0.3,0.2,null,null,null,null,null,null,1071,149,null,null,0,0,0,0,0,0,0,0,0,0,0,0,0,0,0,0,0,0,0,0,0,null,null,null,null,null,null,null,null,null,null,null,null,null,null,null,null,null,null,null,null,null,null,null,null,null,null,null,null,null,null,null,null,null,null,null,null,null,null,null,null,null,null,null,null,null,null,null,null,null,0]
[43,0,0,0,null,0,0,0,0,0,0,0,0,1,0,null,0,0,1,0,1,"Nurmisäilörehu, 2.sato, matala sulavuus",0,0,"kotoinen","karkearehu",null,25,0,9.9,0,null,null,null,null,null,0,0,0,145,540,32,50,90,5,0,50,4.2,2.4,2,0.2,165,66,28,7,0.26,0.2,null,null,null,null,null,null,1072,150,null,null,0,0,0,0,0,0,0,0,0,0,0,0,0,0,0,0,0,0,0,0,0,null,null,null,null,null,null,null,null,null,null,null,null,null,null,null,null,null,null,null,null,null,null,null,null,null,null,null,null,null,null,null,null,null,null,null,null,null,null,null,null,null,null,null,null,null,null,null,null,null,0]
[44,0,0,0,null,0,0,0,0,0,0,0,0,1,0,null,0,0,1,0,1,"Nurmisäilörehu, 3.sato",0,0,"kotoinen","karkearehu",null,25,0,11.2,0,null,null,null,null,null,0,0,0,175,510,46,100,100,5,0,100,4.5,3.3,2.2000000000000002,0.2,200,80,31,7,0.26,0.2,null,null,null,null,null,null,1073,28,null,null,0,0,0,0,0,0,0,0,0,0,0,0,0,0,0,0,0,0,0,0,0,null,null,null,null,null,null,null,null,null,null,null,null,null,null,null,null,null,null,null,null,null,null,null,null,null,null,null,null,null,null,null,null,null,null,null,null,null,null,null,null,null,null,null,null,null,null,null,null,null,0]
[45,0,0,0,null,0,0,0,0,0,0,0,0,1,0,null,0,0,1,0,1,"Puna-apila, 1. ja 2. sato, myöh. korjuu",0,0,"kotoinen","karkearehu",null,21,0,9.8000000000000007,0,null,null,null,null,null,0,0,0,190,420,65,50,110,5,0,50,12.6,2,2.5,0.2,200,35,35,15,0.15,null,null,null,200,null,180,null,1074,78,null,null,0,0,0,0,0,0,0,0,0,0,0,0,0,0,0,0,0,0,0,0,0,null,null,null,null,null,null,null,null,null,null,null,null,null,null,null,null,null,null,null,null,null,null,null,null,null,null,null,null,null,null,null,null,null,null,null,null,null,null,null,null,null,null,null,null,null,null,null,null,null,0]
[46,0,0,0,null,0,0,0,0,0,0,0,0,1,0,null,0,0,1,0,1,"Puna-apila, 1. ja 2. sato, norm. korjuu",0,0,"kotoinen","karkearehu",null,35,0,10.6,0,null,null,{"$f":"AG46*AB46/100","v":0},null,null,0,0,0,210,360,74,100,115,5,0,100,14.7,2.2999999999999998,2.8,0.2,200,35,35,15,0.2,null,null,null,null,null,null,null,3047,79,null,null,0,0,0,0,0,0,0,0,0,0,0,0,0,0,0,0,0,0,0,0,0,null,null,null,null,null,null,null,null,null,null,null,null,null,null,null,null,null,null,null,null,null,null,null,null,null,null,null,null,null,null,null,null,null,null,null,null,null,null,null,null,null,null,null,null,null,null,null,null,null,0]
[47,0,0,0,null,0,0,0,0,0,0,0,0,1,0,null,0,0,1,0,1,"Puna-apilasäilörehu (25%), 1.sato, myöh.",0,0,"kotoinen","karkearehu",null,25,0,9.6,0,null,null,null,null,null,0,0,0,135,600,21,50,105,5,0,50,5.9,2.1,1.8,0.2,185,53,31,8,0.2,null,null,null,null,null,null,null,3049,80,null,null,0,0,0,0,0,0,0,0,0,0,0,0,0,0,0,0,0,0,0,0,0,null,null,null,null,null,null,null,null,null,null,null,null,null,null,null,null,null,null,null,null,null,null,null,null,null,null,null,null,null,null,null,null,null,null,null,null,null,null,null,null,null,null,null,null,null,null,null,null,null,0]
[48,0,0,0,null,0,0,0,0,0,0,0,0,1,0,null,0,0,1,0,1,"Puna-apilasäilörehu (25%), 1.sato, norm.",0,0,"kotoinen","karkearehu",null,25,0,10.199999999999999,0,null,null,null,null,null,0,0,0,150,590,27,100,115,5,0,100,6.4,2.5,1.9,0.2,173,53,31,8,0.23,null,null,null,null,null,null,null,3072,81,null,null,0,0,0,0,0,0,0,0,0,0,0,0,0,0,0,0,0,0,0,0,0,null,null,null,null,null,null,null,null,null,null,null,null,null,null,null,null,null,null,null,null,null,null,null,null,null,null,null,null,null,null,null,null,null,null,null,null,null,null,null,null,null,null,null,null,null,null,null,null,null,0]
[49,0,0,0,null,0,0,0,0,0,0,0,0,1,0,null,0,0,1,0,1,"Puna-apilasäilörehu (50%), 1.sato, aik.",0,0,"kotoinen","karkearehu",null,25,0,10.9,0,null,null,{"$f":"AG49*AB49/100","v":0},null,null,0,0,0,190,480,54,150,120,5,0,150,10,2.7,2.2999999999999998,0.3,165,46,31,9,0.2,null,null,null,null,null,null,null,3073,29,null,null,0,0,0,0,0,0,0,0,0,0,0,0,0,0,0,0,0,0,0,0,0,null,null,null,null,null,null,null,null,null,null,null,null,null,null,null,null,null,null,null,null,null,null,null,null,null,null,null,null,null,null,null,null,null,null,null,null,null,null,null,null,null,null,null,null,null,null,null,null,null,0]
[50,0,0,0,null,0,0,0,0,0,0,0,0,1,0,null,0,0,1,0,1,"Puna-apilasäilörehu (50%), 1.sato, myöh.",0,0,"kotoinen","karkearehu",null,25,0,9.6,0,null,null,null,null,null,0,0,0,150,550,33,75,110,5,0,75,8,2.1,2,0.2,190,46,31,9,0.21,null,null,null,null,null,null,null,3074,83,null,null,0,0,0,0,0,0,0,0,0,0,0,0,0,0,0,0,0,0,0,0,0,null,null,null,null,null,null,null,null,null,null,null,null,null,null,null,null,null,null,null,null,null,null,null,null,null,null,null,null,null,null,null,null,null,null,null,null,null,null,null,null,null,null,null,null,null,null,null,null,null,0]
[51,0,0,0,null,0,0,0,0,0,0,0,0,1,0,null,0,0,1,0,1,"Puna-apilasäilörehu (50%), 1.sato, norm.",0,0,"kotoinen","karkearehu",null,25,0,10.199999999999999,0,null,null,null,null,null,0,0,0,170,520,43.887999999999998,90,110,5,0,90,9,2.4,2.2000000000000002,0.3,165,46,31,9,0.21,null,null,null,null,null,null,null,1075,30,null,null,0,0,0,0,0,0,0,0,0,0,0,0,0,0,0,0,0,0,0,0,0,null,null,null,null,null,null,null,null,null,null,null,null,null,null,null,null,null,null,null,null,null,null,null,null,null,null,null,null,null,null,null,null,null,null,null,null,null,null,null,null,null,null,null,null,null,null,null,null,null,0]
[52,0,0,0,null,0,0,0,0,0,0,0,0,1,0,null,0,0,1,0,1,"Puna-apilasäilörehu (75%), 1.sato, aik.",0,0,"kotoinen","karkearehu",null,25,0,11,0,null,null,null,null,null,0,0,0,210,390,69.504000000000005,100,110,5,0,100,13.2,2.7,2.7,0.3,158,38,30,10,0.18,null,null,null,null,null,null,null,1081,31,null,null,0,0,0,0,0,0,0,0,0,0,0,0,0,0,0,0,0,0,0,0,0,null,null,null,null,null,null,null,null,null,null,null,null,null,null,null,null,null,null,null,null,null,null,null,null,null,null,null,null,null,null,null,null,null,null,null,null,null,null,null,null,null,null,null,null,null,null,null,null,null,0]
[53,{"$f":"IF(N53=3,P53,IF(N53=4,P53,0))","v":0},{"$f":"IF(N53=1,P53,IF(N53=2,P53,0))","v":0},{"$f":"IF(N53=5,P53,0)","v":0},null,{"$f":"IFERROR(AD53*U53*(B53+C53+D53)/(B$19+C$19+D$19),0)","v":0},0,0,{"$f":"IFERROR(AS53*U53*C53/(B$19+C$19+D$19),0)","v":0},{"$f":"IFERROR(AN53*U53*(B53+C53+D53)/($B$19+$C$19+$D$19),0)","v":0},{"$f":"IFERROR(AQ53*U53*(B53+C53+D53)/($B$19+C$19+D$19),0)","v":0},0,{"$f":"AL53*F53/F$19","v":0},{"$f":"IF(AND(Y53=\"kotoinen\",Z53=\"karkearehu\"),1,IF(AND(Y53=\"osto\",Z53=\"karkearehu\"),2,IF(AND(Y53=\"kotoinen\",Z53=\"väkirehu\"),3,IF(AND(Y53=\"osto\",Z53=\"väkirehu\"),4,IF(Z53=\"kivennäisseos\",5,0)))))","v":1},{"$f":"IFERROR(P53/F$18,0)","v":0},null,{"$f":"R53/R$19","v":0},{"$f":"IFERROR(P53/AB53*100,0)","v":0},1,0,1,"Puna-apilasäilörehu (75%), 1.sato, myöh.",{"$f":"IFERROR(Q53*W$8,0)","v":0},{"$f":"IFERROR(W53*X$7/W$7,0)","v":0},"kotoinen","karkearehu",null,25,{"$f":"AB53/100*AA53","v":0},9.6,{"$f":"AC53*AD53","v":0},null,null,null,null,null,{"$f":"IF(AB53<>0,ROUND(AJ53/(AB53/100),2),0)","v":0},{"$f":"IF(AD53<>0,ROUND(AK53/AD53,2),0)","v":0},{"$f":"AA53*AJ53/100","v":0},165,490,45.816000000000003,{"$f":"AT53+AU53","v":50},110,5,0,50,10.1,2,2.2000000000000002,0.3,195,38,30,10,0.18,null,null,null,null,null,null,null,1082,32,null,null,{"$f":"IFERROR(AN53*($B53+$C53+$D53)/($B$19+$C$19+$D$19),0)","v":0},0,0,0,0,0,0,0,{"$f":"IFERROR(AV53*($B53+$C53+$D53)/($B$19+$C$19+$D$19),0)","v":0},{"$f":"IFERROR(AW53*($B53+$C53+$D53)/($B$19+$C$19+$D$19),0)","v":0},{"$f":"IFERROR(AX53*($B53+$C53+$D53)/($B$19+$C$19+$D$19),0)","v":0},{"$f":"IFERROR(AY53*($B53+$C53+$D53)/($B$19+$C$19+$D$19),0)","v":0},{"$f":"IFERROR(AZ53*($B53+$C53+$D53)/($B$19+$C$19+$D$19),0)","v":0},{"$f":"IFERROR(BA53*($B53+$C53+$D53)/($B$19+$C$19+$D$19),0)","v":0},{"$f":"IFERROR(BB53*($B53+$C53+$D53)/($B$19+$C$19+$D$19),0)","v":0},{"$f":"IFERROR(BC53*($B53+$C53+$D53)/($B$19+$C$19+$D$19),0)","v":0},{"$f":"IFERROR(BD53*($B53+$C53+$D53)/($B$19+$C$19+$D$19),0)","v":0},{"$f":"IFERROR(BE53*($B53+$C53+$D53)/($B$19+$C$19+$D$19),0)","v":0},{"$f":"IFERROR(BF53*($B53+$C53+$D53)/($B$19+$C$19+$D$19),0)","v":0},{"$f":"IFERROR(BG53*($B53+$C53+$D53)/($B$19+$C$19+$D$19),0)","v":0},{"$f":"IFERROR(BH53*($B53+$C53+$D53)/($B$19+$C$19+$D$19),0)","v":0},null,null,null,null,null,null,null,null,null,null,null,null,null,null,null,null,null,null,null,null,null,null,null,null,null,null,null,null,null,null,null,null,null,null,null,null,null,null,null,null,null,null,null,null,null,null,null,null,null,0]
[54,0,0,0,null,0,0,0,0,0,0,0,0,1,0,null,0,0,1,0,1,"Puna-apilasäilörehu (75%), 1.sato, norm.",0,0,"kotoinen","karkearehu",null,25,0,10.4,0,null,null,null,null,null,0,0,0,190,440,58.975999999999999,100,110,5,0,100,11.6,2.2999999999999998,2.5,0.3,158,38,30,10,0.18,null,null,null,null,null,null,null,1083,33,null,null,0,0,0,0,0,0,0,0,0,0,0,0,0,0,0,0,0,0,0,0,0,null,null,null,null,null,null,null,null,null,null,null,null,null,null,null,null,null,null,null,null,null,null,null,null,null,null,null,null,null,null,null,null,null,null,null,null,null,null,null,null,null,null,null,null,null,null,null,null,null,0]
[55,0,0,0,null,0,0,0,0,0,0,0,0,1,0,null,0,0,1,0,1,"Rehukaalisäilörehu, aikainen korjuu",0,0,"kotoinen","karkearehu",null,17,0,10.199999999999999,0,null,null,null,null,null,0,0,0,160,230,42,0,100,5,null,null,20,4.2,2.9,2.6,160,95,20,8,null,null,null,null,null,null,null,null,1084,84,null,null,0,0,0,0,0,0,0,0,0,0,0,0,0,0,0,0,0,0,0,0,0,null,null,null,null,null,null,null,null,null,null,null,null,null,null,null,null,null,null,null,null,null,null,null,null,null,null,null,null,null,null,null,null,null,null,null,null,null,null,null,null,null,null,null,null,null,null,null,null,null,0]
[56,0,0,0,null,0,0,0,0,0,0,0,0,1,0,null,0,0,1,0,1,"Rehurapsi, myöhäinen korjuu",0,0,"kotoinen","karkearehu",null,15,0,11.2,0,null,null,null,null,null,0,0,0,125,380,-3,0,100,5,null,null,20,4.2,2.9,2.6,160,95,20,8,null,null,null,null,null,null,null,null,1085,85,null,null,0,0,0,0,0,0,0,0,0,0,0,0,0,0,0,0,0,0,0,0,0,null,null,null,null,null,null,null,null,null,null,null,null,null,null,null,null,null,null,null,null,null,null,null,null,null,null,null,null,null,null,null,null,null,null,null,null,null,null,null,null,null,null,null,null,null,null,null,null,null,0]
[57,0,0,0,null,0,0,0,0,0,0,0,0,1,0,null,0,0,1,0,1,"Sinimailassäilörehu, 1. sato, kuk. alku",0,0,"kotoinen","karkearehu",null,23,0,9,0,null,null,null,null,null,0,0,0,185,455,76.347999999999999,0,100,5,null,null,14,3,2.2000000000000002,0.6,190,38,63,7,0.1,null,null,null,null,null,null,null,2001,86,null,null,0,0,0,0,0,0,0,0,0,0,0,0,0,0,0,0,0,0,0,0,0,null,null,null,null,null,null,null,null,null,null,null,null,null,null,null,null,null,null,null,null,null,null,null,null,null,null,null,null,null,null,null,null,null,null,null,null,null,null,null,null,null,null,null,null,null,null,null,null,null,0]
[58,0,0,0,null,0,0,0,0,0,0,0,0,1,0,null,0,0,1,0,1,"Sinimailassäilörehu, 1. sato, lehtiaste",0,0,"kotoinen","karkearehu",null,23,0,10.199999999999999,0,null,null,null,null,null,0,0,0,230,455,103.464,0,100,5,null,null,14,3,2.2000000000000002,0.6,190,38,63,7,0.1,null,null,null,null,null,null,null,2002,87,null,null,0,0,0,0,0,0,0,0,0,0,0,0,0,0,0,0,0,0,0,0,0,null,null,null,null,null,null,null,null,null,null,null,null,null,null,null,null,null,null,null,null,null,null,null,null,null,null,null,null,null,null,null,null,null,null,null,null,null,null,null,null,null,null,null,null,null,null,null,null,null,0]
[59,0,0,0,null,0,0,0,0,0,0,0,0,1,0,null,0,0,1,0,1,"Sinimailassäilörehu, 1. sato, nuppuaste",0,0,"kotoinen","karkearehu",null,23,0,9.6,0,null,null,null,null,null,0,0,0,210,455,92.087999999999994,0,100,5,null,null,14,3,2.2000000000000002,0.6,190,38,63,7,0.1,null,null,null,null,null,null,null,2003,88,null,null,0,0,0,0,0,0,0,0,0,0,0,0,0,0,0,0,0,0,0,0,0,null,null,null,null,null,null,null,null,null,null,null,null,null,null,null,null,null,null,null,null,null,null,null,null,null,null,null,null,null,null,null,null,null,null,null,null,null,null,null,null,null,null,null,null,null,null,null,null,null,0]
[60,0,0,0,null,0,0,0,0,0,0,0,0,1,0,null,0,0,1,0,1,"Sokerijuurikkaan naatit",0,0,"kotoinen","karkearehu",null,13,0,10.4,0,null,null,null,null,null,0,0,0,195,280,63.128,0,100,5,null,null,14,2.4,7.3,12.3,650,250,200,16,0.25,null,null,null,50,null,null,null,2011,34,null,null,0,0,0,0,0,0,0,0,0,0,0,0,0,0,0,0,0,0,0,0,0,null,null,null,null,null,null,null,null,null,null,null,null,null,null,null,null,null,null,null,null,null,null,null,null,null,null,null,null,null,null,null,null,null,null,null,null,null,null,null,null,null,null,null,null,null,null,null,null,null,0]
[61,0,0,0,null,0,0,0,0,0,0,0,0,1,0,null,0,0,1,0,1,"Sokerijuurikkaan naattisäilörehu",0,0,"kotoinen","karkearehu",null,18,0,9.9,0,null,null,null,null,null,0,0,0,190,280,72,0,100,5,null,null,17,2.1,7.3,9,840,300,250,18,null,null,null,null,null,null,null,null,2012,35,null,null,0,0,0,0,0,0,0,0,0,0,0,0,0,0,0,0,0,0,0,0,0,null,null,null,null,null,null,null,null,null,null,null,null,null,null,null,null,null,null,null,null,null,null,null,null,null,null,null,null,null,null,null,null,null,null,null,null,null,null,null,null,null,null,null,null,null,null,null,null,null,0]
[62,0,0,0,null,0,0,0,0,0,0,0,0,1,0,null,0,0,1,0,1,"Testirehu Kaurakokoviljasäilörehu",0,0,"kotoinen","karkearehu",null,39,0,7.8,0,null,null,null,null,null,0,0,0,7,575,-7,165,94,4,110,55,3.1,2.2000000000000002,1.3,0.2,110,33,25,7,0.2,0.2,null,0.35,20,null,40,null,1002,36,null,null,0,0,0,0,0,0,0,0,0,0,0,0,0,0,0,0,0,0,0,0,0,null,null,null,null,null,null,null,null,null,null,null,null,null,null,null,null,null,null,null,null,null,null,null,null,null,null,null,null,null,null,null,null,null,null,null,null,null,null,null,null,null,null,null,null,null,null,null,null,null,0]
[63,0,30,0,null,2.91,0,66.666666666666657,1.2,30,90.3,4.3319999999999999,0.38060919943820232,1,0.3,30,0.35083475838725026,66.666666666666657,1,1333.333333333333,1,"Testirehu Ohrakokoviljasäilörehu",6666.6666666666652,1333.333333333333,"kotoinen","karkearehu",null,45,0,9.6999999999999993,0,null,null,null,null,6.5,14.44,1.49,0,100,496,-12,301,118,4,180,121,4.8,2.6,1.3,0.4,70,43,28,5,0.2,0.2,null,0.35,20,null,null,null,3020,37,null,null,30,148.80000000000001,-3.6,90.3,59,1.2,54,36.299999999999997,1.44,0.78,0.39,0.12,21,12.9,8.4,1.5,0.06,0.06,0,0.105,6,null,null,null,null,null,null,null,null,null,null,null,null,null,null,null,null,null,null,null,null,null,null,null,null,null,null,null,null,null,null,null,null,null,null,null,null,null,null,null,null,null,null,null,null,null,null,null,null,null,0]
[64,0,0,0,null,0,0,0,0,0,0,0,0,1,0,null,0,0,1,0,1,"Testirehu, Nurmisäilörehu 1. sato",0,0,"kotoinen","karkearehu",null,51,0,11.2,0,null,null,null,null,null,0,0,0,132,537,8,173,110,3,5,168,5.9,3,1.8,0.2,180,61,31,7,0.3,0.3,null,0.35,20,null,null,null,1003,38,null,null,0,0,0,0,0,0,0,0,0,0,0,0,0,0,0,0,0,0,0,0,0,null,null,null,null,null,null,null,null,null,null,null,null,null,null,null,null,null,null,null,null,null,null,null,null,null,null,null,null,null,null,null,null,null,null,null,null,null,null,null,null,null,null,null,null,null,null,null,null,null,0]
[65,0,0,0,null,0,0,0,0,0,0,0,0,1,0,null,0,0,1,0,1,"Testirehu, Nurmisäilörehu 2. sato",0,0,"kotoinen","karkearehu",null,40,0,10.4,0,null,null,null,null,null,0,0,0,167,564,47,103,100,2,3,100,3.8,3.4,1.8,0.2,180,61,31,7,0.3,0.3,null,0.35,20,null,null,null,3021,39,null,null,0,0,0,0,0,0,0,0,0,0,0,0,0,0,0,0,0,0,0,0,0,null,null,null,null,null,null,null,null,null,null,null,null,null,null,null,null,null,null,null,null,null,null,null,null,null,null,null,null,null,null,null,null,null,null,null,null,null,null,null,null,null,null,null,null,null,null,null,null,null,0]
[66,0,30,0,null,3.45,0,76.923076923076934,3,50.1,11.7,5.7690000000000001,0.5057496488764045,1,0.3,30,0.40480933660067348,76.923076923076934,{"$f":"IF(Z66=\"karkearehu\",1,0)","v":1},{"$f":"S66*X66","v":1538.4615384615383},1,"Testirehu, Nurmisäilörehu, tuore 1. sato",7692.3076923076924,1538.4615384615383,"kotoinen","karkearehu",null,39,0,11.5,0,null,200,{"$f":"AG66*AB66/100","v":78},null,7.5,19.23,1.67,0,167,567,36,39,105,10,5,34,5.8,3.2,1.8,0.2,180,61,31,7,0.3,0.3,null,0.35,20,null,null,null,3031,40,null,null,50.1,170.1,10.8,11.7,52.5,3,1.5,10.199999999999999,1.74,0.96,0.54,0.06,54,18.3,9.3000000000000007,2.1,0.09,0.09,0,0.105,6,null,null,null,null,null,null,null,null,null,null,null,null,null,null,null,null,null,null,null,null,null,null,null,null,null,null,null,null,null,null,null,null,null,null,null,null,null,null,null,null,null,null,null,null,null,null,null,null,null,0]
[67,0,0,0,null,0,0,0,0,0,0,0,0,1,0,null,0,0,{"$f":"IF(Z67=\"karkearehu\",1,0)","v":1},{"$f":"S67*X67","v":0},1,"Testirehu, Nurmisäilörehu, tuore 2. sato",0,0,"kotoinen","karkearehu",null,19,0,9.5,0,null,null,null,null,null,0,0,0,151,626,41,35,82,33,9,26,3.7,2.2000000000000002,1.8,0.2,180,61,31,7,0.3,0.3,null,0.35,20,null,null,"Tämä on Arton testirehu.",3032,42,null,null,0,0,0,0,0,0,0,0,0,0,0,0,0,0,0,0,0,0,0,0,0,null,null,null,null,null,null,null,null,null,null,null,null,null,null,null,null,null,null,null,null,null,null,null,null,null,null,null,null,null,null,null,null,null,null,null,null,null,null,null,null,null,null,null,null,null,null,null,null,null,0]
[68,0,0,0,null,0,0,0,0,0,0,0,0,1,0,null,0,0,1,0,1,"Vehnän ja rukiin olki",0,0,"kotoinen","karkearehu",null,85,0,5.3,0,null,null,null,null,null,0,0,0,30,null,-34.119999999999997,0,null,null,0,null,2.2999999999999998,1,1,0.2,70,70,25,4,0.1,null,null,null,null,null,null,null,3075,43,null,null,0,0,0,0,0,0,0,0,0,0,0,0,0,0,0,0,0,0,0,0,0,null,null,null,null,null,null,null,null,null,null,null,null,null,null,null,null,null,null,null,null,null,null,null,null,null,null,null,null,null,null,null,null,null,null,null,null,null,null,null,null,null,null,null,null,null,null,null,null,null,0]
[69,0,0,0,null,0,0,0,0,0,0,0,0,1,0,null,0,0,1,0,1,"Vihantaohrasäilörehu",0,0,"kotoinen","karkearehu",null,33,0,10.4368,0,null,null,null,null,null,0,0,0,155,400,30,70,null,null,50,20,5.6,3.5,1.6,1.1000000000000001,70,41,60,7,null,0.03,null,null,null,null,null,null,2021,44,null,null,{"$f":"IFERROR(AN69*($B69+$C69+$D69)/($B$19+$C$19+$D$19),0)","v":0},0,0,0,0,0,0,0,0,0,0,0,0,0,0,0,0,0,0,0,0,null,null,null,null,null,null,null,null,null,null,null,null,null,null,null,null,null,null,null,null,null,null,null,null,null,null,null,null,null,null,null,null,null,null,null,null,null,null,null,null,null,null,null,null,null,null,null,null,null,0]
[70,0,0,0,null,0,0,0,0,0,0,0,0,1,0,null,0,0,1,0,1,"Vuohenhernesäilörehu, kevätsato",0,0,"kotoinen","karkearehu",null,16,0,10.1,0,null,null,null,null,null,0,0,0,230,480,105,0,100,5,null,null,8,3,2.2000000000000002,null,100,40,30,12,null,null,null,null,null,null,null,null,3076,89,null,null,0,0,0,0,0,0,0,0,0,0,0,0,0,0,0,0,0,0,0,0,0,null,null,null,null,null,null,null,null,null,null,null,null,null,null,null,null,null,null,null,null,null,null,null,null,null,null,null,null,null,null,null,null,null,null,null,null,null,null,null,null,null,null,null,null,null,null,null,null,null,0]
[71,0,0,0,null,0,0,0,0,0,0,0,0,1,0,null,0,0,1,0,1,"Vuohenhernesäilörehu, syyssato",0,0,"kotoinen","karkearehu",null,23,0,9,0,null,null,null,null,null,0,0,0,177,480,69,0,100,5,null,null,8,3,2.2000000000000002,null,100,40,30,12,null,null,null,null,null,null,null,null,2022,45,null,null,0,0,0,0,0,0,0,0,0,0,0,0,0,0,0,0,0,0,0,0,0,null,null,null,null,null,null,null,null,null,null,null,null,null,null,null,null,null,null,null,null,null,null,null,null,null,null,null,null,null,null,null,null,null,null,null,null,null,null,null,null,null,null,null,null,null,null,null,null,null,0]
[72,0,0,0,null,0,0,0,0,0,0,0,0,5,0,null,0,0,0,0,1,"Farmarin Biotiinikivennäinen",0,0,"osto","kivennäisseos",null,89,0,5,0,null,null,null,null,null,0,0,0,9,41,14,10,null,0,10,0,245,0,84,118,3674,1826,3022,398,11,17,90,null,109551,36517,730,null,null,null,null,null,0,0,0,0,0,0,0,0,0,0,0,0,0,0,0,0,0,0,0,0,0,null,null,null,null,null,null,null,null,null,null,null,null,null,null,null,null,null,null,null,null,null,null,null,null,null,null,null,null,null,null,null,null,null,null,null,null,null,null,null,null,null,null,null,null,null,null,null,null,null,0]
[73,0,0,0,null,0,0,0,0,0,0,0,0,5,0,null,0,0,0,0,1,"Farmarin Kasvukivennäinen",0,0,"osto","kivennäisseos",null,89,0,5,0,null,null,null,null,null,0,0,0,9,41,14,10,null,0,10,0,253,11,56,118,2713,1438,2427,315,8,34,72,null,67416,22472,1685,null,null,null,null,null,0,0,0,0,0,0,0,0,0,0,0,0,0,0,0,0,0,0,0,0,0,null,null,null,null,null,null,null,null,null,null,null,null,null,null,null,null,null,null,null,null,null,null,null,null,null,null,null,null,null,null,null,null,null,null,null,null,null,null,null,null,null,null,null,null,null,null,null,null,null,0]
[74,0,0,0,null,0,0,0,0,0,0,0,0,5,0,null,0,0,0,0,1,"Farmarin Pihattokivennäinen",0,0,"osto","kivennäisseos",null,89,0,5,0,null,null,null,null,null,0,0,0,9,41,14,10,null,0,10,0,247,0,79,118,3483,1528,2876,360,11,18,90,null,84270,28090,562,null,null,null,null,null,0,0,0,0,0,0,0,0,0,0,0,0,0,0,0,0,0,0,0,0,0,null,null,null,null,null,null,null,null,null,null,null,null,null,null,null,null,null,null,null,null,null,null,null,null,null,null,null,null,null,null,null,null,null,null,null,null,null,null,null,null,null,null,null,null,null,null,null,null,null,0]
[75,0,0,0,null,0,0,0,0,0,0,0,0,5,0,null,0,0,0,0,1,"Farmarin Seleenikivennäinen",0,0,"osto","kivennäisseos",null,89,0,5,0,null,null,null,null,null,0,0,0,9,41,14,10,null,0,10,0,213,11,90,129,3899,2899,5067,652,18,45,146,null,168539,56180,1124,null,null,91,null,null,0,0,0,0,0,0,0,0,0,0,0,0,0,0,0,0,0,0,0,0,0,null,null,null,null,null,null,null,null,null,null,null,null,null,null,null,null,null,null,null,null,null,null,null,null,null,null,null,null,null,null,null,null,null,null,null,null,null,null,null,null,null,null,null,null,null,null,null,null,null,0]
[76,0,0,0,null,0,0,0,0,0,0,0,0,5,0,null,0,0,0,0,1,"Farmarin Seoskivennäinen",0,0,"osto","kivennäisseos",null,89,0,5,0,null,null,null,null,null,0,0,0,9,41,14,10,null,0,10,0,307,0,34,90,2022,1084,1787,225,7,11,54,null,50562,16854,337,null,null,92,null,null,0,0,0,0,0,0,0,0,0,0,0,0,0,0,0,0,0,0,0,0,0,null,null,null,null,null,null,null,null,null,null,null,null,null,null,null,null,null,null,null,null,null,null,null,null,null,null,null,null,null,null,null,null,null,null,null,null,null,null,null,null,null,null,null,null,null,null,null,null,null,0]
[77,0,0,0,null,0,0,0,0,0,0,0,0,5,0,null,0,0,0,0,1,"Kasvu Namino, Hankkija",0,0,"osto","kivennäisseos",null,89,0,5,0,null,null,null,null,null,0,0,0,9,41,14,10,null,0,10,0,164,11,34,52,1719,1910,3596,449,13,21,112,null,84270,28090,562,null,null,93,null,null,0,0,0,0,0,0,0,0,0,0,0,0,0,0,0,0,0,0,0,0,0,null,null,null,null,null,null,null,null,null,null,null,null,null,null,null,null,null,null,null,null,null,null,null,null,null,null,null,null,null,null,null,null,null,null,null,null,null,null,null,null,null,null,null,null,null,null,null,null,null,0]
[78,0,0,0,null,0,0,0,0,0,0,0,0,5,0,null,0,0,0,0,1,"Kasvuape Biotiini, A-Rehu",0,0,"osto","kivennäisseos",null,89,0,0.8,0,null,null,null,null,null,0,0,0,4.5999999999999996,7,-2,1,null,0,1,0,283,0,39,79,2959,970,1601,279,9,10,89,null,168539,50562,506,null,null,94,null,null,0,0,0,0,0,0,0,0,0,0,0,0,0,0,0,0,0,0,0,0,0,null,null,null,null,null,null,null,null,null,null,null,null,null,null,null,null,null,null,null,null,null,null,null,null,null,null,null,null,null,null,null,null,null,null,null,null,null,null,null,null,null,null,null,null,null,null,null,null,null,0]
[79,0,0,0,null,0,0,0,0,0,0,0,0,5,0,null,0,0,0,0,1,"Kasvuape E-Hiven, A-Rehu",0,0,"osto","kivennäisseos",null,89,0,0.8,0,null,null,null,null,null,0,0,0,4.5999999999999996,7,-2,1,null,0,1,0,292,0,39,79,2959,1616,2669,464,16,17,147,null,280899,84270,1348,null,null,102,null,null,0,0,0,0,0,0,0,0,0,0,0,0,0,0,0,0,0,0,0,0,0,null,null,null,null,null,null,null,null,null,null,null,null,null,null,null,null,null,null,null,null,null,null,null,null,null,null,null,null,null,null,null,null,null,null,null,null,null,null,null,null,null,null,null,null,null,null,null,null,null,0]
[80,0,0,2,null,1.6E-2,0,0,0,9.1999999999999998E-2,0.02,0.89879999999999993,7.8904494382022475E-2,5,0.02,2,1.1825890732154506E-2,2.2471910112359552,0,0,1,"KasvuApeKivennäinen, A-Rehu",224.71910112359552,44.943820224719104,"osto","kivennäisseos",null,89,0,0.8,0,null,50,{"$f":"AG80*AB80/100","v":44.5},null,40,44.94,56.18,0,4.5999999999999996,7,-2,1,null,0,1,0,292,0,39,79,2959,970,1601,279,9,10,89,null,168539,50562,506,null,null,95,null,null,9.1999999999999998E-2,0.14000000000000001,-0.04,0.02,0,0,0.02,0,5.84,0,0.78,1.58,59.18,19.399999999999999,32.020000000000003,5.58,0.18,0.2,1.78,0,3370.78,null,null,null,null,null,null,null,null,null,null,null,null,null,null,null,null,null,null,null,null,null,null,null,null,null,null,null,null,null,null,null,null,null,null,null,null,null,null,null,null,null,null,null,null,null,null,null,null,null,0]
[81,0,0,0,null,0,0,0,0,0,0,0,0,5,0,null,0,0,0,0,1,"Kinnusen Mylly, Kalsium-Tähti",0,0,"osto","kivennäisseos",null,89,0,6,0,null,null,null,null,null,0,0,0,7.7,40,7,10,null,0,10,0,135,1,28,56,2959,1124,1966,365,34,30,101,null,185393,56180,607,null,null,97,null,null,0,0,0,0,0,0,0,0,0,0,0,0,0,0,0,0,0,0,0,0,0,null,null,null,null,null,null,null,null,null,null,null,null,null,null,null,null,null,null,null,null,null,null,null,null,null,null,null,null,null,null,null,null,null,null,null,null,null,null,null,null,null,null,null,null,null,null,null,null,null,0]
[82,0,0,0,null,0,0,0,0,0,0,0,0,5,0,null,0,0,0,0,1,"Kinnusen Mylly, Tähtikasvu Täyskiven",0,0,"osto","kivennäisseos",null,89,0,5,0,null,null,null,null,null,0,0,0,7.5,40,7,10,null,0,10,0,292,0,39,73,2959,1124,1910,337,31,33,101,null,179775,56180,607,null,null,98,null,null,0,0,0,0,0,0,0,0,0,0,0,0,0,0,0,0,0,0,0,0,0,null,null,null,null,null,null,null,null,null,null,null,null,null,null,null,null,null,null,null,null,null,null,null,null,null,null,null,null,null,null,null,null,null,null,null,null,null,null,null,null,null,null,null,null,null,null,null,null,null,0]
[83,0,0,0,null,0,0,0,0,0,0,0,0,5,0,null,0,0,0,0,1,"Seleeni Hertta Muro, Hankkija",0,0,"osto","kivennäisseos",null,89,0,5,0,null,null,null,null,null,0,0,0,9,41,14,10,null,0,10,0,236,17,79,90,3202,2730,4449,607,21,34,140,null,134831,89888,899,null,1014,48,null,null,0,0,0,0,0,0,0,0,0,0,0,0,0,0,0,0,0,0,0,0,0,null,null,null,null,null,null,null,null,null,null,null,null,null,null,null,null,null,null,null,null,null,null,null,null,null,null,null,null,null,null,null,null,null,null,null,null,null,null,null,null,null,null,null,null,null,null,null,null,null,0]
[84,0,0,0,null,0,0,0,0,0,0,0,0,5,0,null,0,0,0,0,1,"Seleeni Hertta Muro, Hankkija",0,0,"osto","kivennäisseos",null,89,0,5,0,null,null,null,null,null,0,0,0,9,41,14,10,null,0,10,0,205,15,70,80,null,2430,3960,540,null,30,125,null,120000,800,80000,null,1014,99,null,null,0,0,0,0,0,0,0,0,0,0,0,0,0,0,0,0,0,0,0,0,0,null,null,null,null,null,null,null,null,null,null,null,null,null,null,null,null,null,null,null,null,null,null,null,null,null,null,null,null,null,null,null,null,null,null,null,null,null,null,null,null,null,null,null,null,null,null,null,null,null,0]
[85,{"$f":"IF(N85=3,P85,IF(N85=4,P85,0))","v":0},{"$f":"IF(N85=1,P85,IF(N85=2,P85,0))","v":0},{"$f":"IF(N85=5,P85,0)","v":0},null,{"$f":"IFERROR(AD85*U85*(B85+C85+D85)/(B$19+C$19+D$19),0)","v":0},0,0,{"$f":"IFERROR(AS85*U85*C85/(B$19+C$19+D$19),0)","v":0},{"$f":"IFERROR(AN85*U85*(B85+C85+D85)/($B$19+$C$19+$D$19),0)","v":0},{"$f":"IFERROR(AQ85*U85*(B85+C85+D85)/($B$19+C$19+D$19),0)","v":0},{"$f":"IFERROR(AK85*U85*(B85+C85+D85)/(B$19+C$19+D$19),0)","v":0},{"$f":"AL85*F85/F$19","v":0},{"$f":"IF(AND(Y85=\"kotoinen\",Z85=\"karkearehu\"),1,IF(AND(Y85=\"osto\",Z85=\"karkearehu\"),2,IF(AND(Y85=\"kotoinen\",Z85=\"väkirehu\"),3,IF(AND(Y85=\"osto\",Z85=\"väkirehu\"),4,IF(Z85=\"kivennäisseos\",5,0)))))","v":5},{"$f":"IFERROR(P85/F$18,0)","v":0},0,{"$f":"R85/R$19","v":0},{"$f":"IFERROR(P85/AB85*100,0)","v":0},0,0,1,"Tähti-Seoskivennäinen, Kinnusen Mylly",{"$f":"IFERROR(Q85*W$8,0)","v":0},{"$f":"IFERROR(W85*X$7/W$7,0)","v":0},"osto","kivennäisseos",null,89,{"$f":"AB85/100*AA85","v":0},5,{"$f":"AC85*AD85","v":0},null,null,null,null,null,{"$f":"IF(AB85<>0,ROUND(AJ85/(AB85/100),2),0)","v":0},{"$f":"IF(AD85<>0,ROUND(AK85/AD85,2),0)","v":0},{"$f":"AA85*AJ85/100","v":0},9,40,14,{"$f":"AT85+AU85","v":10},null,0,10,0,130,0,40,60,2959,843,1461,240,26,28,75,null,134831,42135,470,null,null,41,null,null,{"$f":"IFERROR(AN85*($B85+$C85+$D85)/($B$19+$C$19+$D$19),0)","v":0},0,0,0,{"$f":"IFERROR(AR85*($B85+$C85+$D85)/($C$19),0)","v":0},0,0,0,{"$f":"IFERROR(AV85*($B85+$C85+$D85)/($B$19+$C$19+$D$19),0)","v":0},{"$f":"IFERROR(AW85*($B85+$C85+$D85)/($B$19+$C$19+$D$19),0)","v":0},{"$f":"IFERROR(AX85*($B85+$C85+$D85)/($B$19+$C$19+$D$19),0)","v":0},{"$f":"IFERROR(AY85*($B85+$C85+$D85)/($B$19+$C$19+$D$19),0)","v":0},{"$f":"IFERROR(AZ85*($B85+$C85+$D85)/($B$19+$C$19+$D$19),0)","v":0},{"$f":"IFERROR(BA85*($B85+$C85+$D85)/($B$19+$C$19+$D$19),0)","v":0},{"$f":"IFERROR(BB85*($B85+$C85+$D85)/($B$19+$C$19+$D$19),0)","v":0},{"$f":"IFERROR(BC85*($B85+$C85+$D85)/($B$19+$C$19+$D$19),0)","v":0},{"$f":"IFERROR(BD85*($B85+$C85+$D85)/($B$19+$C$19+$D$19),0)","v":0},{"$f":"IFERROR(BE85*($B85+$C85+$D85)/($B$19+$C$19+$D$19),0)","v":0},{"$f":"IFERROR(BF85*($B85+$C85+$D85)/($B$19+$C$19+$D$19),0)","v":0},{"$f":"IFERROR(BG85*($B85+$C85+$D85)/($B$19+$C$19+$D$19),0)","v":0},{"$f":"IFERROR(BH85*($B85+$C85+$D85)/($B$19+$C$19+$D$19),0)","v":0},null,null,null,null,null,null,null,null,null,null,null,null,null,null,null,null,null,null,null,null,null,null,null,null,null,null,null,null,null,null,null,null,null,null,null,null,null,null,null,null,null,null,null,null,null,null,null,null,null,0]
[86,0,0,0,null,0,{"$f":"IFERROR(B86/AB86*100,0)","v":0},{"$f":"IFERROR(C86/AB86*100,0)","v":0},0,0,0,0,0,4,0,null,0,0,0,0,{"$f":"IFERROR(IF(OFFSET(O86,0,V$2-1)>0,1,0),0)","v":1},"Erotusmelassi",0,0,"osto","väkirehu",null,74,0,10.7,0,null,null,null,null,null,0,0,0,265,0,150,450,null,0,0,450,7,1,4,49,600,60,150,35,16,null,null,null,null,null,null,null,2032,134,null,null,0,0,0,0,0,0,0,0,0,0,0,0,0,0,0,0,0,0,0,0,0,null,null,null,null,null,null,null,null,null,null,null,null,null,null,null,null,null,null,null,null,null,null,null,null,null,null,null,null,null,null,null,null,null,null,null,null,null,null,null,null,null,null,null,null,null,null,null,null,null,0]
[87,0,0,0,null,0,0,0,0,0,0,0,0,4,0,null,0,0,0,0,1,"Glukoosimelassi",0,0,"osto","väkirehu",null,57,0,14.5,0,null,null,null,null,null,0,0,0,3,0,-136,450,null,0,0,450,7,1,4,49,600,60,150,35,16,null,null,null,null,null,null,null,2041,135,null,null,0,0,0,0,0,0,0,0,0,0,0,0,0,0,0,0,0,0,0,0,0,null,null,null,null,null,null,null,null,null,null,null,null,null,null,null,null,null,null,null,null,null,null,null,null,null,null,null,null,null,null,null,null,null,null,null,null,null,null,null,null,null,null,null,null,null,null,null,null,null,0]
[88,0,0,0,null,0,0,0,0,0,0,0,0,4,0,null,0,0,0,0,1,"Hera (märehtijät)",0,0,"osto","väkirehu",null,6,0,13.1,0,null,null,null,null,null,0,0,0,110,0,-44,0,null,0,0,null,7.2,7.9,1.4,10.6,92,3,17,22,0,0.1,null,null,null,null,null,null,2042,136,null,null,0,0,0,0,0,0,0,0,0,0,0,0,0,0,0,0,0,0,0,0,0,null,null,null,null,null,null,null,null,null,null,null,null,null,null,null,null,null,null,null,null,null,null,null,null,null,null,null,null,null,null,null,null,null,null,null,null,null,null,null,null,null,null,null,null,null,null,null,null,null,0]
[89,0,0,0,null,0,0,0,0,0,0,0,0,4,0,null,0,0,0,0,1,"Herajauhe (märehtijät)",0,0,"osto","väkirehu",null,96,0,13.2,0,null,null,null,null,null,0,0,0,125,0,-33,0,null,0,0,null,5.5,6,1.3,5.5,2,3,2,4,null,1,null,null,null,null,null,null,3006,137,null,null,0,0,0,0,0,0,0,0,0,0,0,0,0,0,0,0,0,0,0,0,0,null,null,null,null,null,null,null,null,null,null,null,null,null,null,null,null,null,null,null,null,null,null,null,null,null,null,null,null,null,null,null,null,null,null,null,null,null,null,null,null,null,null,null,null,null,null,null,null,null,0]
[90,0,0,0,null,0,0,0,0,0,0,0,0,4,0,null,0,0,0,0,1,"Härkäpapu",0,0,"osto","väkirehu",null,86,0,12.8,0,null,null,null,null,null,0,0,0,300,150,125,420,null,0,380,40,1.8,6.5,1.5,0.2,66,20,51,15,0.2,0.02,null,0.5,null,null,15,null,2023,138,null,null,0,0,0,0,0,0,0,0,0,0,0,0,0,0,0,0,0,0,0,0,0,null,null,null,null,null,null,null,null,null,null,null,null,null,null,null,null,null,null,null,null,null,null,null,null,null,null,null,null,null,null,null,null,null,null,null,null,null,null,null,null,null,null,null,null,null,null,null,null,null,0]
[91,0,0,0,null,0,0,0,0,0,0,0,0,4,0,null,0,0,0,0,1,"Kasviöljy",0,0,"osto","väkirehu",null,100,0,32.5,0,null,null,null,null,null,0,0,0,0,0,-144,0,null,0,0,0,null,null,null,null,null,null,null,null,null,null,null,null,null,null,null,"Tälle rehulle ei löytynyt  vastaavaa rehua  MTT:n kivennäistaulkosta",3087,139,null,null,0,0,0,0,0,0,0,0,0,0,0,0,0,0,0,0,0,0,0,0,0,null,null,null,null,null,null,null,null,null,null,null,null,null,null,null,null,null,null,null,null,null,null,null,null,null,null,null,null,null,null,null,null,null,null,null,null,null,null,null,null,null,null,null,null,null,null,null,null,null,0]
[92,0,0,0,null,0,0,0,0,0,0,0,0,4,0,null,0,0,0,0,1,"Kaura, 35 - 45 kg/hl",0,0,"osto","väkirehu",null,86,0,10.4,0,null,null,null,null,null,0,0,0,120,350,2,368,null,0,350,18,0.8,4,1.3,0.2,52,66,41,4,7.0000000000000007E-2,0.09,0.1,0.4,null,null,null,null,3077,140,null,null,0,0,0,0,0,0,0,0,0,0,0,0,0,0,0,0,0,0,0,0,0,null,null,null,null,null,null,null,null,null,null,null,null,null,null,null,null,null,null,null,null,null,null,null,null,null,null,null,null,null,null,null,null,null,null,null,null,null,null,null,null,null,null,null,null,null,null,null,null,null,0]
[93,0,0,0,null,0,0,0,0,0,0,0,0,4,0,null,0,0,0,0,1,"Kaura, 45 - 54 kg/hl",0,0,"osto","väkirehu",null,86,0,11.5,0,null,null,null,null,null,0,0,0,130,310,-1,438,null,0,420,18,0.8,4,1.3,0.2,52,66,41,4,7.0000000000000007E-2,0.09,0.1,0.4,null,null,null,null,3078,141,null,null,0,0,0,0,0,0,0,0,0,0,0,0,0,0,0,0,0,0,0,0,0,null,null,null,null,null,null,null,null,null,null,null,null,null,null,null,null,null,null,null,null,null,null,null,null,null,null,null,null,null,null,null,null,null,null,null,null,null,null,null,null,null,null,null,null,null,null,null,null,null,0]
[94,0,0,0,null,0,0,0,0,0,0,0,0,4,0,null,0,0,0,0,1,"Kaura, 54 - 58 kg/hl",0,0,"osto","väkirehu",null,86,0,12.1,0,null,50,{"$f":"AG94*AB94/100","v":43},null,null,0,0,0,134,290,-2,458,null,0,440,18,0.8,4,1.3,0.2,52,66,41,4,0.1,0.1,0.1,0.4,null,null,null,null,3080,142,null,null,0,0,0,0,0,0,0,0,0,0,0,0,0,0,0,0,0,0,0,0,0,null,null,null,null,null,null,null,null,null,null,null,null,null,null,null,null,null,null,null,null,null,null,null,null,null,null,null,null,null,null,null,null,null,null,null,null,null,null,null,null,null,null,null,null,null,null,null,null,null,0]
[95,0,0,0,null,0,0,0,0,0,0,0,0,4,0,null,0,0,0,0,1,"Kaura, kuoreton tai kuorittu",0,0,"osto","väkirehu",null,86,0,14.2,0,null,null,null,null,null,0,0,0,162,120,6,670,null,0,650,20,0.6,5.2,1.5,0.1,68,50,42,5,0.01,0.12,null,0.2,null,null,15,null,1011,143,null,null,0,0,0,0,0,0,0,0,0,0,0,0,0,0,0,0,0,0,0,0,0,null,null,null,null,null,null,null,null,null,null,null,null,null,null,null,null,null,null,null,null,null,null,null,null,null,null,null,null,null,null,null,null,null,null,null,null,null,null,null,null,null,null,null,null,null,null,null,null,null,0]
[96,0,0,0,null,0,0,0,0,0,0,0,0,4,0,null,0,0,0,0,1,"Kaura, yli  58 kg/hl",0,0,"osto","väkirehu",null,86,0,12.3,0,null,null,null,null,null,0,0,0,134,280,-5,478,null,0,460,18,0.8,4,1.3,0.2,52,66,41,4,7.0000000000000007E-2,0.09,0.1,0.4,null,null,null,null,3081,144,null,null,0,0,0,0,0,0,0,0,0,0,0,0,0,0,0,0,0,0,0,0,0,null,null,null,null,null,null,null,null,null,null,null,null,null,null,null,null,null,null,null,null,null,null,null,null,null,null,null,null,null,null,null,null,null,null,null,null,null,null,null,null,null,null,null,null,null,null,null,null,null,{"$f":"BN96-DK96","v":0}]
[97,0,0,0,null,0,0,0,0,0,0,0,0,4,0,null,0,0,0,0,1,"Kaurarehujauho",0,0,"osto","väkirehu",null,88,0,12.7,0,null,null,null,null,null,0,0,0,160,150,29,410,null,0,400,10,0.5,3.7,1.2,null,70,35,35,0.06,null,null,null,null,null,null,15,null,3007,146,null,null,0,0,0,0,0,0,0,0,0,0,0,0,0,0,0,0,0,0,0,0,0,null,null,null,null,null,null,null,null,null,null,null,null,null,null,null,null,null,null,null,null,null,null,null,null,null,null,null,null,null,null,null,null,null,null,null,null,null,null,null,null,null,null,null,null,null,null,null,null,null,0]
[98,0,0,0,null,0,0,0,0,0,0,0,0,4,0,null,0,0,0,0,1,"Leipäjauho",0,0,"osto","väkirehu",null,92,0,13.4,0,null,null,null,null,null,0,0,0,140,150,-12,770,null,0,650,120,0.5,3.7,1.2,null,70,35,35,6,0.1,null,null,null,null,null,null,"huom!",3088,145,null,null,0,0,0,0,0,0,0,0,0,0,0,0,0,0,0,0,0,0,0,0,0,null,null,null,null,null,null,null,null,null,null,null,null,null,null,null,null,null,null,null,null,null,null,null,null,null,null,null,null,null,null,null,null,null,null,null,null,null,null,null,null,null,null,null,null,null,null,null,null,null,0]
[99,0,0,0,null,0,0,0,0,0,0,0,0,4,0,null,0,0,0,0,1,"Melassileike",0,0,"osto","väkirehu",null,90,0,12.2,0,null,null,null,null,null,0,0,0,119,340,-32,128,null,0,0,128,9.5,0.7,1.3,5.5,500,50,30,10,null,null,null,null,null,null,null,null,1012,147,null,null,0,0,0,0,0,0,0,0,0,0,0,0,0,0,0,0,0,0,0,0,0,null,null,null,null,null,null,null,null,null,null,null,null,null,null,null,null,null,null,null,null,null,null,null,null,null,null,null,null,null,null,null,null,null,null,null,null,null,null,null,null,null,null,null,null,null,null,null,null,null,0]
[100,0,0,0,null,0,0,0,0,0,0,0,0,4,0,null,0,0,0,0,1,"Mäski, tuore",0,0,"osto","väkirehu",null,22,0,10.7,0,null,null,null,null,null,0,0,0,230,570,80,60,null,0,50,10,2.2000000000000002,3.5,1.6,0.1,470,45,110,11,0.1,null,null,null,null,null,25,null,3089,49,null,null,0,0,0,0,0,0,0,0,0,0,0,0,0,0,0,0,0,0,0,0,0,null,null,null,null,null,null,null,null,null,null,null,null,null,null,null,null,null,null,null,null,null,null,null,null,null,null,null,null,null,null,null,null,null,null,null,null,null,null,null,null,null,null,null,null,null,null,null,null,null,0]
[101,0,0,0,null,0,0,0,0,0,0,0,0,4,0,null,0,0,0,0,1,"Mäskijauho",0,0,"osto","väkirehu",null,92,0,10,0,null,null,null,null,null,0,0,0,230,570,85,60,null,0,50,10,2.2000000000000002,3.5,1.6,0.1,470,45,110,11,0.1,null,null,null,null,null,null,null,3008,50,null,null,{"$f":"IFERROR(AN101*($B101+$C101+$D101)/($B$19+$C$19+$D$19),0)","v":0},0,0,0,0,0,0,0,0,0,0,0,0,0,0,0,0,0,0,0,0,null,null,null,null,null,null,null,null,null,null,null,null,null,null,null,null,null,null,null,null,null,null,null,null,null,null,null,null,null,null,null,null,null,null,null,null,null,null,null,null,null,null,null,null,null,null,null,null,null,0]
[102,0,0,0,null,0,0,0,0,0,0,0,0,4,0,null,0,0,0,0,1,"Ohra, 40 - 54 kg/hl",0,0,"osto","väkirehu",null,86,0,12.3,0,null,null,null,null,null,0,0,0,126,300,-11,300,null,0,280,20,0.5,4.0999999999999996,1.4,0.1,50,24,39,7,0.13,0.09,0.2,0.3,null,null,null,null,3082,51,null,null,0,0,0,0,0,0,0,0,0,0,0,0,0,0,0,0,0,0,0,0,0,null,null,null,null,null,null,null,null,null,null,null,null,null,null,null,null,null,null,null,null,null,null,null,null,null,null,null,null,null,null,null,null,null,null,null,null,null,null,null,null,null,null,null,null,null,null,null,null,null,0]
[103,0,0,0,null,0,0,0,0,0,0,0,0,4,0,null,0,0,0,0,1,"Ohra, 54 - 62 kg/hl",0,0,"osto","väkirehu",null,86,0,12.9,0,null,300,{"$f":"AG103*AB103/100","v":258},null,null,0,0,0,126,230,-17,520,null,0,500,20,0.5,4.0999999999999996,1.4,0.1,50,24,39,7,0.1,0.1,0.2,0.3,null,null,null,null,3084,52,null,null,0,0,0,0,0,0,0,0,0,0,0,0,0,0,0,0,0,0,0,0,0,null,null,null,null,null,null,null,null,null,null,null,null,null,null,null,null,null,null,null,null,null,null,null,null,null,null,null,null,null,null,null,null,null,null,null,null,null,null,null,null,null,null,null,null,null,null,null,null,null,0]
[104,0,0,0,null,0,0,0,0,0,0,0,0,4,0,null,0,0,0,0,1,"Ohra, paljassiemeninen",0,0,"osto","väkirehu",null,86,0,13.8,0,null,null,null,null,null,0,0,0,150,200,-5,730,null,0,700,30,0.3,5.5,1.5,null,80,23,57,8,null,null,null,null,null,null,null,null,3101,152,null,null,0,0,0,0,0,0,0,0,0,0,0,0,0,0,0,0,0,0,0,0,0,null,null,null,null,null,null,null,null,null,null,null,null,null,null,null,null,null,null,null,null,null,null,null,null,null,null,null,null,null,null,null,null,null,null,null,null,null,null,null,null,null,null,null,null,null,null,null,null,null,0]
[105,38,0,0,null,5.016,44.186046511627907,0,0,47.88,220.4,7.9534000000000002,0.70009129213483157,4,0.38,38,0.23253001427992173,44.186046511627907,0,0,1,"Ohra, yli 62 kg/hl",4418.604651162791,883.7209302325582,"osto","väkirehu",null,86,0,13.2,0,null,null,null,null,18,20.93,1.59,0,126,210,-46,580,null,0,560,20,0.5,4.0999999999999996,1.4,0.1,50,24,39,7,0.1,0.1,0.2,0.3,null,null,null,null,1005,100,null,null,47.88,79.8,-17.48,220.4,0,0,212.8,7.6,0.19,1.5579999999999998,0.53199999999999992,3.8000000000000006E-2,19,9.1199999999999992,14.82,2.66,3.8000000000000006E-2,3.8000000000000006E-2,7.6000000000000012E-2,0.114,0,null,null,null,null,null,null,null,null,null,null,null,null,null,null,null,null,null,null,null,null,null,null,null,null,null,null,null,null,null,null,null,null,null,null,null,null,null,null,null,null,null,null,null,null,null,null,null,null,null,0]
[106,0,0,0,null,0,0,0,0,0,0,0,0,4,0,null,0,0,0,0,{"$f":"IFERROR(IF(OFFSET(O106,0,V$2-1)>0,1,0),0)","v":1},"Ohramallasidut",0,0,"osto","väkirehu",null,92,0,11.5,0,null,null,null,null,null,0,0,0,320,null,153,195,null,null,54,141,2.5,8.3000000000000007,1.6,0.7,130,45,90,15,7.0000000000000007E-2,null,null,null,null,null,5,null,3102,101,null,null,0,0,0,0,0,0,0,0,0,0,0,0,0,0,0,0,0,0,0,0,0,null,null,null,null,null,null,null,null,null,null,null,null,null,null,null,null,null,null,null,null,null,null,null,null,null,null,null,null,null,null,null,null,null,null,null,null,null,null,null,null,null,null,null,null,null,null,null,null,null,0]
[107,0,0,0,null,0,0,0,0,0,0,0,0,4,0,null,0,0,0,0,1,"Ohramallasrehu",0,0,"osto","väkirehu",null,89,0,12.5,0,null,null,null,null,null,0,0,0,189,350,38,225,null,0,97,128,0.5,4.0999999999999996,1.4,0.1,50,24,39,7,0.13,0.09,0.2,0.3,null,null,null,null,3009,53,null,null,0,0,0,0,0,0,0,0,0,0,0,0,0,0,0,0,0,0,0,0,0,null,null,null,null,null,null,null,null,null,null,null,null,null,null,null,null,null,null,null,null,null,null,null,null,null,null,null,null,null,null,null,null,null,null,null,null,null,null,null,null,null,null,null,null,null,null,null,null,null,0]
[108,0,0,0,null,0,0,0,0,0,0,0,0,4,0,null,0,0,0,0,1,"Ohrankuorijauho (tärkkelysteollisuus)",0,0,"osto","väkirehu",null,88,0,7.5,0,null,null,null,null,null,0,0,0,70,350,-14,201,null,0,120,81,1.1000000000000001,0.7,1,0.2,185,30,20,null,null,null,null,null,null,null,null,null,3103,151,null,null,0,0,0,0,0,0,0,0,0,0,0,0,0,0,0,0,0,0,0,0,0,null,null,null,null,null,null,null,null,null,null,null,null,null,null,null,null,null,null,null,null,null,null,null,null,null,null,null,null,null,null,null,null,null,null,null,null,null,null,null,null,null,null,null,null,null,null,null,null,null,0]
[109,0,0,0,null,0,0,0,0,0,0,0,0,4,0,null,0,0,0,0,1,"Ohrankuorilese",0,0,"osto","väkirehu",null,88,0,10.3,0,null,null,null,null,null,0,0,0,150,350,28,270,null,0,250,20,1.1000000000000001,8,3,null,70,25,70,11,null,null,null,null,null,null,null,null,3104,103,null,null,0,0,0,0,0,0,0,0,0,0,0,0,0,0,0,0,0,0,0,0,0,null,null,null,null,null,null,null,null,null,null,null,null,null,null,null,null,null,null,null,null,null,null,null,null,null,null,null,null,null,null,null,null,null,null,null,null,null,null,null,null,null,null,null,null,null,null,null,null,null,0]
[110,0,0,0,null,0,0,0,0,0,0,0,0,4,0,null,0,0,0,0,1,"Ohrarehu, Altia",0,0,"osto","väkirehu",null,88,0,11.6,0,null,null,null,null,null,0,0,0,136,590,-21,75,null,0,75,null,0.8,3.6,1.2,0.7,85,17,46,11,0.1,0.1,null,null,null,26,null,null,4001,104,null,null,0,0,0,0,0,0,0,0,0,0,0,0,0,0,0,0,0,0,0,0,0,null,null,null,null,null,null,null,null,null,null,null,null,null,null,null,null,null,null,null,null,null,null,null,null,null,null,null,null,null,null,null,null,null,null,null,null,null,null,null,null,null,null,null,null,null,null,null,null,null,0]
[111,0,0,0,null,0,0,0,0,0,0,0,0,4,0,null,0,0,0,0,1,"Ohrarehujauho",0,0,"osto","väkirehu",null,88,0,12.5,0,null,null,null,null,null,0,0,0,145,300,4,353,null,0,280,73,0.5,4.0999999999999996,1.4,0.1,50,24,39,7,0.13,0.09,0.2,0.3,null,null,null,null,3010,54,null,null,0,0,0,0,0,0,0,0,0,0,0,0,0,0,0,0,0,0,0,0,0,null,null,null,null,null,null,null,null,null,null,null,null,null,null,null,null,null,null,null,null,null,null,null,null,null,null,null,null,null,null,null,null,null,null,null,null,null,null,null,null,null,null,null,null,null,null,null,null,null,0]
[112,0,0,0,null,0,0,0,0,0,0,0,0,4,0,null,0,0,0,0,1,"Ohravalkuaisrehu 32, tuore ( tärk.t)",0,0,"osto","väkirehu",null,21,0,14.1,0,null,null,null,null,null,0,0,0,240,120,38,150,null,0,150,null,1,7,2.6,3.1,130,36,64,15,0.04,null,null,null,null,null,14,null,3011,96,null,null,0,0,0,0,0,0,0,0,0,0,0,0,0,0,0,0,0,0,0,0,0,null,null,null,null,null,null,null,null,null,null,null,null,null,null,null,null,null,null,null,null,null,null,null,null,null,null,null,null,null,null,null,null,null,null,null,null,null,null,null,null,null,null,null,null,null,null,null,null,null,0]
[113,0,0,0,null,0,0,0,0,0,0,0,0,4,0,null,0,0,0,0,1,"Panimohiiva",0,0,"osto","väkirehu",null,10,0,13.1,0,null,null,null,null,null,0,0,0,550,0,288,77,null,0,62,15,null,null,null,null,null,null,null,null,null,null,null,null,null,null,null,"Tälle rehulle ei löytynyt  vastaavaa rehua  MTT:n kivennäistaulkosta",4004,105,null,null,0,0,0,0,0,0,0,0,0,0,0,0,0,0,0,0,0,0,0,0,0,null,null,null,null,null,null,null,null,null,null,null,null,null,null,null,null,null,null,null,null,null,null,null,null,null,null,null,null,null,null,null,null,null,null,null,null,null,null,null,null,null,null,null,null,null,null,null,null,null,0]
[114,0,0,0,null,0,0,0,0,0,0,0,0,4,0,null,0,0,0,0,1,"Peruna, raaka",0,0,"osto","väkirehu",null,22,0,13.3,0,null,null,null,null,null,0,0,0,95,70,-50,0,null,null,null,null,0.3,2.2999999999999998,1.4,0.6,41,7,24,5,0.09,0.03,0.2,0.2,null,null,null,null,3012,106,null,null,0,0,0,0,0,0,0,0,0,0,0,0,0,0,0,0,0,0,0,0,0,null,null,null,null,null,null,null,null,null,null,null,null,null,null,null,null,null,null,null,null,null,null,null,null,null,null,null,null,null,null,null,null,null,null,null,null,null,null,null,null,null,null,null,null,null,null,null,null,null,0]
[115,0,0,0,null,0,0,0,0,0,0,0,0,4,0,null,0,0,0,0,1,"Perunarehu, tuore",0,0,"osto","väkirehu",null,16,0,12.3,0,null,null,null,null,null,0,0,0,63,100,-76,500,null,0,500,0,1.4,0.8,0.9,null,null,null,null,null,null,null,null,null,null,null,null,null,4005,55,null,null,0,0,0,0,0,0,0,0,0,0,0,0,0,0,0,0,0,0,0,0,0,null,null,null,null,null,null,null,null,null,null,null,null,null,null,null,null,null,null,null,null,null,null,null,null,null,null,null,null,null,null,null,null,null,null,null,null,null,null,null,null,null,null,null,null,null,null,null,null,null,0]
[116,0,0,0,null,0,0,0,0,0,0,0,0,4,0,null,0,0,0,0,1,"Perunarehu, tuore, solunestepitoinen",0,0,"osto","väkirehu",null,16,0,11.9,0,null,null,null,null,null,0,0,0,125,100,-26,0,null,0,null,null,1.4,0.8,0.9,null,null,null,null,null,null,null,null,null,null,null,null,null,4011,107,null,null,0,0,0,0,0,0,0,0,0,0,0,0,0,0,0,0,0,0,0,0,0,null,null,null,null,null,null,null,null,null,null,null,null,null,null,null,null,null,null,null,null,null,null,null,null,null,null,null,null,null,null,null,null,null,null,null,null,null,null,null,null,null,null,null,null,null,null,null,null,null,0]
[117,{"$f":"IF(N117=3,P117,IF(N117=4,P117,0))","v":0},{"$f":"IF(N117=1,P117,IF(N117=2,P117,0))","v":0},{"$f":"IF(N117=5,P117,0)","v":0},null,{"$f":"IFERROR(AD117*U117*(B117+C117+D117)/(B$19+C$19+D$19),0)","v":0},0,0,{"$f":"IFERROR(AS117*U117*C117/(B$19+C$19+D$19),0)","v":0},{"$f":"IFERROR(AN117*U117*(B117+C117+D117)/($B$19+$C$19+$D$19),0)","v":0},{"$f":"IFERROR(AQ117*U117*(B117+C117+D117)/($B$19+C$19+D$19),0)","v":0},0,{"$f":"AL117*F117/F$19","v":0},{"$f":"IF(AND(Y117=\"kotoinen\",Z117=\"karkearehu\"),1,IF(AND(Y117=\"osto\",Z117=\"karkearehu\"),2,IF(AND(Y117=\"kotoinen\",Z117=\"väkirehu\"),3,IF(AND(Y117=\"osto\",Z117=\"väkirehu\"),4,IF(Z117=\"kivennäisseos\",5,0)))))","v":4},{"$f":"IFERROR(P117/F$18,0)","v":0},null,{"$f":"R117/R$19","v":0},{"$f":"IFERROR(P117/AB117*100,0)","v":0},0,0,1,"Puhdistamomelassi",{"$f":"IFERROR(Q117*W$8,0)","v":0},{"$f":"IFERROR(W117*X$7/W$7,0)","v":0},"osto","väkirehu",null,81,{"$f":"AB117/100*AA117","v":0},13.8,{"$f":"AC117*AD117","v":0},null,null,null,null,null,{"$f":"IF(AB117<>0,ROUND(AJ117/(AB117/100),2),0)","v":0},{"$f":"IF(AD117<>0,ROUND(AK117/AD117,2),0)","v":0},{"$f":"AA117*AJ117/100","v":0},20,0,-113,{"$f":"AT117+AU117","v":0},null,0,0,null,10,0.4,2.5,0.9,450,40,20,15,4,null,null,null,null,null,null,null,4012,108,null,null,{"$f":"IFERROR(AN117*($B117+$C117+$D117)/($B$19+$C$19+$D$19),0)","v":0},0,0,0,0,0,0,0,{"$f":"IFERROR(AV117*($B117+$C117+$D117)/($B$19+$C$19+$D$19),0)","v":0},{"$f":"IFERROR(AW117*($B117+$C117+$D117)/($B$19+$C$19+$D$19),0)","v":0},{"$f":"IFERROR(AX117*($B117+$C117+$D117)/($B$19+$C$19+$D$19),0)","v":0},{"$f":"IFERROR(AY117*($B117+$C117+$D117)/($B$19+$C$19+$D$19),0)","v":0},{"$f":"IFERROR(AZ117*($B117+$C117+$D117)/($B$19+$C$19+$D$19),0)","v":0},{"$f":"IFERROR(BA117*($B117+$C117+$D117)/($B$19+$C$19+$D$19),0)","v":0},{"$f":"IFERROR(BB117*($B117+$C117+$D117)/($B$19+$C$19+$D$19),0)","v":0},{"$f":"IFERROR(BC117*($B117+$C117+$D117)/($B$19+$C$19+$D$19),0)","v":0},{"$f":"IFERROR(BD117*($B117+$C117+$D117)/($B$19+$C$19+$D$19),0)","v":0},{"$f":"IFERROR(BE117*($B117+$C117+$D117)/($B$19+$C$19+$D$19),0)","v":0},{"$f":"IFERROR(BF117*($B117+$C117+$D117)/($B$19+$C$19+$D$19),0)","v":0},{"$f":"IFERROR(BG117*($B117+$C117+$D117)/($B$19+$C$19+$D$19),0)","v":0},{"$f":"IFERROR(BH117*($B117+$C117+$D117)/($B$19+$C$19+$D$19),0)","v":0},null,null,null,null,null,null,null,null,null,null,null,null,null,null,null,null,null,null,null,null,null,null,null,null,null,null,null,null,null,null,null,null,null,null,null,null,null,null,null,null,null,null,null,null,null,null,null,null,null,0]
[118,0,0,0,null,0,0,0,0,0,0,0,0,4,0,null,0,0,0,0,1,"Rapsin siemen",0,0,"osto","väkirehu",null,92,0,19.7,0,null,null,null,null,null,0,0,0,240,190,63,0,null,0,null,null,4.5,9.4,3.6,0.1,74,36,41,4,0.12,0.08,null,0.3,null,null,null,null,4013,109,null,null,0,0,0,0,0,0,0,0,0,0,0,0,0,0,0,0,0,0,0,0,0,null,null,null,null,null,null,null,null,null,null,null,null,null,null,null,null,null,null,null,null,null,null,null,null,null,null,null,null,null,null,null,null,null,null,null,null,null,null,null,null,null,null,null,null,null,null,null,null,null,0]
[119,0,0,0,null,0,0,0,0,0,0,0,0,4,0,null,0,0,0,0,1,"Rehuherne, kotimainen",0,0,"osto","väkirehu",null,86,0,13.3,0,null,null,null,null,null,0,0,0,230,130,62,535,null,0,480,55,0.9,5.2,1.3,0.1,78,19,44,9,0.18,0.02,0.2,1.7,null,null,10,null,3085,56,null,null,0,0,0,0,0,0,0,0,0,0,0,0,0,0,0,0,0,0,0,0,0,null,null,null,null,null,null,null,null,null,null,null,null,null,null,null,null,null,null,null,null,null,null,null,null,null,null,null,null,null,null,null,null,null,null,null,null,null,null,null,null,null,null,null,null,null,null,null,null,null,0]
[120,0,0,0,null,0,0,0,0,0,0,0,0,4,0,null,0,0,0,0,1,"Rehuhiiva",0,0,"osto","väkirehu",null,92,0,12.8,0,null,null,null,null,null,0,0,0,520,0,269,78,null,0,73,5,null,null,null,null,null,null,null,null,null,null,null,null,null,null,null,null,4014,57,null,null,0,0,0,0,0,0,0,0,0,0,0,0,0,0,0,0,0,0,0,0,0,null,null,null,null,null,null,null,null,null,null,null,null,null,null,null,null,null,null,null,null,null,null,null,null,null,null,null,null,null,null,null,null,null,null,null,null,null,null,null,null,null,null,null,null,null,null,null,null,null,0]
[121,0,0,0,null,0,0,0,0,0,0,0,0,4,0,null,0,0,0,0,1,"Rehujuurikas",0,0,"osto","väkirehu",null,13,0,12.3,0,null,null,null,null,null,0,0,0,90,100,-44,680,null,0,20,660,2.2999999999999998,1.6,1.3,1.5,60,50,30,10,null,null,null,null,null,null,null,null,2031,110,null,null,0,0,0,0,0,0,0,0,0,0,0,0,0,0,0,0,0,0,0,0,0,null,null,null,null,null,null,null,null,null,null,null,null,null,null,null,null,null,null,null,null,null,null,null,null,null,null,null,null,null,null,null,null,null,null,null,null,null,null,null,null,null,null,null,null,null,null,null,null,null,0]
[122,0,0,0,null,0,0,0,0,0,0,0,0,4,0,null,0,0,0,0,1,"Ruis",0,0,"osto","väkirehu",null,86,0,13.6,0,null,null,null,null,null,0,0,0,110,200,-33,714,null,null,650,64,0.4,3.9,1.2,0.2,63,27,35,5,0.05,0.06,0.1,0.8,null,null,18,null,4015,58,null,null,0,0,0,0,0,0,0,0,0,0,0,0,0,0,0,0,0,0,0,0,0,null,null,null,null,null,null,null,null,null,null,null,null,null,null,null,null,null,null,null,null,null,null,null,null,null,null,null,null,null,null,null,null,null,null,null,null,null,null,null,null,null,null,null,null,null,null,null,null,null,0]
[123,0,0,0,null,0,0,0,0,0,0,0,0,4,0,null,0,0,0,0,1,"Ruisvehnä (Triticale)",0,0,"osto","väkirehu",null,86,0,13.7,0,null,null,null,null,null,0,0,0,106,190,-36,680,null,null,625,55,0.6,3.7,1.2,0.2,37,42,41,6,0.01,0.03,0.1,0.5,null,null,null,null,4016,111,null,null,0,0,0,0,0,0,0,0,0,0,0,0,0,0,0,0,0,0,0,0,0,null,null,null,null,null,null,null,null,null,null,null,null,null,null,null,null,null,null,null,null,null,null,null,null,null,null,null,null,null,null,null,null,null,null,null,null,null,null,null,null,null,null,null,null,null,null,null,null,null,0]
[124,0,0,0,null,0,0,0,0,0,0,0,0,4,0,null,0,0,0,0,1,"Rypsi- ja rapsipuriste, 00-laj.,lämpök.",0,0,"osto","väkirehu",null,91,0,12.3,0,null,null,null,null,null,0,0,0,358,300,131,109,null,0,37,72,8.1,11.7,4.8,0.5,112,61,59,6,null,0.1,null,null,null,null,null,null,3013,112,null,null,0,0,0,0,0,0,0,0,0,0,0,0,0,0,0,0,0,0,0,0,0,null,null,null,null,null,null,null,null,null,null,null,null,null,null,null,null,null,null,null,null,null,null,null,null,null,null,null,null,null,null,null,null,null,null,null,null,null,null,null,null,null,null,null,null,null,null,null,null,null,0]
[125,0,0,0,null,0,0,0,0,0,0,0,0,4,0,null,0,0,0,0,1,"Rypsi- ja rapsirouhe, 00-lajike",0,0,"osto","väkirehu",null,89,0,11.4,0,null,null,null,null,null,0,0,0,379,270,154,132,null,0,45,87,8.3000000000000007,13.2,5.2,0.2,192,70,67,6,0.15,0.1,0.7,0.6,null,null,50,null,1013,113,null,null,0,0,0,0,0,0,0,0,0,0,0,0,0,0,0,0,0,0,0,0,0,null,null,null,null,null,null,null,null,null,null,null,null,null,null,null,null,null,null,null,null,null,null,null,null,null,null,null,null,null,null,null,null,null,null,null,null,null,null,null,null,null,null,null,null,null,null,null,null,null,0]
[126,0,0,0,null,0,0,0,0,0,0,0,0,4,0,null,0,0,0,0,1,"Rypsin siemen",0,0,"osto","väkirehu",null,92,0,19,0,null,null,null,null,null,0,0,0,235,200,60,0,null,0,null,null,4.5,9.4,3.6,0.1,74,36,41,4,0.1,0.1,null,0.3,null,null,null,null,4221,114,null,null,0,0,0,0,0,0,0,0,0,0,0,0,0,0,0,0,0,0,0,0,0,null,null,null,null,null,null,null,null,null,null,null,null,null,null,null,null,null,null,null,null,null,null,null,null,null,null,null,null,null,null,null,null,null,null,null,null,null,null,null,null,null,null,null,null,null,null,null,null,null,0]
[127,0,0,0,null,0,0,0,0,0,0,0,0,4,0,null,0,0,0,0,1,"Rypsipuriste, kylmäpuristettu",0,0,"osto","väkirehu",null,91,0,15.6,0,null,null,null,null,null,0,0,0,309,230,106,0,null,0,null,null,7.4,11,4.5999999999999996,0.7,114,54,54,6,null,0.1,null,null,null,null,null,null,5001,115,null,null,0,0,0,0,0,0,0,0,0,0,0,0,0,0,0,0,0,0,0,0,0,null,null,null,null,null,null,null,null,null,null,null,null,null,null,null,null,null,null,null,null,null,null,null,null,null,null,null,null,null,null,null,null,null,null,null,null,null,null,null,null,null,null,null,null,null,null,null,null,null,0]
[128,0,0,0,null,0,0,0,0,0,0,0,0,4,0,null,0,0,0,0,1,"Seosmelassi 40, juurikasmelassipohjainen",0,0,"osto","väkirehu",null,74,0,12.3,0,null,null,null,null,null,0,0,0,200,0,73,540,null,0,0,540,3,0.3,0.3,9.8000000000000007,170,30,30,9,0.7,null,null,null,null,null,null,null,5011,116,null,null,0,0,0,0,0,0,0,0,0,0,0,0,0,0,0,0,0,0,0,0,0,null,null,null,null,null,null,null,null,null,null,null,null,null,null,null,null,null,null,null,null,null,null,null,null,null,null,null,null,null,null,null,null,null,null,null,null,null,null,null,null,null,null,null,null,null,null,null,null,null,0]
[129,0,0,0,null,0,0,0,0,0,0,0,0,4,0,null,0,0,0,0,1,"Seosmelassi 44, juurikasmelassipohjainen",0,0,"osto","väkirehu",null,74,0,12.6,0,null,null,null,null,null,0,0,0,137,0,10,595,null,0,0,595,3,0.3,0.3,9.8000000000000007,170,30,30,9,0.7,null,null,null,null,null,null,null,5012,117,null,null,0,0,0,0,0,0,0,0,0,0,0,0,0,0,0,0,0,0,0,0,0,null,null,null,null,null,null,null,null,null,null,null,null,null,null,null,null,null,null,null,null,null,null,null,null,null,null,null,null,null,null,null,null,null,null,null,null,null,null,null,null,null,null,null,null,null,null,null,null,null,0]
[130,0,0,0,null,0,0,0,0,0,0,0,0,4,0,null,0,0,0,0,1,"Seosvilja (ohra ja kaura, 1:1)",0,0,"osto","väkirehu",null,86,0,12.8,0,null,null,null,null,null,0,0,0,130,245,-13,549,null,0,530,19,0.7,4.0999999999999996,1.4,0.1,51,45,40,6,0.1,0.09,0.2,0.4,null,null,null,null,3086,118,null,null,0,0,0,0,0,0,0,0,0,0,0,0,0,0,0,0,0,0,0,0,0,null,null,null,null,null,null,null,null,null,null,null,null,null,null,null,null,null,null,null,null,null,null,null,null,null,null,null,null,null,null,null,null,null,null,null,null,null,null,null,null,null,null,null,null,null,null,null,null,null,0]
[131,0,0,0,null,0,0,0,0,0,0,0,0,4,0,null,0,0,{"$f":"IF(Z131=\"karkearehu\",1,0)","v":0},{"$f":"S131*X131","v":0},1,"Soijapuriste",0,0,"osto","väkirehu",null,89,0,13.9,0,null,null,null,null,null,0,0,0,493,115,264,177,null,0,77,100,2.2999999999999998,6.1,3.1,0.1,206,35,50,14,null,null,null,null,null,null,null,null,5013,119,null,null,0,0,0,0,0,0,0,0,0,0,0,0,0,0,0,0,0,0,0,0,0,null,null,null,null,null,null,null,null,null,null,null,null,null,null,null,null,null,null,null,null,null,null,null,null,null,null,null,null,null,null,null,null,null,null,null,null,null,null,null,null,null,null,null,null,null,null,null,null,null,0]
[132,0,0,0,null,0,0,0,0,0,0,0,0,4,0,null,0,0,0,0,1,"Soijarouhe ja soijajauho",0,0,"osto","väkirehu",null,88,0,13,0,null,null,null,null,null,0,0,0,520,120,285,169,null,0,74,95,3,7,3.3,0.3,206,42,56,16,0.11,0.16,0.2,4.2,null,null,10,null,5014,120,null,null,0,0,0,0,0,0,0,0,0,0,0,0,0,0,0,0,0,0,0,0,0,null,null,null,null,null,null,null,null,null,null,null,null,null,null,null,null,null,null,null,null,null,null,null,null,null,null,null,null,null,null,null,null,null,null,null,null,null,null,null,null,null,null,null,null,null,null,null,null,null,0]
[133,0,0,0,null,0,0,0,0,0,0,0,0,4,0,null,0,0,0,0,1,"Sokerijuurikasleike, kuivattu",0,0,"osto","väkirehu",null,90,0,12,0,null,null,null,null,null,0,0,0,110,450,-47,70,null,0,0,70,7,1,1.4,0.8,1800,40,45,26,2,null,null,null,null,null,null,null,5015,121,null,null,{"$f":"IFERROR(AN133*($B133+$C133+$D133)/($B$19+$C$19+$D$19),0)","v":0},0,0,0,0,0,0,0,0,0,0,0,0,0,0,0,0,0,0,0,0,null,null,null,null,null,null,null,null,null,null,null,null,null,null,null,null,null,null,null,null,null,null,null,null,null,null,null,null,null,null,null,null,null,null,null,null,null,null,null,null,null,null,null,null,null,null,null,null,null,0]
[134,0,0,0,null,0,0,0,0,0,0,0,0,4,0,null,0,0,0,0,1,"Sokerijuurikasleike, puristettu",0,0,"osto","väkirehu",null,26,0,11.9,0,null,null,null,null,null,0,0,0,110,450,-46,0,null,0,0,null,8.8000000000000007,0.8,1.7,1.4,null,null,null,null,null,null,null,null,null,null,null,null,3014,122,null,null,0,0,0,0,0,0,0,0,0,0,0,0,0,0,0,0,0,0,0,0,0,null,null,null,null,null,null,null,null,null,null,null,null,null,null,null,null,null,null,null,null,null,null,null,null,null,null,null,null,null,null,null,null,null,null,null,null,null,null,null,null,null,null,null,null,null,null,null,null,null,0]
[135,0,0,0,null,0,0,0,0,0,0,0,0,4,0,null,0,0,0,0,1,"Sokerijuurikasmelassi",0,0,"osto","väkirehu",null,78,0,12.8,0,null,null,null,null,null,0,0,0,170,0,40,650,null,0,0,650,3,0.3,0.3,9.8000000000000007,170,30,30,9,0.7,null,null,null,null,null,null,null,3015,123,null,null,0,0,0,0,0,0,0,0,0,0,0,0,0,0,0,0,0,0,0,0,0,null,null,null,null,null,null,null,null,null,null,null,null,null,null,null,null,null,null,null,null,null,null,null,null,null,null,null,null,null,null,null,null,null,null,null,null,null,null,null,null,null,null,null,null,null,null,null,null,null,0]
[136,0,0,0,null,0,0,0,0,0,0,0,0,4,0,null,0,0,0,0,1,"Suojattu rasva (Ca-rasvahappojen suola)",0,0,"osto","väkirehu",null,99,0,27.616499999999998,0,null,null,null,null,null,0,0,0,0,0,-117,0,null,0,0,0,null,null,null,null,null,null,null,null,null,null,null,null,null,null,null,"Tälle rehulle ei löytynyt  vastaavaa rehua  MTT:n kivennäistaulkosta",10001,124,null,null,0,0,0,0,0,0,0,0,0,0,0,0,0,0,0,0,0,0,0,0,0,null,null,null,null,null,null,null,null,null,null,null,null,null,null,null,null,null,null,null,null,null,null,null,null,null,null,null,null,null,null,null,null,null,null,null,null,null,null,null,null,null,null,null,null,null,null,null,null,null,0]
[137,0,0,0,null,0,0,0,0,0,0,0,0,4,0,null,0,0,0,0,1,"Tiivistetty tärkkelysrankki (ohra)",0,0,"osto","väkirehu",null,26,0,13.1,0,null,null,null,null,null,0,0,0,260,2,89,50,null,0,50,null,1.9,15,6.5,5,120,80,130,13,0.12,0.09,null,null,null,null,13,null,3016,125,null,null,0,0,0,0,0,0,0,0,0,0,0,0,0,0,0,0,0,0,0,0,0,null,null,null,null,null,null,null,null,null,null,null,null,null,null,null,null,null,null,null,null,null,null,null,null,null,null,null,null,null,null,null,null,null,null,null,null,null,null,null,null,null,null,null,null,null,null,null,null,null,0]
[138,0,0,0,null,0,0,0,0,0,0,0,0,4,0,null,0,0,0,0,1,"Tärkkelysrankki (ohra)",0,0,"osto","väkirehu",null,10,0,13.1,0,null,null,null,null,null,0,0,0,380,5,183,0,null,0,null,null,1.9,15,6.5,5,120,80,130,13,0.12,0.09,null,null,null,null,null,null,10002,126,null,null,0,0,0,0,0,0,0,0,0,0,0,0,0,0,0,0,0,0,0,0,0,null,null,null,null,null,null,null,null,null,null,null,null,null,null,null,null,null,null,null,null,null,null,null,null,null,null,null,null,null,null,null,null,null,null,null,null,null,null,null,null,null,null,null,null,null,null,null,null,null,0]
[139,0,0,0,null,0,0,0,0,0,0,0,0,4,0,null,0,0,0,0,1,"Urea",0,0,"osto","väkirehu",null,100,0,null,0,null,null,null,null,null,0,0,0,2874,0,2874,0,null,0,0,0,null,null,null,null,null,null,null,null,null,null,null,null,null,null,null,"Tälle rehulle ei löytynyt  vastaavaa rehua  MTT:n kivennäistaulkosta",10003,59,null,null,0,0,0,0,0,0,0,0,0,0,0,0,0,0,0,0,0,0,0,0,0,null,null,null,null,null,null,null,null,null,null,null,null,null,null,null,null,null,null,null,null,null,null,null,null,null,null,null,null,null,null,null,null,null,null,null,null,null,null,null,null,null,null,null,null,null,null,null,null,null,0]
[140,0,0,0,null,0,0,0,0,0,0,0,0,4,0,null,0,0,0,0,1,"Vehnä, 45 - 60 kg/hl",0,0,"osto","väkirehu",null,86,0,12.7,0,null,null,null,null,null,0,0,0,120,200,-15,610,null,0,580,30,0.5,4.5,1.6,0.1,63,71,50,6,0.02,0.14000000000000001,0.3,0.2,null,null,null,null,3017,60,null,null,0,0,0,0,0,0,0,0,0,0,0,0,0,0,0,0,0,0,0,0,0,null,null,null,null,null,null,null,null,null,null,null,null,null,null,null,null,null,null,null,null,null,null,null,null,null,null,null,null,null,null,null,null,null,null,null,null,null,null,null,null,null,null,null,null,null,null,null,null,null,0]
[141,0,0,0,null,0,0,0,0,0,0,0,0,4,0,null,0,0,0,0,1,"Vehnä, 60 - 72 kg/hl",0,0,"osto","väkirehu",null,86,0,13.4,0,null,null,null,null,null,0,0,0,125,180,-17,640,null,0,610,30,0.5,4.5,1.6,0.1,63,71,50,6,0.02,0.14000000000000001,0.3,0.2,null,null,null,null,3018,127,null,null,0,0,0,0,0,0,0,0,0,0,0,0,0,0,0,0,0,0,0,0,0,null,null,null,null,null,null,null,null,null,null,null,null,null,null,null,null,null,null,null,null,null,null,null,null,null,null,null,null,null,null,null,null,null,null,null,null,null,null,null,null,null,null,null,null,null,null,null,null,null,0]
[142,0,0,0,null,0,0,0,0,0,0,0,0,4,0,null,0,0,0,0,1,"Vehnä, 72 - 76 kg/hl",0,0,"osto","väkirehu",null,86,0,13.6,0,null,null,null,null,null,0,0,0,125,150,-19,680,null,0,650,30,0.5,4.5,1.6,0.1,63,71,50,6,0.02,0.14000000000000001,0.3,0.2,null,null,null,null,90001,61,null,null,0,0,0,0,0,0,0,0,0,0,0,0,0,0,0,0,0,0,0,0,0,null,null,null,null,null,null,null,null,null,null,null,null,null,null,null,null,null,null,null,null,null,null,null,null,null,null,null,null,null,null,null,null,null,null,null,null,null,null,null,null,null,null,null,null,null,null,null,null,null,0]
[143,0,0,0,null,0,0,0,0,0,0,0,0,4,0,null,0,0,0,0,1,"Vehnä, yli 76 kg/hl",0,0,"osto","väkirehu",null,86,0,13.7,0,null,null,null,null,null,0,0,0,125,110,-20,710,null,0,680,30,0.5,4.5,1.6,0.1,63,71,50,6,0.02,0.14000000000000001,0.3,0.2,null,null,15,null,3019,128,null,null,0,0,0,0,0,0,0,0,0,0,0,0,0,0,0,0,0,0,0,0,0,null,null,null,null,null,null,null,null,null,null,null,null,null,null,null,null,null,null,null,null,null,null,null,null,null,null,null,null,null,null,null,null,null,null,null,null,null,null,null,null,null,null,null,null,null,null,null,null,null,0]
[144,0,0,0,null,0,0,0,0,0,0,0,0,4,0,null,0,0,0,0,1,"Vehnägluteeni",0,0,"osto","väkirehu",null,92,0,13.4,0,null,null,null,null,null,0,0,0,840,0,493,0,null,0,0,0,0.6,1.8,null,null,null,null,null,null,null,null,null,null,null,null,null,null,90010,129,null,null,0,0,0,0,0,0,0,0,0,0,0,0,0,0,0,0,0,0,0,0,0,null,null,null,null,null,null,null,null,null,null,null,null,null,null,null,null,null,null,null,null,null,null,null,null,null,null,null,null,null,null,null,null,null,null,null,null,null,null,null,null,null,null,null,null,null,null,null,null,null,0]
[145,0,0,0,null,0,0,0,0,0,0,0,0,4,0,null,0,0,0,0,1,"Vehnälese",0,0,"osto","väkirehu",null,87,0,11.2,0,null,null,null,null,null,0,0,0,170,420,38,220,null,0,156,64,0.9,12.8,5.5,0.5,216,174,337,17,0.08,0.11,0.1,0.2,5,null,25,null,90011,62,null,null,0,0,0,0,0,0,0,0,0,0,0,0,0,0,0,0,0,0,0,0,0,null,null,null,null,null,null,null,null,null,null,null,null,null,null,null,null,null,null,null,null,null,null,null,null,null,null,null,null,null,null,null,null,null,null,null,null,null,null,null,null,null,null,null,null,null,null,null,null,null,0]
[146,0,0,0,null,0,0,0,0,0,0,0,0,4,0,null,0,0,0,0,1,"Vehnärehujauho",0,0,"osto","väkirehu",null,88,0,13.7,0,null,null,null,null,null,0,0,0,165,180,16,551,null,0,482,69,0.7,9.5,3.5,null,150,150,110,14,0.05,null,null,null,3,null,30,null,90021,63,null,null,0,0,0,0,0,0,0,0,0,0,0,0,0,0,0,0,0,0,0,0,0,null,null,null,null,null,null,null,null,null,null,null,null,null,null,null,null,null,null,null,null,null,null,null,null,null,null,null,null,null,null,null,null,null,null,null,null,null,null,null,null,null,null,null,null,null,null,null,null,null,0]
[147,0,0,0,null,0,0,0,0,0,0,0,0,0,0,null,0,0,0,0,0,null,0,0,null,null,null,null,0,null,0,null,null,null,null,null,0,0,0,null,null,null,0,null,null,null,null,null,null,null,null,null,null,null,null,null,null,null,null,null,null,null,null,null,130,null,null,0,0,0,0,0,0,0,0,0,0,0,0,0,0,0,0,0,0,0,0,0,null,null,null,null,null,null,null,null,null,null,null,null,null,null,null,null,null,null,null,null,null,null,null,null,null,null,null,null,null,null,null,null,null,null,null,null,null,null,null,null,null,null,null,null,null,null,null,null,null,0]
[148,0,0,0,null,0,0,0,0,0,0,0,0,0,0,null,0,0,0,0,0,null,0,0,null,null,null,null,0,null,0,null,null,null,null,null,0,0,0,null,null,null,0,null,null,null,null,null,null,null,null,null,null,null,null,null,null,null,null,null,null,null,null,null,64,null,null,0,0,0,0,0,0,0,0,0,0,0,0,0,0,0,0,0,0,0,0,0,null,null,null,null,null,null,null,null,null,null,null,null,null,null,null,null,null,null,null,null,null,null,null,null,null,null,null,null,null,null,null,null,null,null,null,null,null,null,null,null,null,null,null,null,null,null,null,null,null,0]
[149,{"$f":"IF(N149=3,P149,IF(N149=4,P149,0))","v":0},{"$f":"IF(N149=1,P149,IF(N149=2,P149,0))","v":0},{"$f":"IF(N149=5,P149,0)","v":0},null,{"$f":"IFERROR(AD149*U149*(B149+C149+D149)/(B$19+C$19+D$19),0)","v":0},0,0,{"$f":"IFERROR(AS149*U149*C149/(B$19+C$19+D$19),0)","v":0},{"$f":"IFERROR(AN149*U149*(B149+C149+D149)/($B$19+$C$19+$D$19),0)","v":0},{"$f":"IFERROR(AQ149*U149*(B149+C149+D149)/($B$19+C$19+D$19),0)","v":0},{"$f":"IFERROR(AK149*U149*(B149+C149+D149)/(B$19+C$19+D$19),0)","v":0},{"$f":"AL149*F149/F$19","v":0},{"$f":"IF(AND(Y149=\"kotoinen\",Z149=\"karkearehu\"),1,IF(AND(Y149=\"osto\",Z149=\"karkearehu\"),2,IF(AND(Y149=\"kotoinen\",Z149=\"väkirehu\"),3,IF(AND(Y149=\"osto\",Z149=\"väkirehu\"),4,IF(Z149=\"kivennäisseos\",5,0)))))","v":0},{"$f":"IFERROR(P149/F$18,0)","v":0},null,{"$f":"R149/R$19","v":0},{"$f":"IFERROR(P149/AB149*100,0)","v":0},0,0,0,null,{"$f":"IFERROR(Q149*W$8,0)","v":0},{"$f":"IFERROR(W149*X$7/W$7,0)","v":0},null,null,null,null,{"$f":"AB149/100*AA149","v":0},null,{"$f":"AC149*AD149","v":0},null,null,null,null,null,{"$f":"IF(AB149<>0,ROUND(AJ149/(AB149/100),2),0)","v":0},{"$f":"IF(AD149<>0,ROUND(AK149/AD149,2),0)","v":0},{"$f":"AA149*AJ149/100","v":0},null,null,null,{"$f":"AT149+AU149","v":0},null,null,null,null,null,null,null,null,null,null,null,null,null,null,null,null,null,null,null,null,null,131,null,null,{"$f":"IFERROR(AN149*($B149+$C149+$D149)/($B$19+$C$19+$D$19),0)","v":0},0,0,0,{"$f":"IFERROR(AR149*($B149+$C149+$D149)/($C$19),0)","v":0},0,0,0,{"$f":"IFERROR(AV149*($B149+$C149+$D149)/($B$19+$C$19+$D$19),0)","v":0},{"$f":"IFERROR(AW149*($B149+$C149+$D149)/($B$19+$C$19+$D$19),0)","v":0},{"$f":"IFERROR(AX149*($B149+$C149+$D149)/($B$19+$C$19+$D$19),0)","v":0},{"$f":"IFERROR(AY149*($B149+$C149+$D149)/($B$19+$C$19+$D$19),0)","v":0},{"$f":"IFERROR(AZ149*($B149+$C149+$D149)/($B$19+$C$19+$D$19),0)","v":0},{"$f":"IFERROR(BA149*($B149+$C149+$D149)/($B$19+$C$19+$D$19),0)","v":0},{"$f":"IFERROR(BB149*($B149+$C149+$D149)/($B$19+$C$19+$D$19),0)","v":0},{"$f":"IFERROR(BC149*($B149+$C149+$D149)/($B$19+$C$19+$D$19),0)","v":0},{"$f":"IFERROR(BD149*($B149+$C149+$D149)/($B$19+$C$19+$D$19),0)","v":0},{"$f":"IFERROR(BE149*($B149+$C149+$D149)/($B$19+$C$19+$D$19),0)","v":0},{"$f":"IFERROR(BF149*($B149+$C149+$D149)/($B$19+$C$19+$D$19),0)","v":0},{"$f":"IFERROR(BG149*($B149+$C149+$D149)/($B$19+$C$19+$D$19),0)","v":0},{"$f":"IFERROR(BH149*($B149+$C149+$D149)/($B$19+$C$19+$D$19),0)","v":0},null,null,null,null,null,null,null,null,null,null,null,null,null,null,null,null,null,null,null,null,null,null,null,null,null,null,null,null,null,null,null,null,null,null,null,null,null,null,null,null,null,null,null,null,null,null,null,null,null,0]
[150,0,0,0,null,0,{"$f":"IFERROR(B150/AB150*100,0)","v":0},{"$f":"IFERROR(C150/AB150*100,0)","v":0},0,0,0,0,0,0,0,null,0,0,0,0,0,null,0,0,null,null,null,null,0,null,0,null,null,null,null,null,0,0,0,null,null,null,0,null,null,null,null,null,null,null,null,null,null,null,null,null,null,null,null,null,null,null,null,null,null,null,null,0,0,0,0,0,0,0,0,0,0,0,0,0,0,0,0,0,0,0,0,0,null,null,null,null,null,null,null,null,null,null,null,null,null,null,null,null,null,null,null,null,null,null,null,null,null,null,null,null,null,null,null,null,null,null,null,null,null,null,null,null,null,null,null,null,null,null,null,null,null,0]
[151,0,0,0,null,0,0,0,0,0,0,0,0,0,0,null,0,0,0,0,0,null,0,0,null,null,null,null,0,null,0,null,null,null,null,null,0,0,0,null,null,null,0,null,null,null,null,null,null,null,null,null,null,null,null,null,null,null,null,null,null,null,null,null,null,null,null,0,0,0,0,0,0,0,0,0,0,0,0,0,0,0,0,0,0,0,0,0,null,null,null,null,null,null,null,null,null,null,null,null,null,null,null,null,null,null,null,null,null,null,null,null,null,null,null,null,null,null,null,null,null,null,null,null,null,null,null,null,null,null,null,null,null,null,null,null,null,0]
[152,0,0,0,null,0,0,0,0,0,0,0,0,0,0,null,0,0,0,0,0,null,0,0,null,null,null,null,0,null,0,null,null,null,null,null,0,0,0,null,null,null,0,null,null,null,null,null,null,null,null,null,null,null,null,null,null,null,null,null,null,null,null,null,153,null,null,0,0,0,0,0,0,0,0,0,0,0,0,0,0,0,0,0,0,0,0,0,null,null,null,null,null,null,null,null,null,null,null,null,null,null,null,null,null,null,null,null,null,null,null,null,null,null,null,null,null,null,null,null,null,null,null,null,null,null,null,null,null,null,null,null,null,null,null,null,null,0]
[153,0,0,0,null,0,0,0,0,0,0,0,0,0,0,null,0,0,0,0,0,null,0,0,null,null,null,null,0,null,0,null,null,null,null,null,0,0,0,null,null,null,0,null,null,null,null,null,null,null,null,null,null,null,null,null,null,null,null,null,null,null,null,null,154,null,null,0,0,0,0,0,0,0,0,0,0,0,0,0,0,0,0,0,0,0,0,0,null,null,null,null,null,null,null,null,null,null,null,null,null,null,null,null,null,null,null,null,null,null,null,null,null,null,null,null,null,null,null,null,null,null,null,null,null,null,null,null,null,null,null,null,null,null,null,null,null,0]
[154,0,0,0,null,0,0,0,0,0,0,0,0,0,0,null,0,0,0,0,0,null,0,0,null,null,null,null,0,null,0,null,null,null,null,null,0,0,0,null,null,null,0,null,null,null,null,null,null,null,null,null,null,null,null,null,null,null,null,null,null,null,null,null,155,null,null,0,0,0,0,0,0,0,0,0,0,0,0,0,0,0,0,0,0,0,0,0,null,null,null,null,null,null,null,null,null,null,null,null,null,null,null,null,null,null,null,null,null,null,null,null,null,null,null,null,null,null,null,null,null,null,null,null,null,null,null,null,null,null,null,null,null,null,null,null,null,0]
[155,0,0,0,null,0,0,0,0,0,0,0,0,0,0,null,0,0,0,0,0,null,0,0,null,null,null,null,0,null,0,null,null,null,null,null,0,0,0,null,null,null,0,null,null,null,null,null,null,null,null,null,null,null,null,null,null,null,null,null,null,null,null,null,156,null,null,0,0,0,0,0,0,0,0,0,0,0,0,0,0,0,0,0,0,0,0,0,null,null,null,null,null,null,null,null,null,null,null,null,null,null,null,null,null,null,null,null,null,null,null,null,null,null,null,null,null,null,null,null,null,null,null,null,null,null,null,null,null,null,null,null,null,null,null,null,null,0]
[156,0,0,0,null,0,0,0,0,0,0,0,0,0,0,null,0,0,0,0,0,null,0,0,null,null,null,null,0,null,0,null,null,null,null,null,0,0,0,null,null,null,0,null,null,null,null,null,null,null,null,null,null,null,null,null,null,null,null,null,null,null,null,null,157,null,null,0,0,0,0,0,0,0,0,0,0,0,0,0,0,0,0,0,0,0,0,0,null,null,null,null,null,null,null,null,null,null,null,null,null,null,null,null,null,null,null,null,null,null,null,null,null,null,null,null,null,null,null,null,null,null,null,null,null,null,null,null,null,null,null,null,null,null,null,null,null,0]
[157,0,0,0,null,0,0,0,0,0,0,0,0,0,0,null,0,0,0,0,0,null,0,0,null,null,null,null,0,null,0,null,null,null,null,null,0,0,0,null,null,null,0,null,null,null,null,null,null,null,null,null,null,null,null,null,null,null,null,null,null,null,null,null,158,null,null,0,0,0,0,0,0,0,0,0,0,0,0,0,0,0,0,0,0,0,0,0,null,null,null,null,null,null,null,null,null,null,null,null,null,null,null,null,null,null,null,null,null,null,null,null,null,null,null,null,null,null,null,null,null,null,null,null,null,null,null,null,null,null,null,null,null,null,null,null,null,0]
[158,0,0,0,null,0,0,0,0,0,0,0,0,0,0,null,0,0,0,0,0,null,0,0,null,null,null,null,0,null,0,null,null,null,null,null,0,0,0,null,null,null,0,null,null,null,null,null,null,null,null,null,null,null,null,null,null,null,null,null,null,null,null,null,159,null,null,0,0,0,0,0,0,0,0,0,0,0,0,0,0,0,0,0,0,0,0,0,null,null,null,null,null,null,null,null,null,null,null,null,null,null,null,null,null,null,null,null,null,null,null,null,null,null,null,null,null,null,null,null,null,null,null,null,null,null,null,null,null,null,null,null,null,null,null,null,null,0]
[159,0,0,0,null,0,0,0,0,0,0,0,0,0,0,null,0,0,0,0,0,null,0,0,null,null,null,null,0,null,0,null,null,null,null,null,0,0,0,null,null,null,0,null,null,null,null,null,null,null,null,null,null,null,null,null,null,null,null,null,null,null,null,null,160,null,null,0,0,0,0,0,0,0,0,0,0,0,0,0,0,0,0,0,0,0,0,0,null,null,null,null,null,null,null,null,null,null,null,null,null,null,null,null,null,null,null,null,null,null,null,null,null,null,null,null,null,null,null,null,null,null,null,null,null,null,null,null,null,null,null,null,null,null,null,null,null,0]
[160,0,0,0,null,0,0,0,0,0,0,0,0,0,0,null,0,0,0,0,0,null,0,0,null,null,null,null,0,null,0,null,null,null,null,null,0,0,0,null,null,null,0,null,null,null,null,null,null,null,null,null,null,null,null,null,null,null,null,null,null,null,null,null,161,null,null,0,0,0,0,0,0,0,0,0,0,0,0,0,0,0,0,0,0,0,0,0,null,null,null,null,null,null,null,null,null,null,null,null,null,null,null,null,null,null,null,null,null,null,null,null,null,null,null,null,null,null,null,null,null,null,null,null,null,null,null,null,null,null,null,null,null,null,null,null,null,{"$f":"BN160-DK160","v":0}]
[161,0,0,0,null,0,0,0,0,0,0,0,0,0,0,null,0,0,0,0,0,null,0,0,null,null,null,null,0,null,0,null,null,null,null,null,0,0,0,null,null,null,0,null,null,null,null,null,null,null,null,null,null,null,null,null,null,null,null,null,null,null,null,null,162,null,null,0,0,0,0,0,0,0,0,0,0,0,0,0,0,0,0,0,0,0,0,0,null,null,null,null,null,null,null,null,null,null,null,null,null,null,null,null,null,null,null,null,null,null,null,null,null,null,null,null,null,null,null,null,null,null,null,null,null,null,null,null,null,null,null,null,null,null,null,null,null,0]
[162,0,0,0,null,0,0,0,0,0,0,0,0,0,0,null,0,0,0,0,0,null,0,0,null,null,null,null,0,null,0,null,null,null,null,null,0,0,0,null,null,null,0,null,null,null,null,null,null,null,null,null,null,null,null,null,null,null,null,null,null,null,null,null,163,null,null,0,0,0,0,0,0,0,0,0,0,0,0,0,0,0,0,0,0,0,0,0,null,null,null,null,null,null,null,null,null,null,null,null,null,null,null,null,null,null,null,null,null,null,null,null,null,null,null,null,null,null,null,null,null,null,null,null,null,null,null,null,null,null,null,null,null,null,null,null,null,0]
[163,0,0,0,null,0,0,0,0,0,0,0,0,0,0,null,0,0,0,0,0,null,0,0,null,null,null,null,0,null,0,null,null,null,null,null,0,0,0,null,null,null,0,null,null,null,null,null,null,null,null,null,null,null,null,null,null,null,null,null,null,null,null,null,164,null,null,0,0,0,0,0,0,0,0,0,0,0,0,0,0,0,0,0,0,0,0,0,null,null,null,null,null,null,null,null,null,null,null,null,null,null,null,null,null,null,null,null,null,null,null,null,null,null,null,null,null,null,null,null,null,null,null,null,null,null,null,null,null,null,null,null,null,null,null,null,null,0]
[164,0,0,0,null,0,0,0,0,0,0,0,0,0,0,null,0,0,0,0,0,null,0,0,null,null,null,null,0,null,0,null,null,null,null,null,0,0,0,null,null,null,0,null,null,null,null,null,null,null,null,null,null,null,null,null,null,null,null,null,null,null,null,null,165,null,null,0,0,0,0,0,0,0,0,0,0,0,0,0,0,0,0,0,0,0,0,0,null,null,null,null,null,null,null,null,null,null,null,null,null,null,null,null,null,null,null,null,null,null,null,null,null,null,null,null,null,null,null,null,null,null,null,null,null,null,null,null,null,null,null,null,null,null,null,null,null,0]
[165,0,0,0,null,0,0,0,0,0,0,0,0,0,0,null,0,0,0,0,0,null,0,0,null,null,null,null,0,null,0,null,null,null,null,null,0,0,0,null,null,null,0,null,null,null,null,null,null,null,null,null,null,null,null,null,null,null,null,null,null,null,null,null,166,null,null,{"$f":"IFERROR(AN165*($B165+$C165+$D165)/($B$19+$C$19+$D$19),0)","v":0},0,0,0,0,0,0,0,0,0,0,0,0,0,0,0,0,0,0,0,0,null,null,null,null,null,null,null,null,null,null,null,null,null,null,null,null,null,null,null,null,null,null,null,null,null,null,null,null,null,null,null,null,null,null,null,null,null,null,null,null,null,null,null,null,null,null,null,null,null,0]
[166,0,0,0,null,0,0,0,0,0,0,0,0,0,0,null,0,0,0,0,0,null,0,0,null,null,null,null,0,null,0,null,null,null,null,null,0,0,0,null,null,null,0,null,null,null,null,null,null,null,null,null,null,null,null,null,null,null,null,null,null,null,null,null,167,null,null,0,0,0,0,0,0,0,0,0,0,0,0,0,0,0,0,0,0,0,0,0,null,null,null,null,null,null,null,null,null,null,null,null,null,null,null,null,null,null,null,null,null,null,null,null,null,null,null,null,null,null,null,null,null,null,null,null,null,null,null,null,null,null,null,null,null,null,null,null,null,0]
[167,0,0,0,null,0,0,0,0,0,0,0,0,0,0,null,0,0,0,0,0,null,0,0,null,null,null,null,0,null,0,null,null,null,null,null,0,0,0,null,null,null,0,null,null,null,null,null,null,null,null,null,null,null,null,null,null,null,null,null,null,null,null,null,168,null,null,0,0,0,0,0,0,0,0,0,0,0,0,0,0,0,0,0,0,0,0,0,null,null,null,null,null,null,null,null,null,null,null,null,null,null,null,null,null,null,null,null,null,null,null,null,null,null,null,null,null,null,null,null,null,null,null,null,null,null,null,null,null,null,null,null,null,null,null,null,null,0]
[168,0,0,0,null,0,0,0,0,0,0,0,0,0,0,null,0,0,0,0,{"$f":"IFERROR(IF(OFFSET(O168,0,V$2-1)>0,1,0),0)","v":0},null,0,0,null,null,null,null,0,null,0,null,null,null,null,null,0,0,0,null,null,null,0,null,null,null,null,null,null,null,null,null,null,null,null,null,null,null,null,null,null,null,null,null,169,null,null,0,0,0,0,0,0,0,0,0,0,0,0,0,0,0,0,0,0,0,0,0,null,null,null,null,null,null,null,null,null,null,null,null,null,null,null,null,null,null,null,null,null,null,null,null,null,null,null,null,null,null,null,null,null,null,null,null,null,null,null,null,null,null,null,null,null,null,null,null,null,0]
[169,0,0,0,null,0,0,0,0,0,0,0,0,0,0,null,0,0,0,0,0,null,0,0,null,null,null,null,0,null,0,null,null,null,null,null,0,0,0,null,null,null,0,null,null,null,null,null,null,null,null,null,null,null,null,null,null,null,null,null,null,null,null,null,170,null,null,0,0,0,0,0,0,0,0,0,0,0,0,0,0,0,0,0,0,0,0,0,null,null,null,null,null,null,null,null,null,null,null,null,null,null,null,null,null,null,null,null,null,null,null,null,null,null,null,null,null,null,null,null,null,null,null,null,null,null,null,null,null,null,null,null,null,null,null,null,null,0]
[170,0,0,0,null,0,0,0,0,0,0,0,0,0,0,null,0,0,0,0,0,null,0,0,null,null,null,null,0,null,0,null,null,null,null,null,0,0,0,null,null,null,0,null,null,null,null,null,null,null,null,null,null,null,null,null,null,null,null,null,null,null,null,null,171,null,null,0,0,0,0,0,0,0,0,0,0,0,0,0,0,0,0,0,0,0,0,0,null,null,null,null,null,null,null,null,null,null,null,null,null,null,null,null,null,null,null,null,null,null,null,null,null,null,null,null,null,null,null,null,null,null,null,null,null,null,null,null,null,null,null,null,null,null,null,null,null,0]
[171,0,0,0,null,0,0,0,0,0,0,0,0,0,0,null,0,0,0,0,0,null,0,0,null,null,null,null,0,null,0,null,null,null,null,null,0,0,0,null,null,null,0,null,null,null,null,null,null,null,null,null,null,null,null,null,null,null,null,null,null,null,null,null,172,null,null,0,0,0,0,0,0,0,0,0,0,0,0,0,0,0,0,0,0,0,0,0,null,null,null,null,null,null,null,null,null,null,null,null,null,null,null,null,null,null,null,null,null,null,null,null,null,null,null,null,null,null,null,null,null,null,null,null,null,null,null,null,null,null,null,null,null,null,null,null,null,0]
[172,0,0,0,null,0,0,0,0,0,0,0,0,0,0,null,0,0,0,0,0,null,0,0,null,null,null,null,0,null,0,null,null,null,null,null,0,0,0,null,null,null,0,null,null,null,null,null,null,null,null,null,null,null,null,null,null,null,null,null,null,null,null,null,173,null,null,0,0,0,0,0,0,0,0,0,0,0,0,0,0,0,0,0,0,0,0,0,null,null,null,null,null,null,null,null,null,null,null,null,null,null,null,null,null,null,null,null,null,null,null,null,null,null,null,null,null,null,null,null,null,null,null,null,null,null,null,null,null,null,null,null,null,null,null,null,null,0]
[173,0,0,0,null,0,0,0,0,0,0,0,0,0,0,null,0,0,0,0,0,null,0,0,null,null,null,null,0,null,0,null,null,null,null,null,0,0,0,null,null,null,0,null,null,null,null,null,null,null,null,null,null,null,null,null,null,null,null,null,null,null,null,null,174,null,null,0,0,0,0,0,0,0,0,0,0,0,0,0,0,0,0,0,0,0,0,0,null,null,null,null,null,null,null,null,null,null,null,null,null,null,null,null,null,null,null,null,null,null,null,null,null,null,null,null,null,null,null,null,null,null,null,null,null,null,null,null,null,null,null,null,null,null,null,null,null,0]
[174,0,0,0,null,0,0,0,0,0,0,0,0,0,0,null,0,0,0,0,0,null,0,0,null,null,null,null,0,null,0,null,null,null,null,null,0,0,0,null,null,null,0,null,null,null,null,null,null,null,null,null,null,null,null,null,null,null,null,null,null,null,null,null,175,null,null,0,0,0,0,0,0,0,0,0,0,0,0,0,0,0,0,0,0,0,0,0,null,null,null,null,null,null,null,null,null,null,null,null,null,null,null,null,null,null,null,null,null,null,null,null,null,null,null,null,null,null,null,null,null,null,null,null,null,null,null,null,null,null,null,null,null,null,null,null,null,0]
[175,0,0,0,null,0,0,0,0,0,0,0,0,0,0,null,0,0,0,0,0,null,0,0,null,null,null,null,0,null,0,null,null,null,null,null,0,0,0,null,null,null,0,null,null,null,null,null,null,null,null,null,null,null,null,null,null,null,null,null,null,null,null,null,176,null,null,0,0,0,0,0,0,0,0,0,0,0,0,0,0,0,0,0,0,0,0,0,null,null,null,null,null,null,null,null,null,null,null,null,null,null,null,null,null,null,null,null,null,null,null,null,null,null,null,null,null,null,null,null,null,null,null,null,null,null,null,null,null,null,null,null,null,null,null,null,null,0]
[176,0,0,0,null,0,0,0,0,0,0,0,0,0,0,null,0,0,0,0,0,null,0,0,null,null,null,null,0,null,0,null,null,null,null,null,0,0,0,null,null,null,0,null,null,null,null,null,null,null,null,null,null,null,null,null,null,null,null,null,null,null,null,null,177,null,null,0,0,0,0,0,0,0,0,0,0,0,0,0,0,0,0,0,0,0,0,0,null,null,null,null,null,null,null,null,null,null,null,null,null,null,null,null,null,null,null,null,null,null,null,null,null,null,null,null,null,null,null,null,null,null,null,null,null,null,null,null,null,null,null,null,null,null,null,null,null,0]
[177,0,0,0,null,0,0,0,0,0,0,0,0,0,0,null,0,0,0,0,0,null,0,0,null,null,null,null,0,null,0,null,null,null,null,null,0,0,0,null,null,null,0,null,null,null,null,null,null,null,null,null,null,null,null,null,null,null,null,null,null,null,null,null,178,null,null,0,0,0,0,0,0,0,0,0,0,0,0,0,0,0,0,0,0,0,0,0,null,null,null,null,null,null,null,null,null,null,null,null,null,null,null,null,null,null,null,null,null,null,null,null,null,null,null,null,null,null,null,null,null,null,null,null,null,null,null,null,null,null,null,null,null,null,null,null,null,0]
[178,0,0,0,null,0,0,0,0,0,0,0,0,0,0,null,0,0,0,0,0,null,0,0,null,null,null,null,0,null,0,null,null,null,null,null,0,0,0,null,null,null,0,null,null,null,null,null,null,null,null,null,null,null,null,null,null,null,null,null,null,null,null,null,179,null,null,0,0,0,0,0,0,0,0,0,0,0,0,0,0,0,0,0,0,0,0,0,null,null,null,null,null,null,null,null,null,null,null,null,null,null,null,null,null,null,null,null,null,null,null,null,null,null,null,null,null,null,null,null,null,null,null,null,null,null,null,null,null,null,null,null,null,null,null,null,null,0]
[179,0,0,0,null,0,0,0,0,0,0,0,0,0,0,null,0,0,0,0,0,null,0,0,null,null,null,null,0,null,0,null,null,null,null,null,0,0,0,null,null,null,0,null,null,null,null,null,null,null,null,null,null,null,null,null,null,null,null,null,null,null,null,null,180,null,null,0,0,0,0,0,0,0,0,0,0,0,0,0,0,0,0,0,0,0,0,0,null,null,null,null,null,null,null,null,null,null,null,null,null,null,null,null,null,null,null,null,null,null,null,null,null,null,null,null,null,null,null,null,null,null,null,null,null,null,null,null,null,null,null,null,null,null,null,null,null,0]
[180,0,0,0,null,0,0,0,0,0,0,0,0,0,0,null,0,0,0,0,0,null,0,0,null,null,null,null,0,null,0,null,null,null,null,null,0,0,0,null,null,null,0,null,null,null,null,null,null,null,null,null,null,null,null,null,null,null,null,null,null,null,null,null,181,null,null,0,0,0,0,0,0,0,0,0,0,0,0,0,0,0,0,0,0,0,0,0,null,null,null,null,null,null,null,null,null,null,null,null,null,null,null,null,null,null,null,null,null,null,null,null,null,null,null,null,null,null,null,null,null,null,null,null,null,null,null,null,null,null,null,null,null,null,null,null,null,0]
[181,{"$f":"IF(N181=3,P181,IF(N181=4,P181,0))","v":0},{"$f":"IF(N181=1,P181,IF(N181=2,P181,0))","v":0},{"$f":"IF(N181=5,P181,0)","v":0},null,{"$f":"IFERROR(AD181*U181*(B181+C181+D181)/(B$19+C$19+D$19),0)","v":0},0,0,{"$f":"IFERROR(AS181*U181*C181/(B$19+C$19+D$19),0)","v":0},{"$f":"IFERROR(AN181*U181*(B181+C181+D181)/($B$19+$C$19+$D$19),0)","v":0},{"$f":"IFERROR(AQ181*U181*(B181+C181+D181)/($B$19+C$19+D$19),0)","v":0},0,{"$f":"AL181*F181/F$19","v":0},{"$f":"IF(AND(Y181=\"kotoinen\",Z181=\"karkearehu\"),1,IF(AND(Y181=\"osto\",Z181=\"karkearehu\"),2,IF(AND(Y181=\"kotoinen\",Z181=\"väkirehu\"),3,IF(AND(Y181=\"osto\",Z181=\"väkirehu\"),4,IF(Z181=\"kivennäisseos\",5,0)))))","v":0},{"$f":"IFERROR(P181/F$18,0)","v":0},null,{"$f":"R181/R$19","v":0},{"$f":"IFERROR(P181/AB181*100,0)","v":0},0,0,0,null,{"$f":"IFERROR(Q181*W$8,0)","v":0},{"$f":"IFERROR(W181*X$7/W$7,0)","v":0},null,null,null,null,{"$f":"AB181/100*AA181","v":0},null,{"$f":"AC181*AD181","v":0},null,null,null,null,null,{"$f":"IF(AB181<>0,ROUND(AJ181/(AB181/100),2),0)","v":0},{"$f":"IF(AD181<>0,ROUND(AK181/AD181,2),0)","v":0},{"$f":"AA181*AJ181/100","v":0},null,null,null,{"$f":"AT181+AU181","v":0},null,null,null,null,null,null,null,null,null,null,null,null,null,null,null,null,null,null,null,null,null,182,null,null,{"$f":"IFERROR(AN181*($B181+$C181+$D181)/($B$19+$C$19+$D$19),0)","v":0},0,0,0,0,0,0,0,{"$f":"IFERROR(AV181*($B181+$C181+$D181)/($B$19+$C$19+$D$19),0)","v":0},{"$f":"IFERROR(AW181*($B181+$C181+$D181)/($B$19+$C$19+$D$19),0)","v":0},{"$f":"IFERROR(AX181*($B181+$C181+$D181)/($B$19+$C$19+$D$19),0)","v":0},{"$f":"IFERROR(AY181*($B181+$C181+$D181)/($B$19+$C$19+$D$19),0)","v":0},{"$f":"IFERROR(AZ181*($B181+$C181+$D181)/($B$19+$C$19+$D$19),0)","v":0},{"$f":"IFERROR(BA181*($B181+$C181+$D181)/($B$19+$C$19+$D$19),0)","v":0},{"$f":"IFERROR(BB181*($B181+$C181+$D181)/($B$19+$C$19+$D$19),0)","v":0},{"$f":"IFERROR(BC181*($B181+$C181+$D181)/($B$19+$C$19+$D$19),0)","v":0},{"$f":"IFERROR(BD181*($B181+$C181+$D181)/($B$19+$C$19+$D$19),0)","v":0},{"$f":"IFERROR(BE181*($B181+$C181+$D181)/($B$19+$C$19+$D$19),0)","v":0},{"$f":"IFERROR(BF181*($B181+$C181+$D181)/($B$19+$C$19+$D$19),0)","v":0},{"$f":"IFERROR(BG181*($B181+$C181+$D181)/($B$19+$C$19+$D$19),0)","v":0},{"$f":"IFERROR(BH181*($B181+$C181+$D181)/($B$19+$C$19+$D$19),0)","v":0},null,null,null,null,null,null,null,null,null,null,null,null,null,null,null,null,null,null,null,null,null,null,null,null,null,null,null,null,null,null,null,null,null,null,null,null,null,null,null,null,null,null,null,null,null,null,null,null,null,0]
[182,0,0,0,null,0,0,0,0,0,0,0,0,0,0,null,0,0,0,0,0,null,0,0,null,null,null,null,0,null,0,null,null,null,null,null,0,0,0,null,null,null,0,null,null,null,null,null,null,null,null,null,null,null,null,null,null,null,null,null,null,null,null,null,183,null,null,0,0,0,0,0,0,0,0,0,0,0,0,0,0,0,0,0,0,0,0,0,null,null,null,null,null,null,null,null,null,null,null,null,null,null,null,null,null,null,null,null,null,null,null,null,null,null,null,null,null,null,null,null,null,null,null,null,null,null,null,null,null,null,null,null,null,null,null,null,null,0]
[183,0,0,0,null,0,0,0,0,0,0,0,0,0,0,null,0,0,0,0,0,null,0,0,null,null,null,null,0,null,0,null,null,null,null,null,0,0,0,null,null,null,0,null,null,null,null,null,null,null,null,null,null,null,null,null,null,null,null,null,null,null,null,null,184,null,null,0,0,0,0,0,0,0,0,0,0,0,0,0,0,0,0,0,0,0,0,0,null,null,null,null,null,null,null,null,null,null,null,null,null,null,null,null,null,null,null,null,null,null,null,null,null,null,null,null,null,null,null,null,null,null,null,null,null,null,null,null,null,null,null,null,null,null,null,null,null,0]
[184,0,0,0,null,0,0,0,0,0,0,0,0,0,0,null,0,0,0,0,0,null,0,0,null,null,null,null,0,null,0,null,null,null,null,null,0,0,0,null,null,null,0,null,null,null,null,null,null,null,null,null,null,null,null,null,null,null,null,null,null,null,null,null,185,null,null,0,0,0,0,0,0,0,0,0,0,0,0,0,0,0,0,0,0,0,0,0,null,null,null,null,null,null,null,null,null,null,null,null,null,null,null,null,null,null,null,null,null,null,null,null,null,null,null,null,null,null,null,null,null,null,null,null,null,null,null,null,null,null,null,null,null,null,null,null,null,0]
[185,0,0,0,null,0,0,0,0,0,0,0,0,0,0,null,0,0,0,0,0,null,0,0,null,null,null,null,0,null,0,null,null,null,null,null,0,0,0,null,null,null,0,null,null,null,null,null,null,null,null,null,null,null,null,null,null,null,null,null,null,null,null,null,186,null,null,0,0,0,0,0,0,0,0,0,0,0,0,0,0,0,0,0,0,0,0,0,null,null,null,null,null,null,null,null,null,null,null,null,null,null,null,null,null,null,null,null,null,null,null,null,null,null,null,null,null,null,null,null,null,null,null,null,null,null,null,null,null,null,null,null,null,null,null,null,null,0]
[186,0,0,0,null,0,0,0,0,0,0,0,0,0,0,null,0,0,0,0,0,null,0,0,null,null,null,null,0,null,0,null,null,null,null,null,0,0,0,null,null,null,0,null,null,null,null,null,null,null,null,null,null,null,null,null,null,null,null,null,null,null,null,null,187,null,null,0,0,0,0,0,0,0,0,0,0,0,0,0,0,0,0,0,0,0,0,0,null,null,null,null,null,null,null,null,null,null,null,null,null,null,null,null,null,null,null,null,null,null,null,null,null,null,null,null,null,null,null,null,null,null,null,null,null,null,null,null,null,null,null,null,null,null,null,null,null,0]
[187,0,0,0,null,0,0,0,0,0,0,0,0,0,0,null,0,0,0,0,0,null,0,0,null,null,null,null,0,null,0,null,null,null,null,null,0,0,0,null,null,null,0,null,null,null,null,null,null,null,null,null,null,null,null,null,null,null,null,null,null,null,null,null,188,null,null,0,0,0,0,0,0,0,0,0,0,0,0,0,0,0,0,0,0,0,0,0,null,null,null,null,null,null,null,null,null,null,null,null,null,null,null,null,null,null,null,null,null,null,null,null,null,null,null,null,null,null,null,null,null,null,null,null,null,null,null,null,null,null,null,null,null,null,null,null,null,0]
[188,0,0,0,null,0,0,0,0,0,0,0,0,0,0,null,0,0,0,0,0,null,0,0,null,null,null,null,0,null,0,null,null,null,null,null,0,0,0,null,null,null,0,null,null,null,null,null,null,null,null,null,null,null,null,null,null,null,null,null,null,null,null,null,189,null,null,0,0,0,0,0,0,0,0,0,0,0,0,0,0,0,0,0,0,0,0,0,null,null,null,null,null,null,null,null,null,null,null,null,null,null,null,null,null,null,null,null,null,null,null,null,null,null,null,null,null,null,null,null,null,null,null,null,null,null,null,null,null,null,null,null,null,null,null,null,null,0]
[189,0,0,0,null,0,0,0,0,0,0,0,0,0,0,null,0,0,0,0,0,null,0,0,null,null,null,null,0,null,0,null,null,null,null,null,0,0,0,null,null,null,0,null,null,null,null,null,null,null,null,null,null,null,null,null,null,null,null,null,null,null,null,null,190,null,null,0,0,0,0,0,0,0,0,0,0,0,0,0,0,0,0,0,0,0,0,0,null,null,null,null,null,null,null,null,null,null,null,null,null,null,null,null,null,null,null,null,null,null,null,null,null,null,null,null,null,null,null,null,null,null,null,null,null,null,null,null,null,null,null,null,null,null,null,null,null,0]
[190,0,0,0,null,0,0,0,0,0,0,0,0,0,0,null,0,0,0,0,0,null,0,0,null,null,null,null,0,null,0,null,null,null,null,null,0,0,0,null,null,null,0,null,null,null,null,null,null,null,null,null,null,null,null,null,null,null,null,null,null,null,null,null,191,null,null,0,0,0,0,0,0,0,0,0,0,0,0,0,0,0,0,0,0,0,0,0,null,null,null,null,null,null,null,null,null,null,null,null,null,null,null,null,null,null,null,null,null,null,null,null,null,null,null,null,null,null,null,null,null,null,null,null,null,null,null,null,null,null,null,null,null,null,null,null,null,0]
[191,0,0,0,null,0,0,0,0,0,0,0,0,0,0,null,0,0,0,0,0,null,0,0,null,null,null,null,0,null,0,null,null,null,null,null,0,0,0,null,null,null,0,null,null,null,null,null,null,null,null,null,null,null,null,null,null,null,null,null,null,null,null,null,192,null,null,0,0,0,0,0,0,0,0,0,0,0,0,0,0,0,0,0,0,0,0,0,null,null,null,null,null,null,null,null,null,null,null,null,null,null,null,null,null,null,null,null,null,null,null,null,null,null,null,null,null,null,null,null,null,null,null,null,null,null,null,null,null,null,null,null,null,null,null,null,null,0]
[192,0,0,0,null,0,0,0,0,0,0,0,0,0,0,null,0,0,0,0,0,null,0,0,null,null,null,null,0,null,0,null,null,null,null,null,0,0,0,null,null,null,0,null,null,null,null,null,null,null,null,null,null,null,null,null,null,null,null,null,null,null,null,null,193,null,null,0,0,0,0,0,0,0,0,0,0,0,0,0,0,0,0,0,0,0,0,0,null,null,null,null,null,null,null,null,null,null,null,null,null,null,null,null,null,null,null,null,null,null,null,null,null,null,null,null,null,null,null,null,null,null,null,null,null,null,null,null,null,null,null,null,null,null,null,null,null,0]
[193,0,0,0,null,0,0,0,0,0,0,0,0,0,0,null,0,0,0,0,0,null,0,0,null,null,null,null,0,null,0,null,null,null,null,null,0,0,0,null,null,null,0,null,null,null,null,null,null,null,null,null,null,null,null,null,null,null,null,null,null,null,null,null,194,null,null,0,0,0,0,0,0,0,0,0,0,0,0,0,0,0,0,0,0,0,0,0,null,null,null,null,null,null,null,null,null,null,null,null,null,null,null,null,null,null,null,null,null,null,null,null,null,null,null,null,null,null,null,null,null,null,null,null,null,null,null,null,null,null,null,null,null,null,null,null,null,0]
[194,0,0,0,null,0,0,0,0,0,0,0,0,0,0,null,0,0,0,0,0,null,0,0,null,null,null,null,0,null,0,null,null,null,null,null,0,0,0,null,null,null,0,null,null,null,null,null,null,null,null,null,null,null,null,null,null,null,null,null,null,null,null,null,195,null,null,0,0,0,0,0,0,0,0,0,0,0,0,0,0,0,0,0,0,0,0,0,null,null,null,null,null,null,null,null,null,null,null,null,null,null,null,null,null,null,null,null,null,null,null,null,null,null,null,null,null,null,null,null,null,null,null,null,null,null,null,null,null,null,null,null,null,null,null,null,null,0]
[195,0,0,0,null,0,0,0,0,0,0,0,0,0,0,null,0,0,{"$f":"IF(Z195=\"karkearehu\",1,0)","v":0},{"$f":"S195*X195","v":0},0,null,0,0,null,null,null,null,0,null,0,null,null,null,null,null,0,0,0,null,null,null,0,null,null,null,null,null,null,null,null,null,null,null,null,null,null,null,null,null,null,null,null,null,196,null,null,0,0,0,0,0,0,0,0,0,0,0,0,0,0,0,0,0,0,0,0,0,null,null,null,null,null,null,null,null,null,null,null,null,null,null,null,null,null,null,null,null,null,null,null,null,null,null,null,null,null,null,null,null,null,null,null,null,null,null,null,null,null,null,null,null,null,null,null,null,null,0]
[196,0,0,0,null,0,0,0,0,0,0,0,0,0,0,null,0,0,0,0,0,null,0,0,null,null,null,null,0,null,0,null,null,null,null,null,0,0,0,null,null,null,0,null,null,null,null,null,null,null,null,null,null,null,null,null,null,null,null,null,null,null,null,null,197,null,null,0,0,0,0,0,0,0,0,0,0,0,0,0,0,0,0,0,0,0,0,0,null,null,null,null,null,null,null,null,null,null,null,null,null,null,null,null,null,null,null,null,null,null,null,null,null,null,null,null,null,null,null,null,null,null,null,null,null,null,null,null,null,null,null,null,null,null,null,null,null,0]
[197,0,0,0,null,0,0,0,0,0,0,0,0,0,0,null,0,0,0,0,0,null,0,0,null,null,null,null,0,null,0,null,null,null,null,null,0,0,0,null,null,null,0,null,null,null,null,null,null,null,null,null,null,null,null,null,null,null,null,null,null,null,null,null,198,null,null,{"$f":"IFERROR(AN197*($B197+$C197+$D197)/($B$19+$C$19+$D$19),0)","v":0},0,0,0,0,0,0,0,0,0,0,0,0,0,0,0,0,0,0,0,0,null,null,null,null,null,null,null,null,null,null,null,null,null,null,null,null,null,null,null,null,null,null,null,null,null,null,null,null,null,null,null,null,null,null,null,null,null,null,null,null,null,null,null,null,null,null,null,null,null,0]
[198,0,0,0,null,0,0,0,0,0,0,0,0,0,0,null,0,0,0,0,0,null,0,0,null,null,null,null,0,null,0,null,null,null,null,null,0,0,0,null,null,null,0,null,null,null,null,null,null,null,null,null,null,null,null,null,null,null,null,null,null,null,null,null,199,null,null,0,0,0,0,0,0,0,0,0,0,0,0,0,0,0,0,0,0,0,0,0,null,null,null,null,null,null,null,null,null,null,null,null,null,null,null,null,null,null,null,null,null,null,null,null,null,null,null,null,null,null,null,null,null,null,null,null,null,null,null,null,null,null,null,null,null,null,null,null,null,0]
[199,0,0,0,null,0,0,0,0,0,0,0,0,0,0,null,0,0,0,0,0,null,0,0,null,null,null,null,0,null,0,null,null,null,null,null,0,0,0,null,null,null,0,null,null,null,null,null,null,null,null,null,null,null,null,null,null,null,null,null,null,null,null,null,200,null,null,0,0,0,0,0,0,0,0,0,0,0,0,0,0,0,0,0,0,0,0,0,null,null,null,null,null,null,null,null,null,null,null,null,null,null,null,null,null,null,null,null,null,null,null,null,null,null,null,null,null,null,null,null,null,null,null,null,null,null,null,null,null,null,null,null,null,null,null,null,null,0]
[200,0,0,0,null,0,0,0,0,0,0,0,0,0,0,null,0,0,0,0,0,null,0,0,null,null,null,null,0,null,0,null,null,null,null,null,0,0,0,null,null,null,0,null,null,null,null,null,null,null,null,null,null,null,null,null,null,null,null,null,null,null,null,null,201,null,null,0,0,0,0,0,0,0,0,0,0,0,0,0,0,0,0,0,0,0,0,0,null,null,null,null,null,null,null,null,null,null,null,null,null,null,null,null,null,null,null,null,null,null,null,null,null,null,null,null,null,null,null,null,null,null,null,null,null,null,null,null,null,null,null,null,null,null,null,null,null,0]
[201,0,0,0,null,0,0,0,0,0,0,0,0,0,0,null,0,0,0,0,0,null,0,0,null,null,null,null,0,null,0,null,null,null,null,null,0,0,0,null,null,null,0,null,null,null,null,null,null,null,null,null,null,null,null,null,null,null,null,null,null,null,null,null,202,null,null,0,0,0,0,0,0,0,0,0,0,0,0,0,0,0,0,0,0,0,0,0,null,null,null,null,null,null,null,null,null,null,null,null,null,null,null,null,null,null,null,null,null,null,null,null,null,null,null,null,null,null,null,null,null,null,null,null,null,null,null,null,null,null,null,null,null,null,null,null,null,0]
[202,0,0,0,null,0,0,0,0,0,0,0,0,0,0,null,0,0,0,0,0,null,0,0,null,null,null,null,0,null,0,null,null,null,null,null,0,0,0,null,null,null,0,null,null,null,null,null,null,null,null,null,null,null,null,null,null,null,null,null,null,null,null,null,203,null,null,0,0,0,0,0,0,0,0,0,0,0,0,0,0,0,0,0,0,0,0,0,null,null,null,null,null,null,null,null,null,null,null,null,null,null,null,null,null,null,null,null,null,null,null,null,null,null,null,null,null,null,null,null,null,null,null,null,null,null,null,null,null,null,null,null,null,null,null,null,null,0]
[203,0,0,0,null,0,0,0,0,0,0,0,0,0,0,null,0,0,0,0,0,null,0,0,null,null,null,null,0,null,0,null,null,null,null,null,0,0,0,null,null,null,0,null,null,null,null,null,null,null,null,null,null,null,null,null,null,null,null,null,null,null,null,null,204,null,null,0,0,0,0,0,0,0,0,0,0,0,0,0,0,0,0,0,0,0,0,0,null,null,null,null,null,null,null,null,null,null,null,null,null,null,null,null,null,null,null,null,null,null,null,null,null,null,null,null,null,null,null,null,null,null,null,null,null,null,null,null,null,null,null,null,null,null,null,null,null,0]
[204,0,0,0,null,0,0,0,0,0,0,0,0,0,0,null,0,0,0,0,0,null,0,0,null,null,null,null,0,null,0,null,null,null,null,null,0,0,0,null,null,null,0,null,null,null,null,null,null,null,null,null,null,null,null,null,null,null,null,null,null,null,null,null,205,null,null,0,0,0,0,0,0,0,0,0,0,0,0,0,0,0,0,0,0,0,0,0,null,null,null,null,null,null,null,null,null,null,null,null,null,null,null,null,null,null,null,null,null,null,null,null,null,null,null,null,null,null,null,null,null,null,null,null,null,null,null,null,null,null,null,null,null,null,null,null,null,0]
[205,0,0,0,null,0,0,0,0,0,0,0,0,0,0,null,0,0,0,0,0,null,0,0,null,null,null,null,0,null,0,null,null,null,null,null,0,0,0,null,null,null,0,null,null,null,null,null,null,null,null,null,null,null,null,null,null,null,null,null,null,null,null,null,206,null,null,0,0,0,0,0,0,0,0,0,0,0,0,0,0,0,0,0,0,0,0,0,null,null,null,null,null,null,null,null,null,null,null,null,null,null,null,null,null,null,null,null,null,null,null,null,null,null,null,null,null,null,null,null,null,null,null,null,null,null,null,null,null,null,null,null,null,null,null,null,null,0]
[206,0,0,0,null,0,0,0,0,0,0,0,0,0,0,null,0,0,0,0,0,null,0,0,null,null,null,null,0,null,0,null,null,null,null,null,0,0,0,null,null,null,0,null,null,null,null,null,null,null,null,null,null,null,null,null,null,null,null,null,null,null,null,null,207,null,null,0,0,0,0,0,0,0,0,0,0,0,0,0,0,0,0,0,0,0,0,0,null,null,null,null,null,null,null,null,null,null,null,null,null,null,null,null,null,null,null,null,null,null,null,null,null,null,null,null,null,null,null,null,null,null,null,null,null,null,null,null,null,null,null,null,null,null,null,null,null,0]
[207,0,0,0,null,0,0,0,0,0,0,0,0,0,0,null,0,0,0,0,0,null,0,0,null,null,null,null,0,null,0,null,null,null,null,null,0,0,0,null,null,null,0,null,null,null,null,null,null,null,null,null,null,null,null,null,null,null,null,null,null,null,null,null,208,null,null,0,0,0,0,0,0,0,0,0,0,0,0,0,0,0,0,0,0,0,0,0,null,null,null,null,null,null,null,null,null,null,null,null,null,null,null,null,null,null,null,null,null,null,null,null,null,null,null,null,null,null,null,null,null,null,null,null,null,null,null,null,null,null,null,null,null,null,null,null,null,0]
[208,0,0,0,null,0,0,0,0,0,0,0,0,0,0,null,0,0,0,0,0,null,0,0,null,null,null,null,0,null,0,null,null,null,null,null,0,0,0,null,null,null,0,null,null,null,null,null,null,null,null,null,null,null,null,null,null,null,null,null,null,null,null,null,209,null,null,0,0,0,0,0,0,0,0,0,0,0,0,0,0,0,0,0,0,0,0,0,null,null,null,null,null,null,null,null,null,null,null,null,null,null,null,null,null,null,null,null,null,null,null,null,null,null,null,null,null,null,null,null,null,null,null,null,null,null,null,null,null,null,null,null,null,null,null,null,null,0]
[209,0,0,0,null,0,0,0,0,0,0,0,0,0,0,null,0,0,0,0,0,null,0,0,null,null,null,null,0,null,0,null,null,null,null,null,0,0,0,null,null,null,0,null,null,null,null,null,null,null,null,null,null,null,null,null,null,null,null,null,null,null,null,null,210,null,null,0,0,0,0,0,0,0,0,0,0,0,0,0,0,0,0,0,0,0,0,0,null,null,null,null,null,null,null,null,null,null,null,null,null,null,null,null,null,null,null,null,null,null,null,null,null,null,null,null,null,null,null,null,null,null,null,null,null,null,null,null,null,null,null,null,null,null,null,null,null,0]
[210,0,0,0,null,0,0,0,0,0,0,0,0,0,0,null,0,0,0,0,0,null,0,0,null,null,null,null,0,null,0,null,null,null,null,null,0,0,0,null,null,null,0,null,null,null,null,null,null,null,null,null,null,null,null,null,null,null,null,null,null,null,null,null,211,null,null,0,0,0,0,0,0,0,0,0,0,0,0,0,0,0,0,0,0,0,0,0,null,null,null,null,null,null,null,null,null,null,null,null,null,null,null,null,null,null,null,null,null,null,null,null,null,null,null,null,null,null,null,null,null,null,null,null,null,null,null,null,null,null,null,null,null,null,null,null,null,0]
[211,0,0,0,null,0,0,0,0,0,0,0,0,0,0,null,0,0,0,0,0,null,0,0,null,null,null,null,0,null,0,null,null,null,null,null,0,0,0,null,null,null,0,null,null,null,null,null,null,null,null,null,null,null,null,null,null,null,null,null,null,null,null,null,212,null,null,0,0,0,0,0,0,0,0,0,0,0,0,0,0,0,0,0,0,0,0,0,null,null,null,null,null,null,null,null,null,null,null,null,null,null,null,null,null,null,null,null,null,null,null,null,null,null,null,null,null,null,null,null,null,null,null,null,null,null,null,null,null,null,null,null,null,null,null,null,null,0]
[212,0,0,0,null,0,0,0,0,0,0,0,0,0,0,null,0,0,0,0,0,null,0,0,null,null,null,null,0,null,0,null,null,null,null,null,0,0,0,null,null,null,0,null,null,null,null,null,null,null,null,null,null,null,null,null,null,null,null,null,null,null,null,null,213,null,null,0,0,0,0,0,0,0,0,0,0,0,0,0,0,0,0,0,0,0,0,0,null,null,null,null,null,null,null,null,null,null,null,null,null,null,null,null,null,null,null,null,null,null,null,null,null,null,null,null,null,null,null,null,null,null,null,null,null,null,null,null,null,null,null,null,null,null,null,null,null,0]
[213,{"$f":"IF(N213=3,P213,IF(N213=4,P213,0))","v":0},{"$f":"IF(N213=1,P213,IF(N213=2,P213,0))","v":0},{"$f":"IF(N213=5,P213,0)","v":0},null,{"$f":"IFERROR(AD213*U213*(B213+C213+D213)/(B$19+C$19+D$19),0)","v":0},0,0,{"$f":"IFERROR(AS213*U213*C213/(B$19+C$19+D$19),0)","v":0},{"$f":"IFERROR(AN213*U213*(B213+C213+D213)/($B$19+$C$19+$D$19),0)","v":0},{"$f":"IFERROR(AQ213*U213*(B213+C213+D213)/($B$19+C$19+D$19),0)","v":0},{"$f":"IFERROR(AK213*U213*(B213+C213+D213)/(B$19+C$19+D$19),0)","v":0},{"$f":"AL213*F213/F$19","v":0},{"$f":"IF(AND(Y213=\"kotoinen\",Z213=\"karkearehu\"),1,IF(AND(Y213=\"osto\",Z213=\"karkearehu\"),2,IF(AND(Y213=\"kotoinen\",Z213=\"väkirehu\"),3,IF(AND(Y213=\"osto\",Z213=\"väkirehu\"),4,IF(Z213=\"kivennäisseos\",5,0)))))","v":0},{"$f":"IFERROR(P213/F$18,0)","v":0},null,{"$f":"R213/R$19","v":0},{"$f":"IFERROR(P213/AB213*100,0)","v":0},0,0,0,null,{"$f":"IFERROR(Q213*W$8,0)","v":0},{"$f":"IFERROR(W213*X$7/W$7,0)","v":0},null,null,null,null,{"$f":"AB213/100*AA213","v":0},null,{"$f":"AC213*AD213","v":0},null,null,null,null,null,{"$f":"IF(AB213<>0,ROUND(AJ213/(AB213/100),2),0)","v":0},{"$f":"IF(AD213<>0,ROUND(AK213/AD213,2),0)","v":0},{"$f":"AA213*AJ213/100","v":0},null,null,null,{"$f":"AT213+AU213","v":0},null,null,null,null,null,null,null,null,null,null,null,null,null,null,null,null,null,null,null,null,null,214,null,null,{"$f":"IFERROR(AN213*($B213+$C213+$D213)/($B$19+$C$19+$D$19),0)","v":0},0,0,0,{"$f":"IFERROR(AR213*($B213+$C213+$D213)/($C$19),0)","v":0},0,0,0,{"$f":"IFERROR(AV213*($B213+$C213+$D213)/($B$19+$C$19+$D$19),0)","v":0},{"$f":"IFERROR(AW213*($B213+$C213+$D213)/($B$19+$C$19+$D$19),0)","v":0},{"$f":"IFERROR(AX213*($B213+$C213+$D213)/($B$19+$C$19+$D$19),0)","v":0},{"$f":"IFERROR(AY213*($B213+$C213+$D213)/($B$19+$C$19+$D$19),0)","v":0},{"$f":"IFERROR(AZ213*($B213+$C213+$D213)/($B$19+$C$19+$D$19),0)","v":0},{"$f":"IFERROR(BA213*($B213+$C213+$D213)/($B$19+$C$19+$D$19),0)","v":0},{"$f":"IFERROR(BB213*($B213+$C213+$D213)/($B$19+$C$19+$D$19),0)","v":0},{"$f":"IFERROR(BC213*($B213+$C213+$D213)/($B$19+$C$19+$D$19),0)","v":0},{"$f":"IFERROR(BD213*($B213+$C213+$D213)/($B$19+$C$19+$D$19),0)","v":0},{"$f":"IFERROR(BE213*($B213+$C213+$D213)/($B$19+$C$19+$D$19),0)","v":0},{"$f":"IFERROR(BF213*($B213+$C213+$D213)/($B$19+$C$19+$D$19),0)","v":0},{"$f":"IFERROR(BG213*($B213+$C213+$D213)/($B$19+$C$19+$D$19),0)","v":0},{"$f":"IFERROR(BH213*($B213+$C213+$D213)/($B$19+$C$19+$D$19),0)","v":0},null,null,null,null,null,null,null,null,null,null,null,null,null,null,null,null,null,null,null,null,null,null,null,null,null,null,null,null,null,null,null,null,null,null,null,null,null,null,null,null,null,null,null,null,null,null,null,null,null,0]
[214,0,0,0,null,0,{"$f":"IFERROR(B214/AB214*100,0)","v":0},{"$f":"IFERROR(C214/AB214*100,0)","v":0},0,0,0,0,0,0,0,null,0,0,0,0,0,null,0,0,null,null,null,null,0,null,0,null,null,null,null,null,0,0,0,null,null,null,0,null,null,null,null,null,null,null,null,null,null,null,null,null,null,null,null,null,null,null,null,null,215,null,null,0,0,0,0,0,0,0,0,0,0,0,0,0,0,0,0,0,0,0,0,0,null,null,null,null,null,null,null,null,null,null,null,null,null,null,null,null,null,null,null,null,null,null,null,null,null,null,null,null,null,null,null,null,null,null,null,null,null,null,null,null,null,null,null,null,null,null,null,null,null,0]
[215,0,0,0,null,0,0,0,0,0,0,0,0,0,0,null,0,0,0,0,0,null,0,0,null,null,null,null,0,null,0,null,null,null,null,null,0,0,0,null,null,null,0,null,null,null,null,null,null,null,null,null,null,null,null,null,null,null,null,null,null,null,null,null,216,null,null,0,0,0,0,0,0,0,0,0,0,0,0,0,0,0,0,0,0,0,0,0,null,null,null,null,null,null,null,null,null,null,null,null,null,null,null,null,null,null,null,null,null,null,null,null,null,null,null,null,null,null,null,null,null,null,null,null,null,null,null,null,null,null,null,null,null,null,null,null,null,0]
[216,0,0,0,null,0,0,0,0,0,0,0,0,0,0,null,0,0,0,0,0,null,0,0,null,null,null,null,0,null,0,null,null,null,null,null,0,0,0,null,null,null,0,null,null,null,null,null,null,null,null,null,null,null,null,null,null,null,null,null,null,null,null,null,217,null,null,0,0,0,0,0,0,0,0,0,0,0,0,0,0,0,0,0,0,0,0,0,null,null,null,null,null,null,null,null,null,null,null,null,null,null,null,null,null,null,null,null,null,null,null,null,null,null,null,null,null,null,null,null,null,null,null,null,null,null,null,null,null,null,null,null,null,null,null,null,null,0]
[217,0,0,0,null,0,0,0,0,0,0,0,0,0,0,null,0,0,0,0,0,null,0,0,null,null,null,null,0,null,0,null,null,null,null,null,0,0,0,null,null,null,0,null,null,null,null,null,null,null,null,null,null,null,null,null,null,null,null,null,null,null,null,null,218,null,null,0,0,0,0,0,0,0,0,0,0,0,0,0,0,0,0,0,0,0,0,0,null,null,null,null,null,null,null,null,null,null,null,null,null,null,null,null,null,null,null,null,null,null,null,null,null,null,null,null,null,null,null,null,null,null,null,null,null,null,null,null,null,null,null,null,null,null,null,null,null,0]
[218,0,0,0,null,0,0,0,0,0,0,0,0,0,0,null,0,0,0,0,0,null,0,0,null,null,null,null,0,null,0,null,null,null,null,null,0,0,0,null,null,null,0,null,null,null,null,null,null,null,null,null,null,null,null,null,null,null,null,null,null,null,null,null,219,null,null,0,0,0,0,0,0,0,0,0,0,0,0,0,0,0,0,0,0,0,0,0,null,null,null,null,null,null,null,null,null,null,null,null,null,null,null,null,null,null,null,null,null,null,null,null,null,null,null,null,null,null,null,null,null,null,null,null,null,null,null,null,null,null,null,null,null,null,null,null,null,0]
[219,0,0,0,null,{"$f":"IFERROR(AD219*U219*(B219+C219+D219)/(B217+C217+D217),0)","v":0},0,0,0,0,0,0,0,0,0,null,0,0,0,0,0,null,0,0,null,null,null,null,0,null,0,null,null,null,null,null,0,0,0,null,null,null,0,null,null,null,null,null,null,null,null,null,null,null,null,null,null,null,null,null,null,null,null,null,220,null,null,0,0,0,0,0,0,0,0,0,0,0,0,0,0,0,0,0,0,0,0,0,null,null,null,null,null,null,null,null,null,null,null,null,null,null,null,null,null,null,null,null,null,null,null,null,null,null,null,null,null,null,null,null,null,null,null,null,null,null,null,null,null,null,null,null,null,null,null,null,null,0]
[220,{"$f":"IF(N220=3,P220,IF(N220=4,P220,0))","v":0},{"$f":"IF(N220=1,P220,IF(N220=2,P220,0))","v":0},{"$f":"IF(N220=5,P220,0)","v":0},null,{"$f":"IFERROR(AD220*U220*(B220+C220+D220)/(B218+C218+D218),0)","v":0},0,0,{"$f":"IFERROR(AS220*U220*C220/(B$19+C$19+D$19),0)","v":0},{"$f":"IFERROR(AN220*U220*(B220+C220+D220)/($B$19+$C$19+$D$19),0)","v":0},{"$f":"IFERROR(AQ220*U220*(B220+C220+D220)/($B$19+C$19+D$19),0)","v":0},0,{"$f":"AL220*F220/F$19","v":0},{"$f":"IF(AND(Y220=\"kotoinen\",Z220=\"karkearehu\"),1,IF(AND(Y220=\"osto\",Z220=\"karkearehu\"),2,IF(AND(Y220=\"kotoinen\",Z220=\"väkirehu\"),3,IF(AND(Y220=\"osto\",Z220=\"väkirehu\"),4,IF(Z220=\"kivennäisseos\",5,0)))))","v":0},{"$f":"IFERROR(P220/F$18,0)","v":0},null,{"$f":"R220/R$19","v":0},{"$f":"IFERROR(P220/AB220*100,0)","v":0},0,0,0,null,{"$f":"IFERROR(Q220*W$8,0)","v":0},{"$f":"IFERROR(W220*X$7/W$7,0)","v":0},null,null,null,null,{"$f":"AB220/100*AA220","v":0},null,{"$f":"AC220*AD220","v":0},null,null,null,null,null,{"$f":"IF(AB220<>0,ROUND(AJ220/(AB220/100),2),0)","v":0},{"$f":"IF(AD220<>0,ROUND(AK220/AD220,2),0)","v":0},{"$f":"AA220*AJ220/100","v":0},null,null,null,{"$f":"AT220+AU220","v":0},null,null,null,null,null,null,null,null,null,null,null,null,null,null,null,null,null,null,null,null,null,221,null,null,{"$f":"IFERROR(AN220*($B220+$C220+$D220)/($B$19+$C$19+$D$19),0)","v":0},{"$f":"IFERROR(AO220*($B220+$C220+$D220)/($B$19+$C$19+$D$19),0)","v":0},{"$f":"IFERROR(AP220*($B220+$C220+$D220)/($B$19+$C$19+$D$19),0)","v":0},{"$f":"IFERROR(AQ220*($B220+$C220+$D220)/($B$19+$C$19+$D$19),0)","v":0},0,{"$f":"IFERROR(AS220*($B220+$C220+$D220)/($B$19+$C$19+$D$19),0)","v":0},{"$f":"IFERROR(AT220*($B220+$C220+$D220)/($B$19+$C$19+$D$19),0)","v":0},{"$f":"IFERROR(AU220*($B220+$C220+$D220)/($B$19+$C$19+$D$19),0)","v":0},{"$f":"IFERROR(AV220*($B220+$C220+$D220)/($B$19+$C$19+$D$19),0)","v":0},{"$f":"IFERROR(AW220*($B220+$C220+$D220)/($B$19+$C$19+$D$19),0)","v":0},{"$f":"IFERROR(AX220*($B220+$C220+$D220)/($B$19+$C$19+$D$19),0)","v":0},{"$f":"IFERROR(AY220*($B220+$C220+$D220)/($B$19+$C$19+$D$19),0)","v":0},{"$f":"IFERROR(AZ220*($B220+$C220+$D220)/($B$19+$C$19+$D$19),0)","v":0},{"$f":"IFERROR(BA220*($B220+$C220+$D220)/($B$19+$C$19+$D$19),0)","v":0},{"$f":"IFERROR(BB220*($B220+$C220+$D220)/($B$19+$C$19+$D$19),0)","v":0},{"$f":"IFERROR(BC220*($B220+$C220+$D220)/($B$19+$C$19+$D$19),0)","v":0},{"$f":"IFERROR(BD220*($B220+$C220+$D220)/($B$19+$C$19+$D$19),0)","v":0},{"$f":"IFERROR(BE220*($B220+$C220+$D220)/($B$19+$C$19+$D$19),0)","v":0},{"$f":"IFERROR(BF220*($B220+$C220+$D220)/($B$19+$C$19+$D$19),0)","v":0},{"$f":"IFERROR(BG220*($B220+$C220+$D220)/($B$19+$C$19+$D$19),0)","v":0},{"$f":"IFERROR(BH220*($B220+$C220+$D220)/($B$19+$C$19+$D$19),0)","v":0},null,null,null,null,null,null,null,null,null,null,null,null,null,null,null,null,null,null,null,null,null,null,null,null,null,null,null,null,null,null,null,null,null,null,null,null,null,null,null,null,null,null,null,null,null,null,null,null,null,0]
[]
[null,null,null,null,null,null,null,null,null,null,null,null,null,null,null,null,null,null,null,null,null,null,null,null,null,null,null,null,null,null,null,null,null,null,null,null,null,null,null,null,null,null,null,null,null,null,null,{"$f":"AV20","v":"Ca"},{"$f":"AW20","v":"P"},"Mg","Na","Fe","Mn","Zn","Cu","Co","Se","I","Mo","A-vit"]
[null,null,null,null,null,null,null,null,null,null,null,null,null,null,null,null,null,null,null,null,null,null,null,null,null,null,null,null,null,null,null,null,null,null,null,null,null,null,null,null,null,null,null,null,null,null,null,{"$f":"AV14/AV14","v":1},1,1,1,1,1,1,1,1,1,1,1,1]
[null,null,null,null,null,null,null,null,null,null,null,null,null,null,null,null,null,null,null,null,null,null,null,null,null,null,null,null,null,null,null,null,null,null,null,null,null,null,null,null,null,null,null,null,null,null,null,{"$f":"AV19/AV14","v":1.5349999999999999},1.0993333333333333,1.4946666666666666,1.12375,1.5318000000000001,1.4929999999999999,1.2908000000000002,1.1839999999999999,3.6799999999999997,3.88,9.2799999999999994,1.08,1.5376272727272728]
[null,null,null,null,null,null,null,null,null,null,null,null,null,null,null,null,null,null,null,null,null,null,null,null,null,null,null,null,null,null,null,null,null,null,null,null,null,null,null,null,null,null,null,null,null,null,null,{"$f":"IFERROR(AV16/AV14,5)","v":5},5,4,37.5,10,32.5,30,20,300,40,250,6.666666666666667,9.0909090909090917]

{"sheet":"VUOSI_REHULASKURI","index":1,"n_rows":131,"n_cols":88,"rows_kept":131,"cut":false,"hidden":false,"merged":[[7,83,7,84]]}
["KeNa",null,null,"VUOSISUUNNITTELUUN VALITUT REHUT",null,null,null,null,null,null,null,null,null,null,null,null,null,null,null,null,null,null,null,null,null,null,null,null,null,null,null,null,null,null,null,null,null,null,null,null,null,"Tuorekilot (tavoite)",350097,"kg tp","vuosirehujen paino (tavoite)",{"$f":"AQ1","v":350097},"vajaan ",null,"NRO","NIMITYS","kasvukerroin",null,{"$f":"2-BC1","v":1.05},"TAVOITEarvo",0.95,"tavoite",{"$f":"IF(BE8>=BE7,3,IF(BE8>0.95*BE7,2,1))","v":3},null,null,null,null,null,null,null,null,null,1,"alle 80%","pun"]
[null,null,null,"Tulostettu:",{"$f":"NOW()","v":"2019-03-13T13:28:34.840"},null,null,"Seos:","   Tähän tulee haluamasi laskelman nimi!",null,null,null,null,null,null,null,null,null,null,null,null,null,null,null,null,null,null,null,null,null,null,null,null,null,null,null,null,null,null,"Rehuseos",null,null,null,null,"vuosirehujen pain(tot)",{"$f":"AW21","v":739389.19859378971},null,"Eläinrotu",1,"Maitorotuiset",{"$f":"VLOOKUP(AW2,AW4:AY6,3)","v":1.1000000000000001},null,{"$f":"2-BC2","v":0.89999999999999991},"abs max",1.1000000000000001,"max",{"$f":"IF(BE8/BE6>BC2,1,IF(BE8/BE6>1,2,3))","v":3},{"$f":"IF(BF8>BF6,1,IF(BF8>=0.9*BF6,2,3))","v":3},{"$f":"IF(BG8>BG6,1,IF(BG8>=0.9*BG6,2,3))","v":3},{"$f":"IF(BH8>BH6,1,IF(BH8>=0.9*BH6,2,3))","v":3},{"$f":"IF(BI8>BI6,1,IF(BI8>=0.9*BI6,2,3))","v":3},null,null,null,null,null,2,0.8,"kelt"]
[null,null,null,"Alkupäivä:","31.10.2015",null,null,"Rotu:","Maitorotuiset",null,null,null,"    Eläimiä",null,"kpl","alkupaino",null,null,null,null,null,null,null,null,null,null,null,null,null,null,null,null,null,null,null,null,null,null,null,null,null,"eläimet kpl",null,null,"saavutusprosentti",{"$f":"IF(AQ1=0,0,AT2/AQ1)","v":2.1119552540975493},null,null,"eläinrodut",null,null,null,{"$f":"2-BC3","v":1.05},"abs min",0.95,"min",{"$f":"IF(BE8/BE5<BC3,1,IF(BE8/BE5>=1,3,2))","v":3},{"$f":"IF(BF8<BF5,1,IF(BF8>=0.9*BF6,2,3))","v":3},{"$f":"IF(BG8<BG5,1,IF(BG8>=0.9*BG6,2,3))","v":1},{"$f":"IF(BH8<BH5,1,IF(BH8>=0.9*BH6,2,3))","v":3},{"$f":"IF(BI8<BI5,1,3)","v":3},"T&Sok",{"$f":"IF(BK8<BK5,1,3)","v":3},null,null,null,3,1,"vihr"]
[null,null,null,"Kasvatuksen ","Alkupaino",180,"kg","x"," Onko seos muuttunut?",null,null,null,null,"ryhmä 1    ",100,180,"kg",null,null,null,null,null,null,null,null,null,null,null,null,null,null,null,null,null,null,null,null,null,null,null,null,"alkupaino",null,"Rehuvaunut","rehuvaunukoko",520,null,null,1,"Maitorotuiset",1.1000000000000001,null," *rehuarvotavoite",null," * mj tavoite","väri/tavarvo",{"$f":"MIN(BE1:BE3)","v":3},{"$f":"MIN(BF2:BF3)","v":3},{"$f":"MIN(BG2:BG3)","v":1},{"$f":"MIN(BH2:BH3)","v":3},{"$f":"MIN(BI2:BI3)","v":3},null,{"$f":"MIN(BK2:BK3)","v":3},null,null,null,{"$f":"IF(INT(10*BO8/BO5)<8,1,IF(INT(10*BO8/BO5)<10,2,3))","v":3},3,3,2,3,3,3,3,3,3,3,1,3,3,1]
[null,null,null,null,"Loppupaino",700,"kg",null,null,null,null,null,null,"ryhmä 2    ",100,230,"kg",null,null,null,null,null,null,null,null,null,null,null,null,null,null,null,null,null,null,null,null,null,null,null,null,"kasvatuspäivät",365,null,"Täysien osuus painosta",null,null,null,2,"Keskikokoiset liharodut",1.05,null,null,null,null,"min",9,90,200,-20,0,70,0,null,"min",0,6,3,1.5,1.6,100,40,50,10,0.1,0.1,0.2,0.3,2200,300,25]
[null,null,null,null,"Vaihdon kesto",10,"pv",null,null,null,null,null,null,"ryhmä 3    ",100,430,"kg",null,null,null,null,null,null,null,null,null,null,null,null,null,null,null,null,null,null,null,null,"kasvuvähenemä",2.5000000000000001E-2,null,null,null,null,null,"Vajaan minimipaino",{"$f":"AT7/100*AT4","v":208},null,"vajaan paino",3,"Isot liharodut",1,null,null,null,null,"max",13,250,600,100,400,130,null,null,"max",0,"ei tiedossa","ei tiedossa",6,60,1000,1300,1500,200,30,4,50,2,20000,25000,"ei rajaa"]
[null,null,null,null,"rehuja suunnittelussa",null,null,null,null,null,null,null,null,null,null,null,null,null,null,null,null,null,null,null,null,null,null,null,null,null,null,null,null,null,null,null,null,null,{"$f":"BB21","v":1.4359886845636547},null,null,"tuorekilot yhtensä",null,null,"Vajaan minimipros",40,null,null,null,null,null,null,null,null,{"$f":"TYPE(BE7)","v":1},"tavoite",11.5,"ei ole","ei ole","ei ole","ei ole","ei ole","ei ole",null,"tavoite",0,"Minimiarvon saavutus","Minimiarvon saavutus","Minimiarvon saavutus","Minimiarvon saavutus","Minimiarvon saavutus","Minimiarvon saavutus","Minimiarvon saavutus","Minimiarvon saavutus","Minimiarvon saavutus","Minimiarvon saavutus","Minimiarvon saavutus","Minimiarvon saavutus","Minimiarvon saavutus","Minimiarvon saavutus","Minimiarvon saavutus"]
[null,{"$f":"COUNTA(E11:E20)","v":4},null,"Huom!","Alkupäivä on kasvatuskauden ensimmäinen kasvatuspäivä. Kasvatusryhmiä voi olla kolme, karjarotuja kuitenkin vain yksi. Muuta alla olevat arvot haluamiksesi. Ja poista tämä teksti kun tarpeeton!",null,null,null,null,null,null,null,null,null,null,null,null,null,null,null,null,null,null,null,null,null,null,null,null,null,null,null,null,null,0,null,null,"uudet kilot","uudet päivät","OPTIMOINTITULOS","KA KILOT","MJ ME","KA KILOT","KA KILOT","KA KILOT","RESEPTI_A","RESEPTI_B","TUOREKILOT ","TUOREKILOT ","TUOREKILOT ","TUOREKILOT ",null,null,"NDF srind",{"$f":"SUM(BG11:BG20)","v":293.79259055067047},"tulos",{"$f":"SUM(BE11:BE20)","v":11.592206750245712},{"$f":"SUM(BF11:BF20)","v":160.8667753453677},{"$f":"BC11*BG11+BC12*BG12+BC13*BG13+BC14*BG14+BC15*BG15+BC16*BG16+BC17*BG17+BC18*BG18+BC19*BG19+BC20*BG20","v":153.94523659087901},{"$f":"SUM(BH11:BH20)","v":24.272272156832052},{"$f":"SUM(BI11:BI20)","v":323.1478446242042},{"$f":"SUM(BL11:BL20)","v":115.13999972825521},{"$f":"SUM(BK11:BK20)","v":2.1185318662218782},null,"tulos",0,{"$f":"SUM(BO11:BO20)","v":11.16050201280499},3.2581488070134244,2.5699724469321632,1.4176319186187321,159.85800761670669,51.46257876777846,62.508852432617346,14.108948587202031,0.28418101189790834,0.21537348720110888,1.5120873110199107,0.1861963731165846,2685.458283172879,805.64226507684941,8.0624774757502831,null,{"$f":"ROUND(CF21/CF9,3)","v":0.43099999999999999}," karkearehu/väkiurehusuhde",null,{"$f":"ROUND(CH21/CF9,3)","v":0.56899999999999995},"Väkirehusuhde",{"$f":"100* CE8 & \"%: \" & 100*CH8 &\"%\"","v":"43,1%: 56,9%"}]
["rehuid",null,"Rehutiedot",null,null,null,null,null,null,null,null,null,null,null,"Hintatiedot",null,null,"Varastotiedot",null,null,null,"Kivennäiset ja vitamiinit",null,null,null,null,null,null,null,null,null,null,null,null,null,null,0,350097,"vuoden kakilot","REHUSEOS1","REHUSEOS1","REHUSEOS1","varastossa","varastoon jäi","rehuseos pros","täydet","vajaat","varastossa","rehujen käyttö","jäi kg","osuudet","Rehuseoksen yksikköhinnat",null,null,null,"erotus",{"$f":"BE8-BE7","v":9.2206750245711788E-2},null,null,null,null,null,null,null,"erotus",null,null,null,null,null,null,null,null,null,null,null,null,null,null,null,null,null,"rehut yht kg",{"$f":"CF21+CH21","v":385011},"KA-suhde",{"$f":"100*CH8","v":56.899999999999991}]
["rivi",{"$f":"COUNTA(B11:B20)","v":4},"lähde","rehutyyppi","nimitys","ka-%","RV","NDF","PVT","MJ","Tärk.","Sok.","Srind","VFA","snt/kg tp","snt/kg ka","snt/MJ","tuore kg yht","kg ka yht","mj me yht","eur yht","Ca","P","Mg","Na","Fe","Mn","Zn","Cu","Co","Se","I","Mo","A-vit","D-vit","E-vit","Huom!",{"$f":"AL9/AO21","v":0.89482804892073009},652000,{"$f":"AM10/AO21","v":1.6664749709261033},"käyttö yht\n ka_kg","käyttö yht\nmj","ka_kg","ka kg","ka PROS",{"$f":"IF(((AW21-AT4)*AU6)>AT6,AU6,AU6-1)","v":-1},{"$f":"IF(AU6-AT10<>0,2,0)","v":2},"tuore_kg","tuore_kg","tuore_kg","tuore kg %","snt/kg tp","snt/kg ka","hinta snt/Mj","vain karkearehut ndf-arvoon mukaan","tuorekgmin",{"$f":"J10","v":"MJ"},{"$f":"G10","v":"RV"},{"$f":"H10","v":"NDF"},{"$f":"I10","v":"PVT"},"tärk+sok",{"$f":"M10","v":"Srind"},{"$f":"N10","v":"VFA"},"SRINDAPU","srind\npk\nosuus","kaikki\n kivhiv",{"$f":"V10","v":"Ca"},{"$f":"W10","v":"P"},"Mg","Na","Fe","Mn","Zn","Cu","Co","Se",{"$f":"AF10","v":"I"},"Mo",{"$f":"AH10","v":"A-vit"},{"$f":"AI10","v":"D-vit"},{"$f":"AJ10","v":"E-vit"},null,"karkearehu","kakg","väkirehu","kakg","vain kivennäinen"]
["KK","v","kotoinen","karkearehu","KOTOISET: karkearehut yht.",34.72,209.44,363.33,73.44,10.61,0,101.39,115.14,5,6.9809999999999999,20.167000000000002,1.901,5200000,1800000,19095000,363000,14.57,2.31,2.79,0.2,199.03,35.31,34.89,14.83,0.2,0,0,0,0,0,0,null,null,{"$f":"AN$10*AO11","v":276256.55535533291},null,165773,{"$f":"AO11*J11","v":1758851.5299999998},{"$f":"S11","v":1800000},{"$f":"AQ11-AO11","v":1634227},{"$f":"(AO11/AO$21*100)","v":42.370637324437567},{"$f":"AN11/100*AT$4","v":0},{"$f":"AU$7/AT$4*AT11","v":0},{"$f":"R11","v":5200000},{"$f":"IF(F11>0,AO11/F11*100,0)","v":477456.79723502306},{"$f":"AV11-AW11","v":4722543.2027649768},{"$f":"AW11/AW$21","v":0.64574489070583685},{"$f":"AY11*O11","v":4.5079450820174474},{"$f":"AS11*P11/100","v":8.544886429219325},{"$f":"IF(AP$21=0,0,AP11/AP$21*Q11)","v":0.73721876144698228},{"$f":"IF(D11=\"karkearehu\",1,0)","v":1},{"$f":"AO11*BC11","v":165773},{"$f":"J11*AS11/100","v":4.4955246201228256},{"$f":"G11*AS11/100","v":88.741062812302047},{"$f":"H11*AS11/100","v":153.94523659087901},{"$f":"I11*AS11/100","v":31.116996051066948},{"$f":"(K11+L11)*AS11/100","v":42.959589183247253},{"$f":"M11","v":115.14},{"$f":"N11*AS11/100","v":2.1185318662218782},{"$f":"BM11/BM$21*BJ11","v":115.13999972825521},{"$f":"IF(BJ11>0,AS11,0)","v":42.370637324437567},null,{"$f":"V11*AS11/100","v":6.1734018581705534},{"$f":"W11*AS11/100","v":0.97876172219450774},{"$f":"X11*AS11/100","v":1.1821407813518081},{"$f":"Y11*AS11/100","v":8.4741274648875139E-2},{"$f":"Z11*AS11/100","v":84.330279466828088},{"$f":"AA11*AS11/100","v":14.961072039258907},{"$f":"AB11*AS11/100","v":14.783115362496266},{"$f":"AC11*AS11/100","v":6.2835655152140903},{"$f":"AD11*AS11/100","v":8.4741274648875139E-2},{"$f":"AE11*AS11/100","v":0},{"$f":"AF11*AS11/100","v":0},{"$f":"AG11*AS11/100","v":0},{"$f":"AH11*AS11/100","v":0},{"$f":"AI11*AS11/100","v":0},{"$f":"AJ11*AS11/100","v":0},null,{"$f":"IF(D11=\"karkearehu\",1,0)","v":1},{"$f":"CE11*AO11","v":165773},{"$f":"IF(D11=\"väkirehu\",1,0)","v":0},{"$f":"CG11*AQ11","v":0},{"$f":"IF(D11=\"xkivennäisaine\",1,0)*AO11","v":0}]
["KK","v","kotoinen","väkirehu","KOTOISET: väkirehut yht.",86,134,290,-2,12.1,440,18,0,0,13,15.116,1.2490000000000001,50000,43000,520300,6500,0.8,4,1.3,0.2,52,66,41,4,0.1,0.1,0.1,0.4,0,0,0,null,null,{"$f":"AN$10*AO12","v":117936.43369244033},null,70770,{"$f":"AO12*J12","v":856317},43000,-27770,{"$f":"(AO12/AO$21*100)","v":18.088410075527658},0,0,{"$f":"R12","v":50000},{"$f":"IF(F12>0,AO12/F12*100,0)","v":82290.69767441861},-32290.69767441861,{"$f":"AW12/AW$21","v":0.11129550963271238},{"$f":"AY12*O12","v":1.4468416252252609},{"$f":"AS12*P12/100","v":2.7342440670167609},{"$f":"IF(AP$21=0,0,AP12/AP$21*Q12)","v":0.23582078763790817},{"$f":"IF(D12=\"karkearehu\",1,0)","v":0},{"$f":"AO12*BC12","v":0},{"$f":"J12*AS12/100","v":2.1886976191388468},{"$f":"G12*AS12/100","v":24.238469501207064},{"$f":"H12*AS12/100","v":52.456389219030207},{"$f":"I12*AS12/100","v":-0.36176820151055317},{"$f":"(K12+L12)*AS12/100","v":82.844918145916665},{"$f":"M12","v":0},{"$f":"N12*AS12/100","v":0},{"$f":"BM12/BM$21*BJ12","v":0},{"$f":"IF(BJ12>0,AS12,0)","v":0},null,{"$f":"V12*AS12/100","v":0.14470728060422128},{"$f":"W12*AS12/100","v":0.72353640302110633},{"$f":"X12*AS12/100","v":0.23514933098185956},{"$f":"Y12*AS12/100","v":3.6176820151055319E-2},{"$f":"Z12*AS12/100","v":9.4059732392743811},{"$f":"AA12*AS12/100","v":11.938350649848255},{"$f":"AB12*AS12/100","v":7.4162481309663395},{"$f":"AC12*AS12/100","v":0.72353640302110633},{"$f":"AD12*AS12/100","v":1.808841007552766E-2},{"$f":"AE12*AS12/100","v":1.808841007552766E-2},{"$f":"AF12*AS12/100","v":1.808841007552766E-2},{"$f":"AG12*AS12/100","v":7.2353640302110639E-2},{"$f":"AH12*AS12/100","v":0},{"$f":"AI12*AS12/100","v":0},{"$f":"AJ12*AS12/100","v":0},null,{"$f":"IF(D12=\"karkearehu\",1,0)","v":0},{"$f":"CE12*AO12","v":0},{"$f":"IF(D12=\"väkirehu\",1,0)","v":1},{"$f":"CG12*AO12","v":70770},{"$f":"IF(D12=\"xkivennäisaine\",1,0)*AO12","v":0}]
[96,"v","osto","väkirehu","Ohra, 54 - 62 kg/hl",86,126,230,-17,12.9,500,20,null,0,10.5,12.21,0.95,100000,86000,1109400,10500,0.5,4.0999999999999996,1.4,0.1,50,24,39,7,0.1,0.1,0.2,0.3,null,null,null,null,null,247418.20598345672,null,148468,1915237.2,86000,-62468,37.947577604824652,0,0,100000,172637.20930232556,-72637.209302325558,0.23348624733855503,2.4516055970548276,4.6333992255490903,0.40117259255859011,0,0,4.8952375110223798,47.813947782079055,87.279428491096695,-6.4510881928201913,197.3274035450882,0,0,0,0,null,0.18973788802412325,1.5558506817978104,0.53126608646754514,3.7947577604824652E-2,18.973788802412326,9.1074186251579157,14.799555265881613,2.6563304323377257,3.7947577604824652E-2,3.7947577604824652E-2,7.5895155209649304E-2,0.11384273281447395,0,0,0,null,0,0,1,{"$f":"CG13*AO13","v":148468},0]
[142,"v","osto","xkivennäisaine","KasvuApeKivennäinen, A-Rehu",89,4.5999999999999996,7,-2,0.8,1,0,null,0,40,44.94,56.18,2500,2225,1780,1000,292,0,39,79,2959,970,1601,279,9,10,89,null,168539,50562,506,null,null,10388.804968753328,null,6234,4987.2000000000007,2225,-4009,1.5933749952075658,0,0,2500,7004.4943820224717,-4504.4943820224717,9.4733523228957058E-3,0.37893409291582825,0.71606272284628003,6.1776542920174302E-2,0,0,1.2746999961660527E-2,7.3295249779548016E-2,0.11153624966452962,-3.1867499904151317E-2,1.5933749952075658E-2,0,0,0,0,null,4.652654986006092,0,0.62141624813095064,1.258766246213977,47.147966108191866,15.455737453513388,25.509933673273125,4.4455162366291088,0.1434037495686809,0.15933749952075657,1.4181037457347336,0,2685.458283172879,805.64226507684941,8.0624774757502831,null,0,0,0,0,6234]
[null,null,null,null,null,null,null,null,null,null,null,null,null,null,null,null,null,null,null,null,null,null,null,null,null,null,null,null,null,null,null,null,null,null,null,null,null,null,0,null,null,0,0,0,0,0,0,0,0,0,0,0,0,0,0,0,0,0,0,0,0,0,0,0,0,null,0,0,0,0,0,0,0,0,0,0,0,0,0,0,0,null,0,0,0,0,0]
[null,null,null,null,null,null,null,null,null,null,null,null,null,null,null,null,null,null,null,null,null,null,null,null,null,null,null,null,null,null,null,null,null,null,null,null,null,null,0,null,null,0,0,0,0,0,0,0,0,0,0,0,0,0,0,0,0,0,0,0,0,0,0,0,0,null,0,0,0,0,0,0,0,0,0,0,0,0,0,0,0,null,0,0,0,0,0]
[null,null,null,null,null,null,null,null,null,null,null,null,null,null,null,null,null,null,null,null,null,null,null,null,null,null,null,null,null,null,null,null,null,null,null,null,null,null,0,null,null,0,0,{"$f":"AQ17-AO17","v":0},0,0,0,0,0,0,0,0,0,0,0,0,0,0,0,0,0,0,0,0,0,null,0,0,0,0,0,0,0,0,0,0,0,0,0,0,0,null,0,0,0,0,0]
[null,null,null,null,null,null,null,null,null,null,null,null,null,null,null,null,null,null,null,null,null,null,null,null,null,null,null,null,null,null,null,null,null,null,null,null,null,null,0,null,null,0,0,{"$f":"AQ18-AO18","v":0},0,0,0,0,0,0,0,0,0,0,0,0,0,0,0,0,0,0,0,0,0,null,0,0,0,0,0,0,0,0,0,0,0,0,0,0,0,null,0,0,0,0,0]
[null,null,null,null,null,null,null,null,null,null,null,null,null,null,null,null,null,null,null,null,null,null,null,null,null,null,null,null,null,null,null,null,null,null,null,null,null,null,0,null,null,0,0,{"$f":"AQ19-AO19","v":0},0,0,0,0,0,0,0,0,0,0,0,0,0,0,0,0,0,0,0,0,0,null,0,0,0,0,0,0,0,0,0,0,0,0,0,0,0,null,0,0,0,0,0]
[null,null,null,null,null,null,null,null,null,null,null,null,null,null,null,null,null,null,null,null,null,null,null,null,null,null,null,null,null,null,null,null,null,null,null,null,null,null,0,null,null,0,0,{"$f":"AQ20-AO20","v":0},0,0,0,0,0,0,0,0,0,0,0,0,0,0,0,0,0,0,0,0,0,null,0,0,0,0,0,0,0,0,0,0,0,0,0,0,0,null,0,0,0,0,0]
[null,null,null,null,null,null,null,null,null,null,null,null,null,null,null,null,null,null,null,null,null,null,null,null,null,null,null,null,null,null,null,null,null,null,null,null,null,{"$f":"SUM(AL11:AL20)","v":0},{"$f":"SUM(AM11:AM20)+ 0.00001","v":652000.00000998331},null,{"$f":"SUM(AO11:AO20)+ 0.00000001","v":391245.00000001001},{"$f":"SUM(AP11:AP20)","v":4535392.93},{"$f":"SUM(AQ11:AQ20)","v":1931225},{"$f":"AQ21-AO21","v":1539979.99999999},{"$f":"SUM(AS11:AS20)","v":99.999999999997442},{"$f":"SUM(AT11:AT20)","v":0},0,{"$f":"SUM(AV11:AV20)+0.0000001","v":5352500.0000000997},{"$f":"SUM(AW11:AW20)","v":739389.19859378971},4613110.8014062094,{"$f":"SUM(AY11:AY20)","v":1},{"$f":"SUM(AZ11:AZ20)","v":8.7853263972133657},{"$f":"SUM(BA11:BA20)","v":16.628592444631458},{"$f":"SUM(BB11:BB20)","v":1.4359886845636547},{"$f":"SUM(AZ21:BB21)","v":26.849907526408479},{"$f":"ROUND((AO21-SUM(BD11:BD20))/(AO21+0.000001)*100,1)","v":57.6},{"$f":"K21","v":0},null,{"$f":"I21","v":0},{"$f":"J21","v":0},{"$f":"L21","v":0},{"$f":"M21","v":0},{"$f":"N21","v":0},{"$f":"SUM(BL11:BL20)","v":115.13999972825521},{"$f":"SUM(BM11:BM20)+0.0000001","v":42.370637424437568},"kaikki rehut",null,null,null,null,null,null,null,null,null,null,null,null,null,null,null,null,"yht",{"$f":"SUM(CF11:CF20)","v":165773},null,{"$f":"SUM(CH11:CH20)","v":219238},{"$f":"SUM(CI11:CI20)","v":6234}]
["Rehulistaus:",null,null,"1.Rivi:kotoiset karkerehut painotettuna keskiarvona",null,null,null,null,null,null,null,null,null,null,null,null,null,null,null,null,null,null,null,null,null,null,null,null,null,null,null,null,null,null,null,null,null,null,null,"ruokintapäivät",365,null,null,null,null,null,null,0,0,null,"erän hinta",{"$f":"AZ21*AW21/100","v":64957.754442204561},{"$f":"BA21*AO21/100","v":65058.536510000013},{"$f":"BB21*AP21/100","v":65127.729275299993},"kommentit","Jos kivennäisen/vitamiinin tarve ei laskurin mukaan toteudu, tämä voi johtua todellisen puutteen ohella myös siitä, ettei pitoisuuksia ole kaikkien rehujen osalta annettu/määritetty. Kivennäisten ja vitamiinien yliruokintaa tulee välttää, koska niiden liikasaanti voi johtaa terveysongelmiin. Perusrehujen osalta liikasaanti ei yleensä muodostu ongelmaksi, mutta kivennäis- ja vitamiiniseosten liikakäyttö voi aiheuttaa terveysriskejä.","Energian saanti on merkittävin lihanaudan kasvutulokseen vaikuttava tekijä. Jotta eläin saavuttaa kohtuullisen kasvutason, ruokinnan tulee sisältää riittävästi energiaa. Yleisesti kasvavan lihanaudan ruokinnassa seoksen energiapitoisuus on välillä 11,3 – 12,5 Mj/kg ka. Alle 9,0 Mj/kg ka oleva energiapitoisuus on jo arveluttavan matala eläimen hyvinvoinnin näkökulmasta. Yli 13,0 Mj/kg ka energiapitoisuus puolestaan tarkoittaa liian korkeaa väkirehutasoa suhteessa säilörehun laatuun. ","Seoksen raakavalkuaistaso 100 g/kg ka on riittävä kasvavalle naudalle. Suuremmilla valkuaistasoilla ei saavuteta merkittävää lisäkasvua. Normaaleilla säilörehu/vilja –ruokinnoilla valkuaistaso on yleensä välillä 120-160 g/kg ka. Valkuaispitoisia rehuja (palkokasvit, mäski) käytettäessä seoksen valkuaispitoisuus voi olla tätä korkeampikin. Ylimääräinen valkuainen poistuu virtsassa, mikä lisää typpihävikkien riskejä. Maksimitason (250 g/kg ka) ylittäminen kuormittaa merkittävästi eläimen aineenvaihduntaa. ","Eläimen tulee saada ruokinnassa riittävästi kuitua, jotta pötsi toimii normaalisti. Rehuseoksen tulee sisältää karkearehun kuitua vähintään 200 g/kg ka, jotta ollaan pötsin toiminnan kannalta turvallisella tasolla. Toisaalta liian kuitupitoinen ruokinta heikentää energiansaantia ja kasvua, koska rehuannoksen täyttävyys muodostuu syöntiä rajoittavaksi tekijäksi. Ohjemaan on asetettu karkearehun kuidun maksimimääräksi 600 g/kg ka, koska tätä korkeammilla tasoilla kasvutasot ovat hyvin heikkoja.  ","Uusimpien tutkimusten perusteella kasvavien nautojen valkuaisen saanti on riittävä, kun rehuannoksen PVT on yli -20 g/kg ka. Tällöin rehuannos sisältää pötsissä hajoavaa valkuaista pötsimikrobien kannalta riittävästi. Pötsissä muodostuva mikrobivalkuainen ja perusrehujen ohitusvalkuainen riittävät puolestaan tyydyttämään yli 200 kg painavan naudan aminohappojen tarpeen. Hyvälaatuisella ja runsaalla säilörehuruokinnalla rehuannoksen PVT-arvo tulee yleensä reilusti positiiviseksi ilman haittavaikutuksia.  ","Naudalla ei sinällään ole erillistä tärkkelyksen tai sokerin tarvetta, joten nämä eivät ole eläimen kannalta välttämättömiä. Hyvä kasvutulos kuitenkin edellyttää, että ruokinnassa on mukana myös tärkkelyspitoisia energiarehuja kuten viljaa. Lisäksi rajoitetusti käynyt säilörehu sisältää luonnostaan jonkin verran sokereita. Tärkkelyksen ja sokerin yhteenlasketun määrän tulee olla vähemmän kuin 400 g/kg ka. Liian suuri määrä voi aiheuttaa pötsin happanemista ja ongelmia eläimen terveydentilassa.","Säilörehun syönti-indeksiä tarvitaan eläimen rehun syönnin laskennassa. Jotta ohjelma laskee rehun syönnin oikein, säilörehuista, heinästä ja oljesta on oltava tallennettuna rehuanalyysistä saatava syönti-indeksi. Säilörehujen syönti-indeksi on yleensä välillä 80-130. Jos säilörehun syönti-indeksi on ohjelmassa näiden arvojen ulkopuolella, kannattaa tarkistaa mahdolliset tallennusvirheet. Kuivan heinän syönti-indeksi on yleensä 75-90. Oljen osalta voidaan käyttää syönti-indeksin arvoa 50.","Ruokinnan sisältämää haihtuvien rasvahappojen (VFA) määrää tarvitaan eläimen rehun syönnin laskennassa. Jotta ohjelma laskee rehun syönnin oikein, säilörehuista on oltava tallennettuna VFA-pitoisuus. Muut yleisimmät rehut eivät sisällä haihtuvia rasvahappoja, joten niiden osalta arvo on 0. Hyvässä säilörehussa on haihtuvia rasvahappoja alle 25 g/kg ka. Jos koko seoksen sisältämä VFA määrä on yli 50 g/kg ka, kyseessä on todennäköisesti tallennusvirhe, joka täytyy korjata. ",null,null,"Jos kivennäisen/vitamiinin tarve ei laskurin mukaan toteudu, tämä voi johtua todellisen puutteen ohella myös siitä, ettei pitoisuuksia ole kaikkien rehujen osalta annettu/määritetty. Kivennäisten ja vitamiinien yliruokintaa tulee välttää, koska niiden liikasaanti voi johtaa terveysongelmiin. Perusrehujen osalta liikasaanti ei yleensä muodostu ongelmaksi, mutta kivennäis- ja vitamiiniseosten liikakäyttö voi aiheuttaa terveysriskejä.","Kalsium on määrällisesti tärkein ruumiin kivennäisaineista. Pääosa kalsiumista on sitoutunut luustoon, jossa se yhdessä fosforin kanssa muodostaa erittäin kovan ja vaikealiukoisen yhdisteen. Kalsiumia tarvitaan myös mm. lihasten, hermojen ja monien entsyymien toiminnassa. Puutos aiheuttaa mm. kasvuhäiriöitä, riisitautia ja luiden haurastumista. Kalsiumin tarpeen mukainen saanti edellyttää yleensä kivennäisseoksen tai ruokintakalkin käyttöä.  ","Fosforista noin 80 % sijaitsee luustossa kalsiumiin sidottuna. Loppuosa elimistön fosforista on pehmeissä kudoksissa ja nesteissä sitoutuneena valkuaisaineisiin, lipideihin, hiilihydraatteihin ja muihin orgaanisiin yhdisteisiin. Kasvavan naudan fosforin tarve täyttyy yleensä säilörehun ja viljan kautta, joten ruokinnassa voidaan normaalisti käyttää fosforittomia kivennäisseoksia. Ylimääräistä saantia tulee välttää, koska fosfori on kallis raaka-aine. Ylimääräinen saanti lisää myös ympäristökuormitusriskiä.","Magnesiumia on luustossa, ruumiin nesteissä ja kudoksissa. Hyvin monet entsyymit tarvitsevat toimiakseen magnesiumia, joten sillä on keskeinen tehtävä aineenvaihdunnassa. Magnesium on välttämätön myös luiden mineralisaatiossa ja hermojärjestelmässä. Naudalla liian alhainen veren Mg-pitoisuus voi johtaa halvaukseen. Puutosoireita voivat olla mm. jalkaheikkous, niveltulehdukset ja lisääntymishäiriöt. Saanti voidaan turvata käyttämällä lihanaudoille tarkoitettuja kivennäisseoksia ohjeen mukaisena annostuksena.","Pieni osa natriumista on luissa liukenemattomassa muodossa, mutta valtaosa on solujen ulkopuolisissa nesteissä, joissa natrium on tärkeä tekijä osmoottisen paineen ja happo-emäs-tasapainon ylläpitäjänä. Natriumin puutosoireita ovat mm. ruokahalun ja rehun hyväksikäytön heikkeneminen. Varsinkin laiduntaville märehtijöille kehittyy nopeasti puutostila, jos niille ei anneta ruokasuolaa. Saanti voidaan turvata käyttämällä lihanaudoille tarkoitettuja kivennäisseoksia ohjeen mukaisena annostuksena.","Noin puolet elimistön raudasta on veressä hemoglobiinissa. Toinen puoli on melko tasaisesti jakautunut elimistön kaikkiin soluihin. Rauta on elimistössä tarkoin suljetussa järjestelmässä eli sitä ei paljon poistu. Kasvavilla naudoilla ei normaalisti esiinny raudan puutosta, sillä useimmat rehuaineet sisältävät rautaa moninkertaisesti yli tarpeen. Maidon rautapitoisuus on poikkeuksellisen alhainen. Nuoret eläimet, jotka saavat pitkään vain maitoa, voivat kärsiä raudan puutetta.","Mangaania on eräissä elimistön entsyymeissä ja se toimii reaktion aktivaattorina monille muille entsyymeille. Mangaania on pieniä määriä monissa kudoksissa, mutta ei runsaasti missään. Mangaanin puutosoireita ovat mm. kasvun heikkeneminen, luiden epänormaalit muodot ja häiriöt lisääntymisessä. Saanti voidaan turvata käyttämällä lihanaudoille tarkoitettuja kivennäisseoksia ohjeen mukaisena annostuksena.","Sinkki liittyy monella tavoin elimistön aineenvaihduntaan. Se on rakenneosana useissa entsyymeissä. Sinkkiä on runsaasti ihossa, karvoissa, kynsissä, silmän suonikalvossa, spermassa ja sukurauhasissa. Sinkin puutoksen yleisoire on huono ruokahalu ja kasvun pysähtyminen. Laihtumiseen liittyy ihovaurioita, joiden yhteydessä tapahtuu karvanlähtöä. Saanti voidaan turvata käyttämällä lihanaudoille tarkoitettuja kivennäisseoksia ohjeen mukaisena annostuksena.","Kupari on molekyylin osana hyvin monissa entsyymeissä. Runsaimmin kuparia on maksassa, aivoissa, munuaisissa, sydämessä ja karvoissa. Kupari on myös välttämätön ainesosa veren punasoluissa. Normaali luunmuodostus estyy kuparin puutteessa. Sinkin, raudan, kalsiumin, molybdeenin tai kadmiumin runsas esiintyminen rehussa heikentää kuparin hyväksikäyttöä. Saanti voidaan turvata käyttämällä lihanaudoille tarkoitettuja kivennäisseoksia ohjeen mukaisena annostuksena.","Koboltti sisältyy B12 –vitamiiniin, joka on välttämätön tekijä punasolujen muodostumiselle. Noin 4 % tästä vitamiinista on kobolttia. Märehtijät tulevat toimeen ilman B12 –vitamiinia, kunhan ne saavat kobolttia, sillä pötsin mikrobit pystyvät syntetisoimaan B12-vitamiinia. Märehtijän koboltin tarve on suuri B12 –tarpeeseen verrattuna, mutta määrällisesti tarve on hyvin vähäinen. Saanti voidaan turvata käyttämällä lihanaudoille tarkoitettuja kivennäisseoksia ohjeen mukaisena annostuksena.","Seleenin tunnetuin merkitys on lihasrappeuman estäminen yhdessä E-vitamiinin kanssa. Seleeni on myös välttämätön eläimen normaalille kasvulle ja hedelmällisyydelle. Seleeni on myös voimakas myrkky. Hyödyllisen ja myrkyllisen määrän raja on kapea. Saanti voidaan turvata käyttämällä lihanaudoille tarkoitettuja kivennäisseoksia ohjeen mukaisena annostuksena.","Jodin ainoa tunnettu tehtävä on olla raaka-aineena kilpirauhashormoneille. Puutos näkyy aluksi kilpirauhasen laajentumisena (struuma). Saanti voidaan turvata käyttämällä lihanaudoille tarkoitettuja kivennäisseoksia ohjeen mukaisena annostuksena.","Molybdeeni on välttämätön tekijä eräissä entsyymireaktioissa. Normaalioloissa naudoilla ei ole molybdeenin puutosta. Molybdeeni on jo pieninä pitoisuuksina myrkyllinen aine. Useimmille rehuille ei ole saatavissa molybdeenipitoisuuksia. Siten ohjelman ilmoittama punainen arvo johtuu todennäköisesti puutteellisista rehutiedoista eikä molybdeenin puutteesta ruokinnassa.","A-vitamiini osallistuu näkemistapahtumaan sekä aineenvaihduntaan. A-vitamiinin puutosoireita ovat mm. hämäräsokeus, infektioherkkyys ja kasvun pysähtyminen. A-vitamiini varastoituu elimistöön varsin hyvin, minkä vuoksi päivittäinen saanti ei ole välttämätön. Hyviä A-vitamiinin lähteitä ovat tuoreet vihreät rehut. Saanti voidaan turvata käyttämällä lihanaudoille tarkoitettuja vitamiinit sisältäviä kivennäisseoksia ohjeen mukaisena annostuksena.  ","D-vitamiini osallistuu kalsiumin, fosforin sekä jossakin määrin myös magnesiumin aineenvaihduntaan. Tarvittaessa se tehostaa näiden aineiden imeytymistä suolistosta. D-vitamiinin puute aiheuttaa mm. riisitautia, kasvun hidastumista ja nivelten turpoamista. Eläin saa D-vitamiinia sekä rehusta että ihon provitamiineista auringon ultraviolettisäteilyn avulla. Saanti voidaan turvata käyttämällä lihanaudoille tarkoitettuja vitamiinit sisältäviä kivennäisseoksia ohjeen mukaisena annostuksena. ","E-vitamiini on tehokas antioksidantti. Riittävä saanti parantaa eläintuotteiden (liha, maito) laatua ja säilyvyyttä. Lihasrappeuma on tunnetuin E-vitamiinin puutosoireista. E-vitamiini ja seleeni ovat välttämättömiä solukalvojen normaalille toiminnalle. Ne eivät korvaa toisiaan, vaan molempia tarvitaan. Hyviä E-vitamiinin lähteitä ovat tuoreet vihreät rehut ja kuivattu vilja. Saanti voidaan turvata käyttämällä lihanaudoille tarkoitettuja vitamiinit sisältäviä kivennäisseoksia ohjeen mukaisesti.  "]
[null,null,null,"2.Rivi: kotoiset väkirehut painotettuna keskiarvona",null,null,null,null,null,null,null,null,null,null,null,null,null,null,null,null,null,null,null,null,null,null,null,null,null,null,null,null,null,null,null,null,null,null,null,"takaisinkorjaus",{"$f":"ROUND((AO21/(1-AM6)),0)+7","v":401284},null,null,null,null,null,null,null,null,null,null,"tuorekiloina","ka kiloina","megajouleina","valintasarake",61,null,null,null,null,null,null,null,null,null,null,"Ylimääräinen kalsium poistetaan ulosteisiin, joten myrkytys on epätodennäköinen. Joissain tapauksissa myrkytysoireet ovat mahdollisia. Tällöin tarvitaan fosforin ja d-vitamiinin yhteisvaikutus (fosforia liian vähän ja d-vit. liikaa). Raja-arvo tällöin, jos kalsiumia yli 1 % kuiva-aineesta.","Ylimääräinen fosfori poistetaan ulosteisiin, joten myrkytys on epätodennäköinen. Ennen myrkytystä muodostuu virtsakiviä, varsinkin runsaalla väkirehuruokinnalla.",null,"Nuorilla vasikoilla sietoraja on 30 g/kg ka.","Sietoraja voi olla alhaisempi kuin 1000 mg/kg ka, jos e-vitamiinista on puutetta. Puute voi aiheutua keväällä laiduntaessa nuorta kasvustoa.","Sietoraja on riippuvainen dieetin kupari-, molybdeeni- ja rauta-tasoista. ","Myrkytysraja on 1500 mg/kg ka. Myös dieetin kalsium-, kupari-, rauta- ja cadmiumpitoisuudet vaikuttavat sietorajaan.","Vasikoilla yli 200 mg/kg ka aiheutta myrkytyksen. Suuremmat naudat kestävät jopa tasoa 900 mg/kg ka muutamia viikkoja.","Nuorilla vasikoilla sietoraja on 4 mg/kg ka, vanhemmilla naudoilla 30 mg/kg ka.","Aiheuttaa myrkytysoireita jo suhteellisen matalissa pitoisuuksissa, maksimiarvo kirjallisuuden perusteella 4 mg/kg ka.","Yli 50 mg/kg ka aiheuttaa myrkytysoireet.","Maksimiarvo 2 mg/kg ka, jos ruokinnassa korkea rikki- ja matala kuparipitoisuus. Maksimiarvo 20 mg/kg ka, jos ruokinnassa matala rikki- ja korkea kuparipitoisuus.",null,null,"Myrkytysraja naudoilla ei tiedossa."]
[null,null,null,"3-10 Rivit: ostorehut ja kivennäiset"]
[null,null,null,null,null,null,null,null,null,null,null,null,null,null,null,null,null,null,null,null,null,null,null,null,null,null,null,null,null,null,null,null,null,null,null,null,null,null,null,null,null,null,null,null,null,null,null,null,null,null,null,"virhe",{"$f":"(MAX(AZ22:BB22)-MIN(AZ22:BB22))","v":169.97483309543168}]
[null,null,null,null,null,null,null,null,null,null,null,null,null,null,null,null,null,null,null,null,null,null,null,null,null,null,null,null,null,null,null,null,null,null,null,null,null,null,null,null,null,null,null,null,null,null,null,null,null,null,null,"virheprosentti",{"$f":"BA25/MIN(AZ22:BB22)","v":2.6166981071777179E-3}]
[]
[]
[]
[]
[]
[]
[]
[]
[]
[]
[]
[]
[]
[]
[]
[null,null,null,null,null,null,null,null,null,null,null,null,null,null,null,null,null,null,null,null,null,null,null,null,null,null,null,null,null,null,null,null,null,null,null,null,null,null,null,null,null,null,null,null,null,null,null,null,null,null,null,null,null,null,null,"OPTIMOIDAAN, KESTÄÄ HETKISEN ..............."]
[]
[]
[]
[]
[]
[]
[]
[]
[]
[null,null,null,null,null,null,null,null,null,null,null,null,null,null,null,null,null,null,null,null,null,null,null,null,null,null,null,null,null,null,null,null,null,null,null,null,null,null,null,null,null,null,null,null,null,null,null,null,null,null,null,null,null,null,"LASKETAAN REHUSEOKSEN KASVUTULOKSET, KESTÄÄN JONKIN AIKAA..."]
[]
[]
[]
[]
[]
[]
[]
[]
[]
[]
[]
[]
[]
[]
[]
[]
[]
[]
[]
[]
[]
[]
[]
[]
[]
[]
[]
[]
[]
[]
[]
[]
[]
[]
[]
[]
[]
[]
[]
[]
[]
[]
[]
[]
[]
[]
[]
[]
[]
[]
[]
[]
[]
[]
[]
[]
[]
[]
[]
[]
[]
[]
[]
[]
[]
[]
[]
[]
[]
[]
[]
[]
[]
[]
[]
[]
[]
[]
[null,null,null,null,null,null,null,null,null,null,null,null,null,null,null,null,null,null,null,null,null,null,null,null,null,null,null,null,null,null,null,null,null,null,null,null,null,null,null,15]

{"sheet":"ohjeet","index":2,"n_rows":26,"n_cols":29,"rows_kept":26,"cut":false,"hidden":false,"merged":[]}
[null,null,null,null,null,null,"Mj",{"$f":"RehuVarasto!AN13","v":"RV"},{"$f":"RehuVarasto!AO13","v":"NDF"},{"$f":"RehuVarasto!AP13","v":"PVT"},{"$f":"RehuVarasto!AQ13","v":"Tärk&sok"},{"$f":"RehuVarasto!AR13","v":"Syönti-indeksi SRIND"},{"$f":"RehuVarasto!AS13","v":"VFA"},"Kivennäiset ym.",{"$f":"RehuVarasto!AV20","v":"Ca"},{"$f":"RehuVarasto!AW20","v":"P"},{"$f":"RehuVarasto!AX20","v":"Mg"},{"$f":"RehuVarasto!AY20","v":"Na"},{"$f":"RehuVarasto!AZ20","v":"Fe"},{"$f":"RehuVarasto!BA20","v":"Mn"},{"$f":"RehuVarasto!BB20","v":"Zn"},{"$f":"RehuVarasto!BC20","v":"Cu"},{"$f":"RehuVarasto!BD20","v":"Co"},{"$f":"RehuVarasto!BE20","v":"Se"},{"$f":"RehuVarasto!BF20","v":"I"},{"$f":"RehuVarasto!BG20","v":"Mo"},{"$f":"RehuVarasto!BH20","v":"A-vit"}]
[null,null,null,null,null,"min",9,{"$f":"RehuVarasto!AN14","v":90},{"$f":"RehuVarasto!AO14","v":300},{"$f":"RehuVarasto!AP14","v":-20},{"$f":"RehuVarasto!AQ14","v":0},{"$f":"RehuVarasto!AR14","v":70},{"$f":"RehuVarasto!AS14","v":0},"             -",{"$f":"RehuVarasto!AV14","v":6},{"$f":"RehuVarasto!AW14","v":3},{"$f":"RehuVarasto!AX14","v":1.5},{"$f":"RehuVarasto!AY14","v":1.6},{"$f":"RehuVarasto!AZ14","v":100},{"$f":"RehuVarasto!BA14","v":40},{"$f":"RehuVarasto!BB14","v":50},{"$f":"RehuVarasto!BC14","v":10},{"$f":"RehuVarasto!BD14","v":0.1},{"$f":"RehuVarasto!BE14","v":0.1},{"$f":"RehuVarasto!BF14","v":0.2},{"$f":"RehuVarasto!BG14","v":0.3},{"$f":"RehuVarasto!BH14","v":2200}]
[null,null,null,null,null,"nyt ",{"$f":"RehuVarasto!P7","v":11.391999999999999},{"$f":"RehuVarasto!AN15","v":128.072},{"$f":"RehuVarasto!AO15","v":398.84},{"$f":"RehuVarasto!AP15","v":-10.32},{"$f":"RehuVarasto!AQ15","v":322.42},{"$f":"RehuVarasto!AR15","v":111.5},{"$f":"RehuVarasto!AS15","v":4.2},"             -",{"$f":"RehuVarasto!AV15","v":9.2099999999999991},{"$f":"RehuVarasto!AW15","v":3.298},{"$f":"RehuVarasto!AX15","v":2.242},{"$f":"RehuVarasto!AY15","v":1.798},{"$f":"RehuVarasto!AZ15","v":153.18},{"$f":"RehuVarasto!BA15","v":59.72},{"$f":"RehuVarasto!BB15","v":64.540000000000006},{"$f":"RehuVarasto!BC15","v":11.84},{"$f":"RehuVarasto!BD15","v":0.36799999999999999},{"$f":"RehuVarasto!BE15","v":0.38800000000000001},{"$f":"RehuVarasto!BF15","v":1.8560000000000001},{"$f":"RehuVarasto!BG15","v":0.32400000000000001},{"$f":"RehuVarasto!BH15","v":3382.78}]
[null,null,null,null,null,"max",13,{"$f":"RehuVarasto!AN16","v":250},{"$f":"RehuVarasto!AO16","v":600},{"$f":"RehuVarasto!AP16","v":100},{"$f":"RehuVarasto!AQ16","v":400},{"$f":"RehuVarasto!AR16","v":130},{"$f":"RehuVarasto!AS16","v":"ei ole"},"             -",{"$f":"RehuVarasto!AV16","v":"ei tiedossa"},{"$f":"RehuVarasto!AW16","v":"ei tiedossa"},{"$f":"RehuVarasto!AX16","v":6},{"$f":"RehuVarasto!AY16","v":60},{"$f":"RehuVarasto!AZ16","v":1000},{"$f":"RehuVarasto!BA16","v":1300},{"$f":"RehuVarasto!BB16","v":1500},{"$f":"RehuVarasto!BC16","v":200},{"$f":"RehuVarasto!BD16","v":30},{"$f":"RehuVarasto!BE16","v":4},{"$f":"RehuVarasto!BF16","v":50},{"$f":"RehuVarasto!BG16","v":2},{"$f":"RehuVarasto!BH16","v":20000}]
["Lista","infosar","minsar",null,"vain karkearehut ndf-arvoon mukaan","tuorekgmin","MJ","RV","NDF","PVT","tärk+sok","Srind","VFA","Kiv/hiv","Ca","P","Mg","Na","Fe","Mn","Zn","Cu","Co","Se","I","Mo","A-vit","D-vit","E-vit"]
["  MJ",7,40,null,"kommentit 1","Jos kivennäisen/vitamiinin tarve ei laskurin mukaan toteudu, tämä voi johtua todellisen puutteen ohella myös siitä, ettei pitoisuuksia ole kaikkien rehujen osalta annettu/määritetty. Kivennäisten ja vitamiinien yliruokintaa tulee välttää, koska niiden liikasaanti voi johtaa terveysongelmiin. Perusrehujen osalta liikasaanti ei yleensä muodostu ongelmaksi, mutta kivennäis- ja vitamiiniseosten liikakäyttö voi aiheuttaa terveysriskejä.","Energian saanti on merkittävin lihanaudan kasvutulokseen vaikuttava tekijä. Jotta eläin saavuttaa kohtuullisen kasvutason, ruokinnan tulee sisältää riittävästi energiaa. Yleisesti kasvavan lihanaudan ruokinnassa seoksen energiapitoisuus on välillä 11,3 – 12,5 Mj/kg ka. Alle 9,0 Mj/kg ka oleva energiapitoisuus on jo arveluttavan matala eläimen hyvinvoinnin näkökulmasta. Yli 13,0 Mj/kg ka energiapitoisuus puolestaan tarkoittaa liian korkeaa väkirehutasoa suhteessa säilörehun laatuun. ","Seoksen raakavalkuaistaso 100 g/kg ka on riittävä kasvavalle naudalle. Suuremmilla valkuaistasoilla ei saavuteta merkittävää lisäkasvua. Normaaleilla säilörehu/vilja –ruokinnoilla valkuaistaso on yleensä välillä 120-160 g/kg ka. Valkuaispitoisia rehuja (palkokasvit, mäski) käytettäessä seoksen valkuaispitoisuus voi olla tätä korkeampikin. Ylimääräinen valkuainen poistuu virtsassa, mikä lisää typpihävikkien riskejä. Maksimitason (250 g/kg ka) ylittäminen kuormittaa merkittävästi eläimen aineenvaihduntaa. ","Naudan tulee saada ruokinnassa riittävästi kuitua, jotta pötsi toimii normaalisti. Rehuseoksen tulee sisältää karkearehun kuitua vähintään 300 g/kg ka, jotta ollaan pötsin toiminnan kannalta turvallisella tasolla. Toisaalta liian kuitupitoinen ruokinta heikentää energiansaantia ja kasvua, koska rehuannoksen täyttävyys muodostuu syöntiä rajoittavaksi tekijäksi. Ohjelmaan on asetettu kuidun maksimimääräksi 600 g/kg ka, koska tätä korkeammilla tasoilla kasvutasot ovat heikkoja.  ","Uusimpien tutkimusten perusteella kasvavien nautojen valkuaisen saanti on riittävä, kun rehuannoksen PVT on yli -20 g/kg ka. Tällöin rehuannos sisältää pötsissä hajoavaa valkuaista pötsimikrobien kannalta riittävästi. Pötsissä muodostuva mikrobivalkuainen ja perusrehujen ohitusvalkuainen riittävät puolestaan tyydyttämään yli 200 kg painavan naudan aminohappojen tarpeen. Hyvälaatuisella ja runsaalla säilörehuruokinnalla rehuannoksen PVT-arvo tulee yleensä reilusti positiiviseksi ilman haittavaikutuksia.  ","Naudalla ei sinällään ole erillistä tärkkelyksen tai sokerin tarvetta, joten nämä eivät ole eläimen kannalta välttämättömiä. Hyvä kasvutulos kuitenkin edellyttää, että ruokinnassa on mukana myös tärkkelyspitoisia energiarehuja kuten viljaa. Lisäksi rajoitetusti käynyt säilörehu sisältää luonnostaan jonkin verran sokereita. Tärkkelyksen ja sokerin yhteenlasketun määrän tulee olla vähemmän kuin 400 g/kg ka. Liian suuri määrä voi aiheuttaa pötsin happanemista ja ongelmia eläimen terveydentilassa.","Säilörehun syönti-indeksiä tarvitaan eläimen rehun syönnin laskennassa. Jotta ohjelma laskee rehun syönnin oikein, säilörehuista, heinästä ja oljesta on oltava tallennettuna rehuanalyysistä saatava syönti-indeksi. Säilörehujen syönti-indeksi on yleensä välillä 80-130. Jos säilörehun syönti-indeksi on ohjelmassa näiden arvojen ulkopuolella, kannattaa tarkistaa mahdolliset tallennusvirheet. Kuivan heinän syönti-indeksi on yleensä 75-90. Oljen osalta voidaan käyttää syönti-indeksin arvoa 50.","Ruokinnan sisältämää haihtuvien rasvahappojen (VFA) määrää tarvitaan eläimen rehun syönnin laskennassa. Jotta ohjelma laskee rehun syönnin oikein, säilörehuista on oltava tallennettuna VFA-pitoisuus. Muut yleisimmät rehut eivät sisällä haihtuvia rasvahappoja, joten niiden osalta arvo on 0. Hyvässä säilörehussa on haihtuvia rasvahappoja alle 25 g/kg ka. Jos koko seoksen sisältämä VFA määrä on yli 50 g/kg ka, kyseessä on todennäköisesti tallennusvirhe, joka täytyy korjata. ","Jos kivennäisen/vitamiinin tarve ei laskurin mukaan toteudu, tämä voi johtua todellisen puutteen ohella myös siitä, ettei pitoisuuksia ole kaikkien rehujen osalta annettu/määritetty. Kivennäisten ja vitamiinien yliruokintaa tulee välttää, koska niiden liikasaanti voi johtaa terveysongelmiin. Perusrehujen osalta liikasaanti ei yleensä muodostu ongelmaksi, mutta kivennäis- ja vitamiiniseosten liikakäyttö voi aiheuttaa terveysriskejä.","Kalsium on määrällisesti tärkein ruumiin kivennäisaineista. Pääosa kalsiumista on sitoutunut luustoon, jossa se yhdessä fosforin kanssa muodostaa erittäin kovan ja vaikealiukoisen yhdisteen. Kalsiumia tarvitaan myös mm. lihasten, hermojen ja monien entsyymien toiminnassa. Puutos aiheuttaa mm. kasvuhäiriöitä, riisitautia ja luiden haurastumista. Kalsiumin tarpeen mukainen saanti edellyttää yleensä kivennäisseoksen tai ruokintakalkin käyttöä.  ","Fosforista noin 80 % sijaitsee luustossa kalsiumiin sidottuna. Loppuosa elimistön fosforista on pehmeissä kudoksissa ja nesteissä sitoutuneena valkuaisaineisiin, lipideihin, hiilihydraatteihin ja muihin orgaanisiin yhdisteisiin. Kasvavan naudan fosforin tarve täyttyy yleensä säilörehun ja viljan kautta, joten ruokinnassa voidaan normaalisti käyttää fosforittomia kivennäisseoksia. Ylimääräistä saantia tulee välttää, koska fosfori on kallis raaka-aine. Ylimääräinen saanti lisää myös ympäristökuormitusriskiä.","Magnesiumia on luustossa, ruumiin nesteissä ja kudoksissa. Hyvin monet entsyymit tarvitsevat toimiakseen magnesiumia, joten sillä on keskeinen tehtävä aineenvaihdunnassa. Magnesium on välttämätön myös luiden mineralisaatiossa ja hermojärjestelmässä. Naudalla liian alhainen veren Mg-pitoisuus voi johtaa halvaukseen. Puutosoireita voivat olla mm. jalkaheikkous, niveltulehdukset ja lisääntymishäiriöt. Saanti voidaan turvata käyttämällä lihanaudoille tarkoitettuja kivennäisseoksia ohjeen mukaisena annostuksena.","Pieni osa natriumista on luissa liukenemattomassa muodossa, mutta valtaosa on solujen ulkopuolisissa nesteissä, joissa natrium on tärkeä tekijä osmoottisen paineen ja happo-emäs-tasapainon ylläpitäjänä. Natriumin puutosoireita ovat mm. ruokahalun ja rehun hyväksikäytön heikkeneminen. Varsinkin laiduntaville märehtijöille kehittyy nopeasti puutostila, jos niille ei anneta ruokasuolaa. Saanti voidaan turvata käyttämällä lihanaudoille tarkoitettuja kivennäisseoksia ohjeen mukaisena annostuksena.","Noin puolet elimistön raudasta on veressä hemoglobiinissa. Toinen puoli on melko tasaisesti jakautunut elimistön kaikkiin soluihin. Rauta on elimistössä tarkoin suljetussa järjestelmässä eli sitä ei paljon poistu. Kasvavilla naudoilla ei normaalisti esiinny raudan puutosta, sillä useimmat rehuaineet sisältävät rautaa moninkertaisesti yli tarpeen. Maidon rautapitoisuus on poikkeuksellisen alhainen. Nuoret eläimet, jotka saavat pitkään vain maitoa, voivat kärsiä raudan puutetta.","Mangaania on eräissä elimistön entsyymeissä ja se toimii reaktion aktivaattorina monille muille entsyymeille. Mangaania on pieniä määriä monissa kudoksissa, mutta ei runsaasti missään. Mangaanin puutosoireita ovat mm. kasvun heikkeneminen, luiden epänormaalit muodot ja häiriöt lisääntymisessä. Saanti voidaan turvata käyttämällä lihanaudoille tarkoitettuja kivennäisseoksia ohjeen mukaisena annostuksena.","Sinkki liittyy monella tavoin elimistön aineenvaihduntaan. Se on rakenneosana useissa entsyymeissä. Sinkkiä on runsaasti ihossa, karvoissa, kynsissä, silmän suonikalvossa, spermassa ja sukurauhasissa. Sinkin puutoksen yleisoire on huono ruokahalu ja kasvun pysähtyminen. Laihtumiseen liittyy ihovaurioita, joiden yhteydessä tapahtuu karvanlähtöä. Saanti voidaan turvata käyttämällä lihanaudoille tarkoitettuja kivennäisseoksia ohjeen mukaisena annostuksena.","Kupari on molekyylin osana hyvin monissa entsyymeissä. Runsaimmin kuparia on maksassa, aivoissa, munuaisissa, sydämessä ja karvoissa. Kupari on myös välttämätön ainesosa veren punasoluissa. Normaali luunmuodostus estyy kuparin puutteessa. Sinkin, raudan, kalsiumin, molybdeenin tai kadmiumin runsas esiintyminen rehussa heikentää kuparin hyväksikäyttöä. Saanti voidaan turvata käyttämällä lihanaudoille tarkoitettuja kivennäisseoksia ohjeen mukaisena annostuksena.","Koboltti sisältyy B12 –vitamiiniin, joka on välttämätön tekijä punasolujen muodostumiselle. Noin 4 % tästä vitamiinista on kobolttia. Märehtijät tulevat toimeen ilman B12 –vitamiinia, kunhan ne saavat kobolttia, sillä pötsin mikrobit pystyvät syntetisoimaan B12-vitamiinia. Märehtijän koboltin tarve on suuri B12 –tarpeeseen verrattuna, mutta määrällisesti tarve on hyvin vähäinen. Saanti voidaan turvata käyttämällä lihanaudoille tarkoitettuja kivennäisseoksia ohjeen mukaisena annostuksena.","Seleenin tunnetuin merkitys on lihasrappeuman estäminen yhdessä E-vitamiinin kanssa. Seleeni on myös välttämätön eläimen normaalille kasvulle ja hedelmällisyydelle. Seleeni on myös voimakas myrkky. Hyödyllisen ja myrkyllisen määrän raja on kapea. Saanti voidaan turvata käyttämällä lihanaudoille tarkoitettuja kivennäisseoksia ohjeen mukaisena annostuksena.","Jodin ainoa tunnettu tehtävä on olla raaka-aineena kilpirauhashormoneille. Puutos näkyy aluksi kilpirauhasen laajentumisena (struuma). Saanti voidaan turvata käyttämällä lihanaudoille tarkoitettuja kivennäisseoksia ohjeen mukaisena annostuksena.","Molybdeeni on välttämätön tekijä eräissä entsyymireaktioissa. Normaalioloissa naudoilla ei ole molybdeenin puutosta. Molybdeeni on jo pieninä pitoisuuksina myrkyllinen aine. Useimmille rehuille ei ole saatavissa molybdeenipitoisuuksia. Siten ohjelman ilmoittama punainen arvo johtuu todennäköisesti puutteellisista rehutiedoista eikä molybdeenin puutteesta ruokinnassa.","A-vitamiini osallistuu näkemistapahtumaan sekä aineenvaihduntaan. A-vitamiinin puutosoireita ovat mm. hämäräsokeus, infektioherkkyys ja kasvun pysähtyminen. A-vitamiini varastoituu elimistöön varsin hyvin, minkä vuoksi päivittäinen saanti ei ole välttämätön. Hyviä A-vitamiinin lähteitä ovat tuoreet vihreät rehut. Saanti voidaan turvata käyttämällä lihanaudoille tarkoitettuja vitamiinit sisältäviä kivennäisseoksia ohjeen mukaisena annostuksena.  ","D-vitamiini osallistuu kalsiumin, fosforin sekä jossakin määrin myös magnesiumin aineenvaihduntaan. Tarvittaessa se tehostaa näiden aineiden imeytymistä suolistosta. D-vitamiinin puute aiheuttaa mm. riisitautia, kasvun hidastumista ja nivelten turpoamista. Eläin saa D-vitamiinia sekä rehusta että ihon provitamiineista auringon ultraviolettisäteilyn avulla. Saanti voidaan turvata käyttämällä lihanaudoille tarkoitettuja vitamiinit sisältäviä kivennäisseoksia ohjeen mukaisena annostuksena. ","E-vitamiini on tehokas antioksidantti. Riittävä saanti parantaa eläintuotteiden (liha, maito) laatua ja säilyvyyttä. Lihasrappeuma on tunnetuin E-vitamiinin puutosoireista. E-vitamiini ja seleeni ovat välttämättömiä solukalvojen normaalille toiminnalle. Ne eivät korvaa toisiaan, vaan molempia tarvitaan. Hyviä E-vitamiinin lähteitä ovat tuoreet vihreät rehut ja kuivattu vilja. Saanti voidaan turvata käyttämällä lihanaudoille tarkoitettuja vitamiinit sisältäviä kivennäisseoksia ohjeen mukaisesti.  "]
["  RV",8,41,null,"kommentit 2",null,null,null,null,null,null,null,null,null,"Ylimääräinen kalsium poistetaan ulosteisiin, joten myrkytys on epätodennäköinen. Joissain tapauksissa myrkytysoireet ovat mahdollisia. Tällöin tarvitaan fosforin ja d-vitamiinin yhteisvaikutus (fosforia liian vähän ja d-vit. liikaa). Raja-arvo tällöin, jos kalsiumia yli 1 % kuiva-aineesta.","Ylimääräinen fosfori poistetaan ulosteisiin, joten myrkytys on epätodennäköinen. Ennen myrkytystä muodostuu virtsakiviä, varsinkin runsaalla väkirehuruokinnalla.",null,"Nuorilla vasikoilla sietoraja on 30 g/kg ka.","Sietoraja voi olla alhaisempi kuin 1000 mg/kg ka, jos e-vitamiinista on puutetta. Puute voi aiheutua keväällä laiduntaessa nuorta kasvustoa.","Sietoraja on riippuvainen dieetin kupari-, molybdeeni- ja rauta-tasoista. ","Myrkytysraja on 1500 mg/kg ka. Myös dieetin kalsium-, kupari-, rauta- ja cadmiumpitoisuudet vaikuttavat sietorajaan.","Vasikoilla yli 200 mg/kg ka aiheutta myrkytyksen. Suuremmat naudat kestävät jopa tasoa 900 mg/kg ka muutamia viikkoja.","Nuorilla vasikoilla sietoraja on 4 mg/kg ka, vanhemmilla naudoilla 30 mg/kg ka.","Aiheuttaa myrkytysoireita jo suhteellisen matalissa pitoisuuksissa, maksimiarvo kirjallisuuden perusteella 4 mg/kg ka.","Yli 50 mg/kg ka aiheuttaa myrkytysoireet.","Maksimiarvo 2 mg/kg ka, jos ruokinnassa korkea rikki- ja matala kuparipitoisuus. Maksimiarvo 20 mg/kg ka, jos ruokinnassa matala rikki- ja korkea kuparipitoisuus.",null,null,"Myrkytysraja naudoilla ei tiedossa."]
["  NDF",9,42]
["  PVT",10,43]
["  Tärk+sok",11,44,null,"HUOM!"]
["  Srind",12,45,null,"Päiväittämällä yllä olevia kommenttikenttiä (kunkin osatekijä sarakkeessa), muuttuvat infotekstit hivenaineissa"]
["  VFA",13,46]
["  Kiv/Hiv",14,47]
["  Ca",15,48]
["  P",16,49]
["  Mg",17,50]
["  Na",18,51]
["  Fe",19,52]
["  Mn",20,53]
["  Zn",21,54]
["  Cu",22,55]
["  Co",23,56]
["  Se",24,57]
["  I",25,58]
["  Mo",26,59]
["  A-vit",27,60]